Payment Date,Transaction Number,Net Amount,Supplier (Beneficiary) Name,Local Supplier Internal Reference,Directorate / Service Where Expenditure Incurred,Service Category Label,Service Category URI,SeRCOP Expenditure Category,SeRCOP Expenditure Code,Purpose of Spend,SeRCOP Detailed Expenditure Code,Capital/Revenue,Procurement Classification
29-JUL-2022,7014096,146.98,SOLO PRESS,393572,"Health, Education, Care and Safeguarding",Children's & Education Services,103,Supplies and Services,504,Miscellaneous Expenses,5034,Revenue,PRINTING SERVICES.PRINTING
29-JUL-2022,7014036,38.99,GM PACKAGING (UK) LTD,312623,"Health, Education, Care and Safeguarding",Children's & Education Services,103,Supplies and Services,504,Miscellaneous Expenses,5034,Revenue,CATERING.DISPOSABLES
29-JUL-2022,7014073,5.77,AMAZON GENERAL PAYMENTS,375398,"Health, Education, Care and Safeguarding",Children's & Education Services,103,Supplies and Services,504,Miscellaneous Expenses,5034,Revenue,EDUCATIONAL SUPPLIES.SUPPLIES
29-JUL-2022,7013951,150,HSQE LTD,403356,Resources,Children's & Education Services,103,Employees,501,Indirect Employee Expenses,5002,Revenue,NON INFLUENCIBLE.NON INFLUENCIBLE
29-JUL-2022,7014073,0.01,AMAZON GENERAL PAYMENTS,375398,Resources,Children's & Education Services,103,Employees,501,Indirect Employee Expenses,5002,Revenue,EDUCATIONAL SUPPLIES.SUPPLIES
29-JUL-2022,7014073,67.53,AMAZON GENERAL PAYMENTS,375398,Resources,Children's & Education Services,103,Employees,501,Indirect Employee Expenses,5002,Revenue,EDUCATIONAL SUPPLIES.SUPPLIES
29-JUL-2022,7014003,-0.01,B&Q PLC,002053,Commissioning & Asset Management,Planning Services ,110,Supplies and Services,504,Equipment,5023,Revenue,BUILDING MATERIALS.GENERAL MATERIALS
29-JUL-2022,7014003,24.48,B&Q PLC,002053,Commissioning & Asset Management,Planning Services ,110,Supplies and Services,504,Equipment,5023,Revenue,BUILDING MATERIALS.GENERAL MATERIALS
29-JUL-2022,7014077,35.21,ZORO.CO.UK,398018,Commissioning & Asset Management,Planning Services ,110,Supplies and Services,504,Equipment,5023,Revenue,BUILDING MATERIALS.HAND TOOLS
29-JUL-2022,7013936,15.17,TAKEAWAY,403381,Corporate Strategy,Children's & Education Services,103,Supplies and Services,504,Catering,5024,Revenue,NON INFLUENCIBLE.NON INFLUENCIBLE
29-JUL-2022,7013968,31.23,SIDHU FISH AND CHIPS,402229,Corporate Strategy,Children's & Education Services,103,Supplies and Services,504,Catering,5024,Revenue,NON INFLUENCIBLE.NON INFLUENCIBLE
29-JUL-2022,7014073,0.01,AMAZON GENERAL PAYMENTS,375398,Corporate Strategy,Children's & Education Services,103,Supplies and Services,504,Expenses,5030,Revenue,EDUCATIONAL SUPPLIES.SUPPLIES
29-JUL-2022,7014073,3.32,AMAZON GENERAL PAYMENTS,375398,Corporate Strategy,Children's & Education Services,103,Supplies and Services,504,Expenses,5030,Revenue,EDUCATIONAL SUPPLIES.SUPPLIES
29-JUL-2022,7014073,28.5,AMAZON GENERAL PAYMENTS,375398,Corporate Strategy,Children's & Education Services,103,Supplies and Services,504,Expenses,5030,Revenue,EDUCATIONAL SUPPLIES.SUPPLIES
29-JUL-2022,7014073,33.9,AMAZON GENERAL PAYMENTS,375398,Corporate Strategy,Children's & Education Services,103,Supplies and Services,504,Expenses,5030,Revenue,EDUCATIONAL SUPPLIES.SUPPLIES
29-JUL-2022,7014073,34.7,AMAZON GENERAL PAYMENTS,375398,Corporate Strategy,Children's & Education Services,103,Supplies and Services,504,Expenses,5030,Revenue,EDUCATIONAL SUPPLIES.SUPPLIES
29-JUL-2022,7014063,11,MARKS & SPENCER PLC,013098,"Health, Education, Care and Safeguarding",Children's & Education Services,103,Supplies and Services,504,Catering,5024,Revenue,CATERING.FOOD & BEVERAGES
29-JUL-2022,7014073,39.16,AMAZON GENERAL PAYMENTS,375398,"Health, Education, Care and Safeguarding",Children's & Education Services,103,Supplies and Services,504,Equipment,5023,Revenue,EDUCATIONAL SUPPLIES.SUPPLIES
29-JUL-2022,7014042,100,ODEON CINEMAS LIMITED,349238,"Health, Education, Care and Safeguarding",Children's & Education Services,103,Supplies and Services,504,Miscellaneous Expenses,5034,Revenue,ADVERTISING & MARKETING.EVENTS & PROMOTIONS
29-JUL-2022,7013969,8.32,VUE CINEMAS,401845,"Health, Education, Care and Safeguarding",Children's & Education Services,103,Supplies and Services,504,Miscellaneous Expenses,5034,Revenue,NON INFLUENCIBLE.NON INFLUENCIBLE
29-JUL-2022,7013971,8.33,ETSY,401830,"Health, Education, Care and Safeguarding",Children's & Education Services,103,Supplies and Services,504,Equipment,5023,Revenue,NON INFLUENCIBLE.NON INFLUENCIBLE
29-JUL-2022,7013976,1.91,EBAY,400312,"Health, Education, Care and Safeguarding",Children's & Education Services,103,Supplies and Services,504,Equipment,5023,Revenue,ICT.ONLINE SERVICES
29-JUL-2022,7013998,77,DUNELM LTD,391723,"Health, Education, Care and Safeguarding",Children's & Education Services,103,Supplies and Services,504,Equipment,5023,Revenue,FURNITURE.SOFT FURNISHINGS
29-JUL-2022,7013999,15.35,ALDI STORES LTD,391717,"Health, Education, Care and Safeguarding",Children's & Education Services,103,Supplies and Services,504,Equipment,5023,Revenue,CATERING.FOOD & BEVERAGES
29-JUL-2022,7014034,-25,NEXT PLC,338362,"Health, Education, Care and Safeguarding",Children's & Education Services,103,Supplies and Services,504,"Clothing, Uniforms and Laundry",5025,Revenue,NON INFLUENCIBLE.NON INFLUENCIBLE
29-JUL-2022,7014034,65,NEXT PLC,338362,"Health, Education, Care and Safeguarding",Children's & Education Services,103,Supplies and Services,504,"Clothing, Uniforms and Laundry",5025,Revenue,NON INFLUENCIBLE.NON INFLUENCIBLE
29-JUL-2022,7014042,31.67,ODEON CINEMAS LIMITED,349238,"Health, Education, Care and Safeguarding",Children's & Education Services,103,Supplies and Services,504,Miscellaneous Expenses,5034,Revenue,ADVERTISING & MARKETING.EVENTS & PROMOTIONS
29-JUL-2022,7014048,6.87,WM MORRISON SUPERMARKETS PLC,013562,"Health, Education, Care and Safeguarding",Children's & Education Services,103,Supplies and Services,504,Equipment,5023,Revenue,CATERING.FOOD & BEVERAGES
29-JUL-2022,7014048,-0.01,WM MORRISON SUPERMARKETS PLC,013562,"Health, Education, Care and Safeguarding",Children's & Education Services,103,Supplies and Services,504,Miscellaneous Expenses,5034,Revenue,CATERING.FOOD & BEVERAGES
29-JUL-2022,7014048,-0.01,WM MORRISON SUPERMARKETS PLC,013562,"Health, Education, Care and Safeguarding",Children's & Education Services,103,Supplies and Services,504,Miscellaneous Expenses,5034,Revenue,CATERING.FOOD & BEVERAGES
29-JUL-2022,7014048,5.33,WM MORRISON SUPERMARKETS PLC,013562,"Health, Education, Care and Safeguarding",Children's & Education Services,103,Supplies and Services,504,Miscellaneous Expenses,5034,Revenue,CATERING.FOOD & BEVERAGES
29-JUL-2022,7014048,7.08,WM MORRISON SUPERMARKETS PLC,013562,"Health, Education, Care and Safeguarding",Children's & Education Services,103,Supplies and Services,504,Miscellaneous Expenses,5034,Revenue,CATERING.FOOD & BEVERAGES
29-JUL-2022,7014048,10.23,WM MORRISON SUPERMARKETS PLC,013562,"Health, Education, Care and Safeguarding",Children's & Education Services,103,Supplies and Services,504,Miscellaneous Expenses,5034,Revenue,CATERING.FOOD & BEVERAGES
29-JUL-2022,7014060,12.5,NEXUS,305246,"Health, Education, Care and Safeguarding",Children's & Education Services,103,Supplies and Services,504,Expenses,5030,Revenue,NON INFLUENCIBLE.NON INFLUENCIBLE
29-JUL-2022,7014063,7.15,MARKS & SPENCER PLC,013098,"Health, Education, Care and Safeguarding",Children's & Education Services,103,Supplies and Services,504,Miscellaneous Expenses,5034,Revenue,CATERING.FOOD & BEVERAGES
29-JUL-2022,7014066,-0.01,HOME BARGAINS,381011,"Health, Education, Care and Safeguarding",Children's & Education Services,103,Supplies and Services,504,Equipment,5023,Revenue,FURNITURE.SOFT FURNISHINGS
29-JUL-2022,7014066,7.53,HOME BARGAINS,381011,"Health, Education, Care and Safeguarding",Children's & Education Services,103,Supplies and Services,504,Equipment,5023,Revenue,FURNITURE.SOFT FURNISHINGS
29-JUL-2022,7014066,0.01,HOME BARGAINS,381011,"Health, Education, Care and Safeguarding",Children's & Education Services,103,Supplies and Services,504,Equipment,5023,Revenue,FURNITURE.SOFT FURNISHINGS
29-JUL-2022,7014066,26.87,HOME BARGAINS,381011,"Health, Education, Care and Safeguarding",Children's & Education Services,103,Supplies and Services,504,Equipment,5023,Revenue,FURNITURE.SOFT FURNISHINGS
29-JUL-2022,7014069,8,MAX SPIELMANN LTD,383117,"Health, Education, Care and Safeguarding",Children's & Education Services,103,Supplies and Services,504,Equipment,5023,Revenue,NON INFLUENCIBLE.NON INFLUENCIBLE
29-JUL-2022,7014072,4,BEAMISH,110048,"Health, Education, Care and Safeguarding",Children's & Education Services,103,Supplies and Services,504,Miscellaneous Expenses,5034,Revenue,ADVERTISING & MARKETING.EVENTS & PROMOTIONS
29-JUL-2022,7014072,4.17,BEAMISH,110048,"Health, Education, Care and Safeguarding",Children's & Education Services,103,Supplies and Services,504,Miscellaneous Expenses,5034,Revenue,ADVERTISING & MARKETING.EVENTS & PROMOTIONS
29-JUL-2022,7014073,0.01,AMAZON GENERAL PAYMENTS,375398,"Health, Education, Care and Safeguarding",Children's & Education Services,103,Supplies and Services,504,Equipment,5023,Revenue,EDUCATIONAL SUPPLIES.SUPPLIES
29-JUL-2022,7014073,0.01,AMAZON GENERAL PAYMENTS,375398,"Health, Education, Care and Safeguarding",Children's & Education Services,103,Supplies and Services,504,Equipment,5023,Revenue,EDUCATIONAL SUPPLIES.SUPPLIES
29-JUL-2022,7014073,5.59,AMAZON GENERAL PAYMENTS,375398,"Health, Education, Care and Safeguarding",Children's & Education Services,103,Supplies and Services,504,Equipment,5023,Revenue,EDUCATIONAL SUPPLIES.SUPPLIES
29-JUL-2022,7014073,7.45,AMAZON GENERAL PAYMENTS,375398,"Health, Education, Care and Safeguarding",Children's & Education Services,103,Supplies and Services,504,Equipment,5023,Revenue,EDUCATIONAL SUPPLIES.SUPPLIES
29-JUL-2022,7014073,7.91,AMAZON GENERAL PAYMENTS,375398,"Health, Education, Care and Safeguarding",Children's & Education Services,103,Supplies and Services,504,Equipment,5023,Revenue,EDUCATIONAL SUPPLIES.SUPPLIES
29-JUL-2022,7014073,8.32,AMAZON GENERAL PAYMENTS,375398,"Health, Education, Care and Safeguarding",Children's & Education Services,103,Supplies and Services,504,Equipment,5023,Revenue,EDUCATIONAL SUPPLIES.SUPPLIES
29-JUL-2022,7014073,16.24,AMAZON GENERAL PAYMENTS,375398,"Health, Education, Care and Safeguarding",Children's & Education Services,103,Supplies and Services,504,Equipment,5023,Revenue,EDUCATIONAL SUPPLIES.SUPPLIES
29-JUL-2022,7014073,9.91,AMAZON GENERAL PAYMENTS,375398,"Health, Education, Care and Safeguarding",Children's & Education Services,103,Supplies and Services,504,"Clothing, Uniforms and Laundry",5025,Revenue,EDUCATIONAL SUPPLIES.SUPPLIES
29-JUL-2022,7014079,4.03,MOONPIG UK,397633,"Health, Education, Care and Safeguarding",Children's & Education Services,103,Supplies and Services,504,"Printing, Stationery and General Office Expenses",5026,Revenue,PRINTING SERVICES.DESIGN
29-JUL-2022,7014110,20,ASDA STORES LIMITED,306530,"Health, Education, Care and Safeguarding",Children's & Education Services,103,Supplies and Services,504,Equipment,5023,Revenue,CATERING.FOOD & BEVERAGES
29-JUL-2022,7014110,94.78,ASDA STORES LIMITED,306530,"Health, Education, Care and Safeguarding",Children's & Education Services,103,Supplies and Services,504,Equipment,5023,Revenue,CATERING.FOOD & BEVERAGES
29-JUL-2022,7014110,29.58,ASDA STORES LIMITED,306530,"Health, Education, Care and Safeguarding",Children's & Education Services,103,Supplies and Services,504,"Clothing, Uniforms and Laundry",5025,Revenue,CATERING.FOOD & BEVERAGES
29-JUL-2022,7014110,-30,ASDA STORES LIMITED,306530,"Health, Education, Care and Safeguarding",Children's & Education Services,103,Supplies and Services,504,Miscellaneous Expenses,5034,Revenue,CATERING.FOOD & BEVERAGES
29-JUL-2022,7014110,-0.01,ASDA STORES LIMITED,306530,"Health, Education, Care and Safeguarding",Children's & Education Services,103,Supplies and Services,504,Miscellaneous Expenses,5034,Revenue,CATERING.FOOD & BEVERAGES
29-JUL-2022,7014110,4.58,ASDA STORES LIMITED,306530,"Health, Education, Care and Safeguarding",Children's & Education Services,103,Supplies and Services,504,Miscellaneous Expenses,5034,Revenue,CATERING.FOOD & BEVERAGES
29-JUL-2022,7014110,12.5,ASDA STORES LIMITED,306530,"Health, Education, Care and Safeguarding",Children's & Education Services,103,Supplies and Services,504,Miscellaneous Expenses,5034,Revenue,CATERING.FOOD & BEVERAGES
29-JUL-2022,7014110,62.67,ASDA STORES LIMITED,306530,"Health, Education, Care and Safeguarding",Children's & Education Services,103,Supplies and Services,504,Miscellaneous Expenses,5034,Revenue,CATERING.FOOD & BEVERAGES
29-JUL-2022,7014110,90.83,ASDA STORES LIMITED,306530,"Health, Education, Care and Safeguarding",Children's & Education Services,103,Supplies and Services,504,Miscellaneous Expenses,5034,Revenue,CATERING.FOOD & BEVERAGES
29-JUL-2022,7014114,3.58,SAINSBURY'S SUPERMARKET LIMITED,334326,"Health, Education, Care and Safeguarding",Children's & Education Services,103,Supplies and Services,504,Equipment,5023,Revenue,CATERING.FOOD & BEVERAGES
29-JUL-2022,7014114,1.92,SAINSBURY'S SUPERMARKET LIMITED,334326,"Health, Education, Care and Safeguarding",Children's & Education Services,103,Supplies and Services,504,Miscellaneous Expenses,5034,Revenue,CATERING.FOOD & BEVERAGES
29-JUL-2022,7014114,2.5,SAINSBURY'S SUPERMARKET LIMITED,334326,"Health, Education, Care and Safeguarding",Children's & Education Services,103,Supplies and Services,504,Miscellaneous Expenses,5034,Revenue,CATERING.FOOD & BEVERAGES
29-JUL-2022,7014037,0.01,WILKO RETAIL LIMITED,280813,"Health, Education, Care and Safeguarding",Children's & Education Services,103,Supplies and Services,504,Equipment,5023,Revenue,NON INFLUENCIBLE.REDECORATION GRANTS
29-JUL-2022,7014037,14.87,WILKO RETAIL LIMITED,280813,"Health, Education, Care and Safeguarding",Children's & Education Services,103,Supplies and Services,504,Equipment,5023,Revenue,NON INFLUENCIBLE.REDECORATION GRANTS
29-JUL-2022,7014048,41.67,WM MORRISON SUPERMARKETS PLC,013562,"Health, Education, Care and Safeguarding",Children's & Education Services,103,Supplies and Services,504,Equipment,5023,Revenue,CATERING.FOOD & BEVERAGES
29-JUL-2022,7014061,0.01,CURRYS,310317,"Health, Education, Care and Safeguarding",Children's & Education Services,103,Supplies and Services,504,Equipment,5023,Revenue,FURNITURE.DOMESTIC
29-JUL-2022,7014061,120.82,CURRYS,310317,"Health, Education, Care and Safeguarding",Children's & Education Services,103,Supplies and Services,504,Equipment,5023,Revenue,FURNITURE.DOMESTIC
29-JUL-2022,7014073,126.5,AMAZON GENERAL PAYMENTS,375398,"Health, Education, Care and Safeguarding",Children's & Education Services,103,Employees,501,Indirect Employee Expenses,5002,Revenue,EDUCATIONAL SUPPLIES.SUPPLIES
29-JUL-2022,7014073,0.01,AMAZON GENERAL PAYMENTS,375398,"Health, Education, Care and Safeguarding",Children's & Education Services,103,Supplies and Services,504,Equipment,5023,Revenue,EDUCATIONAL SUPPLIES.SUPPLIES
29-JUL-2022,7014073,0.01,AMAZON GENERAL PAYMENTS,375398,"Health, Education, Care and Safeguarding",Children's & Education Services,103,Supplies and Services,504,Equipment,5023,Revenue,EDUCATIONAL SUPPLIES.SUPPLIES
29-JUL-2022,7014073,0.01,AMAZON GENERAL PAYMENTS,375398,"Health, Education, Care and Safeguarding",Children's & Education Services,103,Supplies and Services,504,Equipment,5023,Revenue,EDUCATIONAL SUPPLIES.SUPPLIES
29-JUL-2022,7014073,0.01,AMAZON GENERAL PAYMENTS,375398,"Health, Education, Care and Safeguarding",Children's & Education Services,103,Supplies and Services,504,Equipment,5023,Revenue,EDUCATIONAL SUPPLIES.SUPPLIES
29-JUL-2022,7014073,0.01,AMAZON GENERAL PAYMENTS,375398,"Health, Education, Care and Safeguarding",Children's & Education Services,103,Supplies and Services,504,Equipment,5023,Revenue,EDUCATIONAL SUPPLIES.SUPPLIES
29-JUL-2022,7014073,0.01,AMAZON GENERAL PAYMENTS,375398,"Health, Education, Care and Safeguarding",Children's & Education Services,103,Supplies and Services,504,Equipment,5023,Revenue,EDUCATIONAL SUPPLIES.SUPPLIES
29-JUL-2022,7014073,6.66,AMAZON GENERAL PAYMENTS,375398,"Health, Education, Care and Safeguarding",Children's & Education Services,103,Supplies and Services,504,Equipment,5023,Revenue,EDUCATIONAL SUPPLIES.SUPPLIES
29-JUL-2022,7014073,11.66,AMAZON GENERAL PAYMENTS,375398,"Health, Education, Care and Safeguarding",Children's & Education Services,103,Supplies and Services,504,Equipment,5023,Revenue,EDUCATIONAL SUPPLIES.SUPPLIES
29-JUL-2022,7014073,13,AMAZON GENERAL PAYMENTS,375398,"Health, Education, Care and Safeguarding",Children's & Education Services,103,Supplies and Services,504,Equipment,5023,Revenue,EDUCATIONAL SUPPLIES.SUPPLIES
29-JUL-2022,7014073,13.03,AMAZON GENERAL PAYMENTS,375398,"Health, Education, Care and Safeguarding",Children's & Education Services,103,Supplies and Services,504,Equipment,5023,Revenue,EDUCATIONAL SUPPLIES.SUPPLIES
29-JUL-2022,7014073,20.33,AMAZON GENERAL PAYMENTS,375398,"Health, Education, Care and Safeguarding",Children's & Education Services,103,Supplies and Services,504,Equipment,5023,Revenue,EDUCATIONAL SUPPLIES.SUPPLIES
29-JUL-2022,7014073,23.32,AMAZON GENERAL PAYMENTS,375398,"Health, Education, Care and Safeguarding",Children's & Education Services,103,Supplies and Services,504,Equipment,5023,Revenue,EDUCATIONAL SUPPLIES.SUPPLIES
29-JUL-2022,7014073,28.32,AMAZON GENERAL PAYMENTS,375398,"Health, Education, Care and Safeguarding",Children's & Education Services,103,Supplies and Services,504,Equipment,5023,Revenue,EDUCATIONAL SUPPLIES.SUPPLIES
29-JUL-2022,7014073,38.22,AMAZON GENERAL PAYMENTS,375398,"Health, Education, Care and Safeguarding",Children's & Education Services,103,Supplies and Services,504,Equipment,5023,Revenue,EDUCATIONAL SUPPLIES.SUPPLIES
29-JUL-2022,7014073,39.45,AMAZON GENERAL PAYMENTS,375398,"Health, Education, Care and Safeguarding",Children's & Education Services,103,Supplies and Services,504,Equipment,5023,Revenue,EDUCATIONAL SUPPLIES.SUPPLIES
29-JUL-2022,7014073,39.95,AMAZON GENERAL PAYMENTS,375398,"Health, Education, Care and Safeguarding",Children's & Education Services,103,Supplies and Services,504,Equipment,5023,Revenue,EDUCATIONAL SUPPLIES.SUPPLIES
29-JUL-2022,7014073,46.57,AMAZON GENERAL PAYMENTS,375398,"Health, Education, Care and Safeguarding",Children's & Education Services,103,Supplies and Services,504,Equipment,5023,Revenue,EDUCATIONAL SUPPLIES.SUPPLIES
29-JUL-2022,7014073,47.83,AMAZON GENERAL PAYMENTS,375398,"Health, Education, Care and Safeguarding",Children's & Education Services,103,Supplies and Services,504,Equipment,5023,Revenue,EDUCATIONAL SUPPLIES.SUPPLIES
29-JUL-2022,7014073,56.65,AMAZON GENERAL PAYMENTS,375398,"Health, Education, Care and Safeguarding",Children's & Education Services,103,Supplies and Services,504,Equipment,5023,Revenue,EDUCATIONAL SUPPLIES.SUPPLIES
29-JUL-2022,7014073,66.65,AMAZON GENERAL PAYMENTS,375398,"Health, Education, Care and Safeguarding",Children's & Education Services,103,Supplies and Services,504,Equipment,5023,Revenue,EDUCATIONAL SUPPLIES.SUPPLIES
29-JUL-2022,7014073,91.57,AMAZON GENERAL PAYMENTS,375398,"Health, Education, Care and Safeguarding",Children's & Education Services,103,Supplies and Services,504,Equipment,5023,Revenue,EDUCATIONAL SUPPLIES.SUPPLIES
29-JUL-2022,7014073,99.92,AMAZON GENERAL PAYMENTS,375398,"Health, Education, Care and Safeguarding",Children's & Education Services,103,Supplies and Services,504,Equipment,5023,Revenue,EDUCATIONAL SUPPLIES.SUPPLIES
29-JUL-2022,7014073,100,AMAZON GENERAL PAYMENTS,375398,"Health, Education, Care and Safeguarding",Children's & Education Services,103,Supplies and Services,504,Equipment,5023,Revenue,EDUCATIONAL SUPPLIES.SUPPLIES
29-JUL-2022,7014073,100,AMAZON GENERAL PAYMENTS,375398,"Health, Education, Care and Safeguarding",Children's & Education Services,103,Supplies and Services,504,Equipment,5023,Revenue,EDUCATIONAL SUPPLIES.SUPPLIES
29-JUL-2022,7014073,171.58,AMAZON GENERAL PAYMENTS,375398,"Health, Education, Care and Safeguarding",Children's & Education Services,103,Supplies and Services,504,Equipment,5023,Revenue,EDUCATIONAL SUPPLIES.SUPPLIES
29-JUL-2022,7014073,173.2,AMAZON GENERAL PAYMENTS,375398,"Health, Education, Care and Safeguarding",Children's & Education Services,103,Supplies and Services,504,Equipment,5023,Revenue,EDUCATIONAL SUPPLIES.SUPPLIES
29-JUL-2022,7014073,259.37,AMAZON GENERAL PAYMENTS,375398,"Health, Education, Care and Safeguarding",Children's & Education Services,103,Supplies and Services,504,Equipment,5023,Revenue,EDUCATIONAL SUPPLIES.SUPPLIES
29-JUL-2022,7014082,200,PASSNGO.NET,397232,"Health, Education, Care and Safeguarding",Children's & Education Services,103,Supplies and Services,504,Miscellaneous Expenses,5034,Revenue,
29-JUL-2022,7014114,0.01,SAINSBURY'S SUPERMARKET LIMITED,334326,"Health, Education, Care and Safeguarding",Children's & Education Services,103,Supplies and Services,504,Equipment,5023,Revenue,CATERING.FOOD & BEVERAGES
29-JUL-2022,7014114,121.22,SAINSBURY'S SUPERMARKET LIMITED,334326,"Health, Education, Care and Safeguarding",Children's & Education Services,103,Supplies and Services,504,Equipment,5023,Revenue,CATERING.FOOD & BEVERAGES
29-JUL-2022,7014051,99,PAYPAL GENERAL PAYMENTS,383689,"Health, Education, Care and Safeguarding",Children's & Education Services,103,Supplies and Services,504,Miscellaneous Expenses,5034,Revenue,FINANCIAL SERVICES.FINANCIAL SERVICES
29-JUL-2022,7014051,215.83,PAYPAL GENERAL PAYMENTS,383689,"Health, Education, Care and Safeguarding",Children's & Education Services,103,Supplies and Services,504,Miscellaneous Expenses,5034,Revenue,FINANCIAL SERVICES.FINANCIAL SERVICES
29-JUL-2022,7014051,255.86,PAYPAL GENERAL PAYMENTS,383689,"Health, Education, Care and Safeguarding",Children's & Education Services,103,Supplies and Services,504,Miscellaneous Expenses,5034,Revenue,FINANCIAL SERVICES.FINANCIAL SERVICES
29-JUL-2022,7014073,0.01,AMAZON GENERAL PAYMENTS,375398,"Health, Education, Care and Safeguarding",Children's & Education Services,103,Supplies and Services,504,Miscellaneous Expenses,5034,Revenue,EDUCATIONAL SUPPLIES.SUPPLIES
29-JUL-2022,7014073,0.01,AMAZON GENERAL PAYMENTS,375398,"Health, Education, Care and Safeguarding",Children's & Education Services,103,Supplies and Services,504,Miscellaneous Expenses,5034,Revenue,EDUCATIONAL SUPPLIES.SUPPLIES
29-JUL-2022,7014073,0.01,AMAZON GENERAL PAYMENTS,375398,"Health, Education, Care and Safeguarding",Children's & Education Services,103,Supplies and Services,504,Miscellaneous Expenses,5034,Revenue,EDUCATIONAL SUPPLIES.SUPPLIES
29-JUL-2022,7014073,8.99,AMAZON GENERAL PAYMENTS,375398,"Health, Education, Care and Safeguarding",Children's & Education Services,103,Supplies and Services,504,Miscellaneous Expenses,5034,Revenue,EDUCATIONAL SUPPLIES.SUPPLIES
29-JUL-2022,7014073,9.57,AMAZON GENERAL PAYMENTS,375398,"Health, Education, Care and Safeguarding",Children's & Education Services,103,Supplies and Services,504,Miscellaneous Expenses,5034,Revenue,EDUCATIONAL SUPPLIES.SUPPLIES
29-JUL-2022,7014073,9.57,AMAZON GENERAL PAYMENTS,375398,"Health, Education, Care and Safeguarding",Children's & Education Services,103,Supplies and Services,504,Miscellaneous Expenses,5034,Revenue,EDUCATIONAL SUPPLIES.SUPPLIES
29-JUL-2022,7014073,19.15,AMAZON GENERAL PAYMENTS,375398,"Health, Education, Care and Safeguarding",Children's & Education Services,103,Supplies and Services,504,Miscellaneous Expenses,5034,Revenue,EDUCATIONAL SUPPLIES.SUPPLIES
29-JUL-2022,7014073,19.18,AMAZON GENERAL PAYMENTS,375398,"Health, Education, Care and Safeguarding",Children's & Education Services,103,Supplies and Services,504,Miscellaneous Expenses,5034,Revenue,EDUCATIONAL SUPPLIES.SUPPLIES
29-JUL-2022,7014073,30.25,AMAZON GENERAL PAYMENTS,375398,"Health, Education, Care and Safeguarding",Children's & Education Services,103,Supplies and Services,504,Miscellaneous Expenses,5034,Revenue,EDUCATIONAL SUPPLIES.SUPPLIES
29-JUL-2022,7014073,35.97,AMAZON GENERAL PAYMENTS,375398,"Health, Education, Care and Safeguarding",Children's & Education Services,103,Supplies and Services,504,Miscellaneous Expenses,5034,Revenue,EDUCATIONAL SUPPLIES.SUPPLIES
29-JUL-2022,7014073,44.96,AMAZON GENERAL PAYMENTS,375398,"Health, Education, Care and Safeguarding",Children's & Education Services,103,Supplies and Services,504,Miscellaneous Expenses,5034,Revenue,EDUCATIONAL SUPPLIES.SUPPLIES
29-JUL-2022,7014073,49.67,AMAZON GENERAL PAYMENTS,375398,"Health, Education, Care and Safeguarding",Children's & Education Services,103,Supplies and Services,504,Miscellaneous Expenses,5034,Revenue,EDUCATIONAL SUPPLIES.SUPPLIES
29-JUL-2022,7014059,0.66,APPLE COMPUTERS,384257,"Health, Education, Care and Safeguarding",Children's & Education Services,103,Supplies and Services,504,Miscellaneous Expenses,5034,Revenue,ICT.HARDWARE
29-JUL-2022,7013974,7.99,UNLIMITED,401692,"Health, Education, Care and Safeguarding",Children's & Education Services,103,Supplies and Services,504,Miscellaneous Expenses,5034,Revenue,NON INFLUENCIBLE.NON INFLUENCIBLE
29-JUL-2022,7014040,2.19,FASTHOSTS INTERNET LIMITED,367002,"Health, Education, Care and Safeguarding",Children's & Education Services,103,Supplies and Services,504,Communications & Computing,5028,Revenue,ICT.SOFTWARE
29-JUL-2022,7014040,2.19,FASTHOSTS INTERNET LIMITED,367002,"Health, Education, Care and Safeguarding",Children's & Education Services,103,Supplies and Services,504,Communications & Computing,5028,Revenue,ICT.SOFTWARE
29-JUL-2022,7014040,7.49,FASTHOSTS INTERNET LIMITED,367002,"Health, Education, Care and Safeguarding",Children's & Education Services,103,Supplies and Services,504,Communications & Computing,5028,Revenue,ICT.SOFTWARE
29-JUL-2022,7014040,7.49,FASTHOSTS INTERNET LIMITED,367002,"Health, Education, Care and Safeguarding",Children's & Education Services,103,Supplies and Services,504,Communications & Computing,5028,Revenue,ICT.SOFTWARE
29-JUL-2022,7014040,7.49,FASTHOSTS INTERNET LIMITED,367002,"Health, Education, Care and Safeguarding",Children's & Education Services,103,Supplies and Services,504,Communications & Computing,5028,Revenue,ICT.SOFTWARE
29-JUL-2022,7014040,14.98,FASTHOSTS INTERNET LIMITED,367002,"Health, Education, Care and Safeguarding",Children's & Education Services,103,Supplies and Services,504,Communications & Computing,5028,Revenue,ICT.SOFTWARE
29-JUL-2022,7014040,35.88,FASTHOSTS INTERNET LIMITED,367002,"Health, Education, Care and Safeguarding",Children's & Education Services,103,Supplies and Services,504,Communications & Computing,5028,Revenue,ICT.SOFTWARE
29-JUL-2022,7014089,20.8,ADOBE  CREATIVE CLOUD,395909,"Health, Education, Care and Safeguarding",Children's & Education Services,103,Supplies and Services,504,Communications & Computing,5028,Revenue,ICT.SOFTWARE
29-JUL-2022,7014094,10,VIMEO.COM,393893,"Health, Education, Care and Safeguarding",Children's & Education Services,103,Supplies and Services,504,Communications & Computing,5028,Revenue,ICT.SOFTWARE
29-JUL-2022,7014081,0.01,CHIRTON MAIN SERVICE,397459,Local Environmental Services,Cultural & Related Services,104,Transport,503,Direct Transport Costs,5016,Revenue,BUILDING MATERIALS.GENERAL MATERIALS
29-JUL-2022,7014081,75.26,CHIRTON MAIN SERVICE,397459,Local Environmental Services,Cultural & Related Services,104,Transport,503,Direct Transport Costs,5016,Revenue,BUILDING MATERIALS.GENERAL MATERIALS
29-JUL-2022,7014081,79.79,CHIRTON MAIN SERVICE,397459,Local Environmental Services,Cultural & Related Services,104,Transport,503,Direct Transport Costs,5016,Revenue,BUILDING MATERIALS.GENERAL MATERIALS
29-JUL-2022,7014081,83.27,CHIRTON MAIN SERVICE,397459,Local Environmental Services,Cultural & Related Services,104,Transport,503,Direct Transport Costs,5016,Revenue,BUILDING MATERIALS.GENERAL MATERIALS
29-JUL-2022,7014081,85.66,CHIRTON MAIN SERVICE,397459,Local Environmental Services,Cultural & Related Services,104,Transport,503,Direct Transport Costs,5016,Revenue,BUILDING MATERIALS.GENERAL MATERIALS
29-JUL-2022,7014074,0.01,SCREWFIX,383257,Local Environmental Services,Central Services,102,Supplies and Services,504,Equipment,5023,Revenue,BUILDING MATERIALS.GENERAL MATERIALS
29-JUL-2022,7014074,89.92,SCREWFIX,383257,Local Environmental Services,Central Services,102,Supplies and Services,504,Equipment,5023,Revenue,BUILDING MATERIALS.GENERAL MATERIALS
29-JUL-2022,7013988,32.29,ONE BELOW,399117,Local Environmental Services,Environmental & Regulatory Services,105,Supplies and Services,504,Equipment,5023,Revenue,CATERING.FOOD & BEVERAGES
29-JUL-2022,7014045,52.47,HALFORDS,347854,Local Environmental Services,Environmental & Regulatory Services,105,Supplies and Services,504,Equipment,5023,Revenue,FINANCIAL SERVICES.FINANCIAL SERVICES
29-JUL-2022,7014045,66.66,HALFORDS,347854,Local Environmental Services,Environmental & Regulatory Services,105,Supplies and Services,504,Equipment,5023,Revenue,FINANCIAL SERVICES.FINANCIAL SERVICES
29-JUL-2022,7014045,66.66,HALFORDS,347854,Local Environmental Services,Environmental & Regulatory Services,105,Supplies and Services,504,Equipment,5023,Revenue,FINANCIAL SERVICES.FINANCIAL SERVICES
29-JUL-2022,7014045,74.5,HALFORDS,347854,Local Environmental Services,Environmental & Regulatory Services,105,Supplies and Services,504,Equipment,5023,Revenue,FINANCIAL SERVICES.FINANCIAL SERVICES
29-JUL-2022,7014049,16.67,TESCO STORES LTD,336585,Local Environmental Services,Environmental & Regulatory Services,105,Supplies and Services,504,Equipment,5023,Revenue,CATERING.FOOD & BEVERAGES
29-JUL-2022,7014074,0.01,SCREWFIX,383257,Local Environmental Services,Environmental & Regulatory Services,105,Supplies and Services,504,Equipment,5023,Revenue,BUILDING MATERIALS.GENERAL MATERIALS
29-JUL-2022,7014074,11.63,SCREWFIX,383257,Local Environmental Services,Environmental & Regulatory Services,105,Supplies and Services,504,Equipment,5023,Revenue,BUILDING MATERIALS.GENERAL MATERIALS
29-JUL-2022,7014074,22.47,SCREWFIX,383257,Local Environmental Services,Environmental & Regulatory Services,105,Supplies and Services,504,Equipment,5023,Revenue,BUILDING MATERIALS.GENERAL MATERIALS
29-JUL-2022,7013952,149.84,HARVEY SUPPLIES,403355,Local Environmental Services,Highways & Transport Services,107,Supplies and Services,504,Equipment,5023,Revenue,NON INFLUENCIBLE.NON INFLUENCIBLE
29-JUL-2022,7013962,149.17,BIKE4HEALTH,394750,Local Environmental Services,Environmental & Regulatory Services,105,Supplies and Services,504,Equipment,5023,Revenue,HUMAN RESOURCES.TRAINING & CONFERENCES
29-JUL-2022,7014037,51.33,WILKO RETAIL LIMITED,280813,Local Environmental Services,Environmental & Regulatory Services,105,Supplies and Services,504,Equipment,5023,Revenue,NON INFLUENCIBLE.REDECORATION GRANTS
29-JUL-2022,7014115,59.04,B & Q (205037),205037,Local Environmental Services,Environmental & Regulatory Services,105,Supplies and Services,504,Equipment,5023,Revenue,BUILDING MATERIALS.GENERAL MATERIALS
29-JUL-2022,7014115,76.38,B & Q (205037),205037,Local Environmental Services,Environmental & Regulatory Services,105,Supplies and Services,504,Equipment,5023,Revenue,BUILDING MATERIALS.GENERAL MATERIALS
29-JUL-2022,7014052,27.89,ISSUU PUBLISHING,383654,Regeneration & Economic Development,Cultural & Related Services,104,Supplies and Services,504,Miscellaneous Expenses,5034,Revenue,SUBSCRIPTIONS & PUBLICATIONS.BOOKS & PUBLICATIONS
29-JUL-2022,7013973,27.57,MAILCHIMP,401698,Regeneration & Economic Development,Planning Services ,110,Supplies and Services,504,"Printing, Stationery and General Office Expenses",5026,Revenue,NON INFLUENCIBLE.NON INFLUENCIBLE
29-JUL-2022,7014075,197.14,CANVA.COM,398583,Regeneration & Economic Development,Planning Services ,110,Supplies and Services,504,"Printing, Stationery and General Office Expenses",5026,Revenue,PHOTOGRAPHY.PHOTOGRAPHY
29-JUL-2022,7013949,88.34,OEPPWEBECOM,403358,Fleet Management,Unallocated,N/A,Transport,503,Direct Transport Costs,5016,Revenue,NON INFLUENCIBLE.NON INFLUENCIBLE
29-JUL-2022,7013993,1845,DVSA,392128,Fleet Management,Unallocated,N/A,Transport,503,Direct Transport Costs,5016,Revenue,NON INFLUENCIBLE.PUBLIC SECTOR
29-JUL-2022,7014032,167.5,DVLA,322925,Fleet Management,Unallocated,N/A,Transport,503,Direct Transport Costs,5016,Revenue,NON INFLUENCIBLE.NON INFLUENCIBLE
29-JUL-2022,7014032,292.5,DVLA,322925,Fleet Management,Unallocated,N/A,Transport,503,Direct Transport Costs,5016,Revenue,NON INFLUENCIBLE.NON INFLUENCIBLE
29-JUL-2022,7014032,292.5,DVLA,322925,Fleet Management,Unallocated,N/A,Transport,503,Direct Transport Costs,5016,Revenue,NON INFLUENCIBLE.NON INFLUENCIBLE
29-JUL-2022,7014032,292.5,DVLA,322925,Fleet Management,Unallocated,N/A,Transport,503,Direct Transport Costs,5016,Revenue,NON INFLUENCIBLE.NON INFLUENCIBLE
29-JUL-2022,7014032,292.5,DVLA,322925,Fleet Management,Unallocated,N/A,Transport,503,Direct Transport Costs,5016,Revenue,NON INFLUENCIBLE.NON INFLUENCIBLE
29-JUL-2022,7014032,292.5,DVLA,322925,Fleet Management,Unallocated,N/A,Transport,503,Direct Transport Costs,5016,Revenue,NON INFLUENCIBLE.NON INFLUENCIBLE
29-JUL-2022,7014032,292.5,DVLA,322925,Fleet Management,Unallocated,N/A,Transport,503,Direct Transport Costs,5016,Revenue,NON INFLUENCIBLE.NON INFLUENCIBLE
29-JUL-2022,7014032,292.5,DVLA,322925,Fleet Management,Unallocated,N/A,Transport,503,Direct Transport Costs,5016,Revenue,NON INFLUENCIBLE.NON INFLUENCIBLE
29-JUL-2022,7014032,297.5,DVLA,322925,Fleet Management,Unallocated,N/A,Transport,503,Direct Transport Costs,5016,Revenue,NON INFLUENCIBLE.NON INFLUENCIBLE
29-JUL-2022,7014032,297.5,DVLA,322925,Fleet Management,Unallocated,N/A,Transport,503,Direct Transport Costs,5016,Revenue,NON INFLUENCIBLE.NON INFLUENCIBLE
29-JUL-2022,7013983,60,FORMATION NE LTD,399560,Commissioning & Asset Management,Unallocated,N/A,Supplies and Services,504,Equipment,5023,Revenue,REPAIRS & MAINTENANCE.REPAIRS & MAINTENANCE
29-JUL-2022,7013983,80,FORMATION NE LTD,399560,Commissioning & Asset Management,Unallocated,N/A,Supplies and Services,504,Equipment,5023,Revenue,REPAIRS & MAINTENANCE.REPAIRS & MAINTENANCE
29-JUL-2022,7013983,96,FORMATION NE LTD,399560,Commissioning & Asset Management,Unallocated,N/A,Supplies and Services,504,Equipment,5023,Revenue,REPAIRS & MAINTENANCE.REPAIRS & MAINTENANCE
29-JUL-2022,7013983,216,FORMATION NE LTD,399560,Commissioning & Asset Management,Unallocated,N/A,Supplies and Services,504,Equipment,5023,Revenue,REPAIRS & MAINTENANCE.REPAIRS & MAINTENANCE
29-JUL-2022,7013986,0.46,TOTAL PRODUCE GATESHEAD,399244,Local Environmental Services,Adult Social Care,101,Supplies and Services,504,Equipment,5023,Revenue,CATERING.FOOD & BEVERAGES
29-JUL-2022,7013986,0.73,TOTAL PRODUCE GATESHEAD,399244,Local Environmental Services,Adult Social Care,101,Supplies and Services,504,Equipment,5023,Revenue,CATERING.FOOD & BEVERAGES
29-JUL-2022,7013986,0.85,TOTAL PRODUCE GATESHEAD,399244,Local Environmental Services,Adult Social Care,101,Supplies and Services,504,Equipment,5023,Revenue,CATERING.FOOD & BEVERAGES
29-JUL-2022,7013986,0.85,TOTAL PRODUCE GATESHEAD,399244,Local Environmental Services,Adult Social Care,101,Supplies and Services,504,Equipment,5023,Revenue,CATERING.FOOD & BEVERAGES
29-JUL-2022,7013986,0.85,TOTAL PRODUCE GATESHEAD,399244,Local Environmental Services,Adult Social Care,101,Supplies and Services,504,Equipment,5023,Revenue,CATERING.FOOD & BEVERAGES
29-JUL-2022,7013986,0.85,TOTAL PRODUCE GATESHEAD,399244,Local Environmental Services,Adult Social Care,101,Supplies and Services,504,Equipment,5023,Revenue,CATERING.FOOD & BEVERAGES
29-JUL-2022,7013986,0.85,TOTAL PRODUCE GATESHEAD,399244,Local Environmental Services,Adult Social Care,101,Supplies and Services,504,Equipment,5023,Revenue,CATERING.FOOD & BEVERAGES
29-JUL-2022,7013986,1,TOTAL PRODUCE GATESHEAD,399244,Local Environmental Services,Adult Social Care,101,Supplies and Services,504,Equipment,5023,Revenue,CATERING.FOOD & BEVERAGES
29-JUL-2022,7013986,1,TOTAL PRODUCE GATESHEAD,399244,Local Environmental Services,Adult Social Care,101,Supplies and Services,504,Equipment,5023,Revenue,CATERING.FOOD & BEVERAGES
29-JUL-2022,7013986,1.04,TOTAL PRODUCE GATESHEAD,399244,Local Environmental Services,Adult Social Care,101,Supplies and Services,504,Equipment,5023,Revenue,CATERING.FOOD & BEVERAGES
29-JUL-2022,7013986,1.04,TOTAL PRODUCE GATESHEAD,399244,Local Environmental Services,Adult Social Care,101,Supplies and Services,504,Equipment,5023,Revenue,CATERING.FOOD & BEVERAGES
29-JUL-2022,7013986,1.04,TOTAL PRODUCE GATESHEAD,399244,Local Environmental Services,Adult Social Care,101,Supplies and Services,504,Equipment,5023,Revenue,CATERING.FOOD & BEVERAGES
29-JUL-2022,7013986,1.04,TOTAL PRODUCE GATESHEAD,399244,Local Environmental Services,Adult Social Care,101,Supplies and Services,504,Equipment,5023,Revenue,CATERING.FOOD & BEVERAGES
29-JUL-2022,7013986,1.16,TOTAL PRODUCE GATESHEAD,399244,Local Environmental Services,Adult Social Care,101,Supplies and Services,504,Equipment,5023,Revenue,CATERING.FOOD & BEVERAGES
29-JUL-2022,7013986,1.32,TOTAL PRODUCE GATESHEAD,399244,Local Environmental Services,Adult Social Care,101,Supplies and Services,504,Equipment,5023,Revenue,CATERING.FOOD & BEVERAGES
29-JUL-2022,7013986,1.32,TOTAL PRODUCE GATESHEAD,399244,Local Environmental Services,Adult Social Care,101,Supplies and Services,504,Equipment,5023,Revenue,CATERING.FOOD & BEVERAGES
29-JUL-2022,7013986,1.32,TOTAL PRODUCE GATESHEAD,399244,Local Environmental Services,Adult Social Care,101,Supplies and Services,504,Equipment,5023,Revenue,CATERING.FOOD & BEVERAGES
29-JUL-2022,7013986,1.32,TOTAL PRODUCE GATESHEAD,399244,Local Environmental Services,Adult Social Care,101,Supplies and Services,504,Equipment,5023,Revenue,CATERING.FOOD & BEVERAGES
29-JUL-2022,7013986,1.32,TOTAL PRODUCE GATESHEAD,399244,Local Environmental Services,Adult Social Care,101,Supplies and Services,504,Equipment,5023,Revenue,CATERING.FOOD & BEVERAGES
29-JUL-2022,7013986,1.35,TOTAL PRODUCE GATESHEAD,399244,Local Environmental Services,Adult Social Care,101,Supplies and Services,504,Equipment,5023,Revenue,CATERING.FOOD & BEVERAGES
29-JUL-2022,7013986,1.35,TOTAL PRODUCE GATESHEAD,399244,Local Environmental Services,Adult Social Care,101,Supplies and Services,504,Equipment,5023,Revenue,CATERING.FOOD & BEVERAGES
29-JUL-2022,7013986,1.35,TOTAL PRODUCE GATESHEAD,399244,Local Environmental Services,Adult Social Care,101,Supplies and Services,504,Equipment,5023,Revenue,CATERING.FOOD & BEVERAGES
29-JUL-2022,7013986,1.35,TOTAL PRODUCE GATESHEAD,399244,Local Environmental Services,Adult Social Care,101,Supplies and Services,504,Equipment,5023,Revenue,CATERING.FOOD & BEVERAGES
29-JUL-2022,7013986,1.35,TOTAL PRODUCE GATESHEAD,399244,Local Environmental Services,Adult Social Care,101,Supplies and Services,504,Equipment,5023,Revenue,CATERING.FOOD & BEVERAGES
29-JUL-2022,7013986,1.35,TOTAL PRODUCE GATESHEAD,399244,Local Environmental Services,Adult Social Care,101,Supplies and Services,504,Equipment,5023,Revenue,CATERING.FOOD & BEVERAGES
29-JUL-2022,7013986,1.35,TOTAL PRODUCE GATESHEAD,399244,Local Environmental Services,Adult Social Care,101,Supplies and Services,504,Equipment,5023,Revenue,CATERING.FOOD & BEVERAGES
29-JUL-2022,7013986,1.35,TOTAL PRODUCE GATESHEAD,399244,Local Environmental Services,Adult Social Care,101,Supplies and Services,504,Equipment,5023,Revenue,CATERING.FOOD & BEVERAGES
29-JUL-2022,7013986,1.43,TOTAL PRODUCE GATESHEAD,399244,Local Environmental Services,Adult Social Care,101,Supplies and Services,504,Equipment,5023,Revenue,CATERING.FOOD & BEVERAGES
29-JUL-2022,7013986,1.43,TOTAL PRODUCE GATESHEAD,399244,Local Environmental Services,Adult Social Care,101,Supplies and Services,504,Equipment,5023,Revenue,CATERING.FOOD & BEVERAGES
29-JUL-2022,7013986,1.43,TOTAL PRODUCE GATESHEAD,399244,Local Environmental Services,Adult Social Care,101,Supplies and Services,504,Equipment,5023,Revenue,CATERING.FOOD & BEVERAGES
29-JUL-2022,7013986,1.49,TOTAL PRODUCE GATESHEAD,399244,Local Environmental Services,Adult Social Care,101,Supplies and Services,504,Equipment,5023,Revenue,CATERING.FOOD & BEVERAGES
29-JUL-2022,7013986,1.54,TOTAL PRODUCE GATESHEAD,399244,Local Environmental Services,Adult Social Care,101,Supplies and Services,504,Equipment,5023,Revenue,CATERING.FOOD & BEVERAGES
29-JUL-2022,7013986,1.54,TOTAL PRODUCE GATESHEAD,399244,Local Environmental Services,Adult Social Care,101,Supplies and Services,504,Equipment,5023,Revenue,CATERING.FOOD & BEVERAGES
29-JUL-2022,7013986,1.54,TOTAL PRODUCE GATESHEAD,399244,Local Environmental Services,Adult Social Care,101,Supplies and Services,504,Equipment,5023,Revenue,CATERING.FOOD & BEVERAGES
29-JUL-2022,7013986,1.57,TOTAL PRODUCE GATESHEAD,399244,Local Environmental Services,Adult Social Care,101,Supplies and Services,504,Equipment,5023,Revenue,CATERING.FOOD & BEVERAGES
29-JUL-2022,7013986,1.63,TOTAL PRODUCE GATESHEAD,399244,Local Environmental Services,Adult Social Care,101,Supplies and Services,504,Equipment,5023,Revenue,CATERING.FOOD & BEVERAGES
29-JUL-2022,7013986,1.63,TOTAL PRODUCE GATESHEAD,399244,Local Environmental Services,Adult Social Care,101,Supplies and Services,504,Equipment,5023,Revenue,CATERING.FOOD & BEVERAGES
29-JUL-2022,7013986,1.63,TOTAL PRODUCE GATESHEAD,399244,Local Environmental Services,Adult Social Care,101,Supplies and Services,504,Equipment,5023,Revenue,CATERING.FOOD & BEVERAGES
29-JUL-2022,7013986,1.63,TOTAL PRODUCE GATESHEAD,399244,Local Environmental Services,Adult Social Care,101,Supplies and Services,504,Equipment,5023,Revenue,CATERING.FOOD & BEVERAGES
29-JUL-2022,7013986,1.7,TOTAL PRODUCE GATESHEAD,399244,Local Environmental Services,Adult Social Care,101,Supplies and Services,504,Equipment,5023,Revenue,CATERING.FOOD & BEVERAGES
29-JUL-2022,7013986,1.7,TOTAL PRODUCE GATESHEAD,399244,Local Environmental Services,Adult Social Care,101,Supplies and Services,504,Equipment,5023,Revenue,CATERING.FOOD & BEVERAGES
29-JUL-2022,7013986,2.3,TOTAL PRODUCE GATESHEAD,399244,Local Environmental Services,Adult Social Care,101,Supplies and Services,504,Equipment,5023,Revenue,CATERING.FOOD & BEVERAGES
29-JUL-2022,7013986,2.31,TOTAL PRODUCE GATESHEAD,399244,Local Environmental Services,Adult Social Care,101,Supplies and Services,504,Equipment,5023,Revenue,CATERING.FOOD & BEVERAGES
29-JUL-2022,7013986,2.31,TOTAL PRODUCE GATESHEAD,399244,Local Environmental Services,Adult Social Care,101,Supplies and Services,504,Equipment,5023,Revenue,CATERING.FOOD & BEVERAGES
29-JUL-2022,7013986,2.31,TOTAL PRODUCE GATESHEAD,399244,Local Environmental Services,Adult Social Care,101,Supplies and Services,504,Equipment,5023,Revenue,CATERING.FOOD & BEVERAGES
29-JUL-2022,7013986,2.37,TOTAL PRODUCE GATESHEAD,399244,Local Environmental Services,Adult Social Care,101,Supplies and Services,504,Equipment,5023,Revenue,CATERING.FOOD & BEVERAGES
29-JUL-2022,7013986,2.55,TOTAL PRODUCE GATESHEAD,399244,Local Environmental Services,Adult Social Care,101,Supplies and Services,504,Equipment,5023,Revenue,CATERING.FOOD & BEVERAGES
29-JUL-2022,7013986,2.68,TOTAL PRODUCE GATESHEAD,399244,Local Environmental Services,Adult Social Care,101,Supplies and Services,504,Equipment,5023,Revenue,CATERING.FOOD & BEVERAGES
29-JUL-2022,7013986,2.68,TOTAL PRODUCE GATESHEAD,399244,Local Environmental Services,Adult Social Care,101,Supplies and Services,504,Equipment,5023,Revenue,CATERING.FOOD & BEVERAGES
29-JUL-2022,7013986,2.68,TOTAL PRODUCE GATESHEAD,399244,Local Environmental Services,Adult Social Care,101,Supplies and Services,504,Equipment,5023,Revenue,CATERING.FOOD & BEVERAGES
29-JUL-2022,7013986,2.84,TOTAL PRODUCE GATESHEAD,399244,Local Environmental Services,Adult Social Care,101,Supplies and Services,504,Equipment,5023,Revenue,CATERING.FOOD & BEVERAGES
29-JUL-2022,7013986,2.95,TOTAL PRODUCE GATESHEAD,399244,Local Environmental Services,Adult Social Care,101,Supplies and Services,504,Equipment,5023,Revenue,CATERING.FOOD & BEVERAGES
29-JUL-2022,7013986,2.95,TOTAL PRODUCE GATESHEAD,399244,Local Environmental Services,Adult Social Care,101,Supplies and Services,504,Equipment,5023,Revenue,CATERING.FOOD & BEVERAGES
29-JUL-2022,7013986,2.98,TOTAL PRODUCE GATESHEAD,399244,Local Environmental Services,Adult Social Care,101,Supplies and Services,504,Equipment,5023,Revenue,CATERING.FOOD & BEVERAGES
29-JUL-2022,7013986,2.98,TOTAL PRODUCE GATESHEAD,399244,Local Environmental Services,Adult Social Care,101,Supplies and Services,504,Equipment,5023,Revenue,CATERING.FOOD & BEVERAGES
29-JUL-2022,7013986,3.08,TOTAL PRODUCE GATESHEAD,399244,Local Environmental Services,Adult Social Care,101,Supplies and Services,504,Equipment,5023,Revenue,CATERING.FOOD & BEVERAGES
29-JUL-2022,7013986,3.08,TOTAL PRODUCE GATESHEAD,399244,Local Environmental Services,Adult Social Care,101,Supplies and Services,504,Equipment,5023,Revenue,CATERING.FOOD & BEVERAGES
29-JUL-2022,7013986,3.12,TOTAL PRODUCE GATESHEAD,399244,Local Environmental Services,Adult Social Care,101,Supplies and Services,504,Equipment,5023,Revenue,CATERING.FOOD & BEVERAGES
29-JUL-2022,7013986,3.12,TOTAL PRODUCE GATESHEAD,399244,Local Environmental Services,Adult Social Care,101,Supplies and Services,504,Equipment,5023,Revenue,CATERING.FOOD & BEVERAGES
29-JUL-2022,7013986,3.14,TOTAL PRODUCE GATESHEAD,399244,Local Environmental Services,Adult Social Care,101,Supplies and Services,504,Equipment,5023,Revenue,CATERING.FOOD & BEVERAGES
29-JUL-2022,7013986,3.14,TOTAL PRODUCE GATESHEAD,399244,Local Environmental Services,Adult Social Care,101,Supplies and Services,504,Equipment,5023,Revenue,CATERING.FOOD & BEVERAGES
29-JUL-2022,7013986,3.26,TOTAL PRODUCE GATESHEAD,399244,Local Environmental Services,Adult Social Care,101,Supplies and Services,504,Equipment,5023,Revenue,CATERING.FOOD & BEVERAGES
29-JUL-2022,7013986,3.4,TOTAL PRODUCE GATESHEAD,399244,Local Environmental Services,Adult Social Care,101,Supplies and Services,504,Equipment,5023,Revenue,CATERING.FOOD & BEVERAGES
29-JUL-2022,7013986,3.79,TOTAL PRODUCE GATESHEAD,399244,Local Environmental Services,Adult Social Care,101,Supplies and Services,504,Equipment,5023,Revenue,CATERING.FOOD & BEVERAGES
29-JUL-2022,7013986,4.02,TOTAL PRODUCE GATESHEAD,399244,Local Environmental Services,Adult Social Care,101,Supplies and Services,504,Equipment,5023,Revenue,CATERING.FOOD & BEVERAGES
29-JUL-2022,7013986,4.18,TOTAL PRODUCE GATESHEAD,399244,Local Environmental Services,Adult Social Care,101,Supplies and Services,504,Equipment,5023,Revenue,CATERING.FOOD & BEVERAGES
29-JUL-2022,7013986,4.22,TOTAL PRODUCE GATESHEAD,399244,Local Environmental Services,Adult Social Care,101,Supplies and Services,504,Equipment,5023,Revenue,CATERING.FOOD & BEVERAGES
29-JUL-2022,7013986,4.22,TOTAL PRODUCE GATESHEAD,399244,Local Environmental Services,Adult Social Care,101,Supplies and Services,504,Equipment,5023,Revenue,CATERING.FOOD & BEVERAGES
29-JUL-2022,7013986,4.47,TOTAL PRODUCE GATESHEAD,399244,Local Environmental Services,Adult Social Care,101,Supplies and Services,504,Equipment,5023,Revenue,CATERING.FOOD & BEVERAGES
29-JUL-2022,7013986,4.47,TOTAL PRODUCE GATESHEAD,399244,Local Environmental Services,Adult Social Care,101,Supplies and Services,504,Equipment,5023,Revenue,CATERING.FOOD & BEVERAGES
29-JUL-2022,7013986,4.62,TOTAL PRODUCE GATESHEAD,399244,Local Environmental Services,Adult Social Care,101,Supplies and Services,504,Equipment,5023,Revenue,CATERING.FOOD & BEVERAGES
29-JUL-2022,7013986,4.62,TOTAL PRODUCE GATESHEAD,399244,Local Environmental Services,Adult Social Care,101,Supplies and Services,504,Equipment,5023,Revenue,CATERING.FOOD & BEVERAGES
29-JUL-2022,7013986,4.62,TOTAL PRODUCE GATESHEAD,399244,Local Environmental Services,Adult Social Care,101,Supplies and Services,504,Equipment,5023,Revenue,CATERING.FOOD & BEVERAGES
29-JUL-2022,7013986,4.62,TOTAL PRODUCE GATESHEAD,399244,Local Environmental Services,Adult Social Care,101,Supplies and Services,504,Equipment,5023,Revenue,CATERING.FOOD & BEVERAGES
29-JUL-2022,7013986,4.62,TOTAL PRODUCE GATESHEAD,399244,Local Environmental Services,Adult Social Care,101,Supplies and Services,504,Equipment,5023,Revenue,CATERING.FOOD & BEVERAGES
29-JUL-2022,7013986,4.62,TOTAL PRODUCE GATESHEAD,399244,Local Environmental Services,Adult Social Care,101,Supplies and Services,504,Equipment,5023,Revenue,CATERING.FOOD & BEVERAGES
29-JUL-2022,7013986,4.71,TOTAL PRODUCE GATESHEAD,399244,Local Environmental Services,Adult Social Care,101,Supplies and Services,504,Equipment,5023,Revenue,CATERING.FOOD & BEVERAGES
29-JUL-2022,7013986,5.25,TOTAL PRODUCE GATESHEAD,399244,Local Environmental Services,Adult Social Care,101,Supplies and Services,504,Equipment,5023,Revenue,CATERING.FOOD & BEVERAGES
29-JUL-2022,7013986,5.36,TOTAL PRODUCE GATESHEAD,399244,Local Environmental Services,Adult Social Care,101,Supplies and Services,504,Equipment,5023,Revenue,CATERING.FOOD & BEVERAGES
29-JUL-2022,7013986,5.36,TOTAL PRODUCE GATESHEAD,399244,Local Environmental Services,Adult Social Care,101,Supplies and Services,504,Equipment,5023,Revenue,CATERING.FOOD & BEVERAGES
29-JUL-2022,7013986,5.36,TOTAL PRODUCE GATESHEAD,399244,Local Environmental Services,Adult Social Care,101,Supplies and Services,504,Equipment,5023,Revenue,CATERING.FOOD & BEVERAGES
29-JUL-2022,7013986,5.36,TOTAL PRODUCE GATESHEAD,399244,Local Environmental Services,Adult Social Care,101,Supplies and Services,504,Equipment,5023,Revenue,CATERING.FOOD & BEVERAGES
29-JUL-2022,7013986,5.62,TOTAL PRODUCE GATESHEAD,399244,Local Environmental Services,Adult Social Care,101,Supplies and Services,504,Equipment,5023,Revenue,CATERING.FOOD & BEVERAGES
29-JUL-2022,7013986,5.96,TOTAL PRODUCE GATESHEAD,399244,Local Environmental Services,Adult Social Care,101,Supplies and Services,504,Equipment,5023,Revenue,CATERING.FOOD & BEVERAGES
29-JUL-2022,7013986,6.16,TOTAL PRODUCE GATESHEAD,399244,Local Environmental Services,Adult Social Care,101,Supplies and Services,504,Equipment,5023,Revenue,CATERING.FOOD & BEVERAGES
29-JUL-2022,7013986,6.28,TOTAL PRODUCE GATESHEAD,399244,Local Environmental Services,Adult Social Care,101,Supplies and Services,504,Equipment,5023,Revenue,CATERING.FOOD & BEVERAGES
29-JUL-2022,7013986,6.28,TOTAL PRODUCE GATESHEAD,399244,Local Environmental Services,Adult Social Care,101,Supplies and Services,504,Equipment,5023,Revenue,CATERING.FOOD & BEVERAGES
29-JUL-2022,7013986,6.28,TOTAL PRODUCE GATESHEAD,399244,Local Environmental Services,Adult Social Care,101,Supplies and Services,504,Equipment,5023,Revenue,CATERING.FOOD & BEVERAGES
29-JUL-2022,7013986,6.28,TOTAL PRODUCE GATESHEAD,399244,Local Environmental Services,Adult Social Care,101,Supplies and Services,504,Equipment,5023,Revenue,CATERING.FOOD & BEVERAGES
29-JUL-2022,7013986,6.83,TOTAL PRODUCE GATESHEAD,399244,Local Environmental Services,Adult Social Care,101,Supplies and Services,504,Equipment,5023,Revenue,CATERING.FOOD & BEVERAGES
29-JUL-2022,7013986,6.93,TOTAL PRODUCE GATESHEAD,399244,Local Environmental Services,Adult Social Care,101,Supplies and Services,504,Equipment,5023,Revenue,CATERING.FOOD & BEVERAGES
29-JUL-2022,7013986,6.93,TOTAL PRODUCE GATESHEAD,399244,Local Environmental Services,Adult Social Care,101,Supplies and Services,504,Equipment,5023,Revenue,CATERING.FOOD & BEVERAGES
29-JUL-2022,7013986,7.7,TOTAL PRODUCE GATESHEAD,399244,Local Environmental Services,Adult Social Care,101,Supplies and Services,504,Equipment,5023,Revenue,CATERING.FOOD & BEVERAGES
29-JUL-2022,7013986,7.85,TOTAL PRODUCE GATESHEAD,399244,Local Environmental Services,Adult Social Care,101,Supplies and Services,504,Equipment,5023,Revenue,CATERING.FOOD & BEVERAGES
29-JUL-2022,7013986,8.04,TOTAL PRODUCE GATESHEAD,399244,Local Environmental Services,Adult Social Care,101,Supplies and Services,504,Equipment,5023,Revenue,CATERING.FOOD & BEVERAGES
29-JUL-2022,7013986,9,TOTAL PRODUCE GATESHEAD,399244,Local Environmental Services,Adult Social Care,101,Supplies and Services,504,Equipment,5023,Revenue,CATERING.FOOD & BEVERAGES
29-JUL-2022,7013986,9,TOTAL PRODUCE GATESHEAD,399244,Local Environmental Services,Adult Social Care,101,Supplies and Services,504,Equipment,5023,Revenue,CATERING.FOOD & BEVERAGES
29-JUL-2022,7013986,9,TOTAL PRODUCE GATESHEAD,399244,Local Environmental Services,Adult Social Care,101,Supplies and Services,504,Equipment,5023,Revenue,CATERING.FOOD & BEVERAGES
29-JUL-2022,7013986,9.05,TOTAL PRODUCE GATESHEAD,399244,Local Environmental Services,Adult Social Care,101,Supplies and Services,504,Equipment,5023,Revenue,CATERING.FOOD & BEVERAGES
29-JUL-2022,7013986,9.05,TOTAL PRODUCE GATESHEAD,399244,Local Environmental Services,Adult Social Care,101,Supplies and Services,504,Equipment,5023,Revenue,CATERING.FOOD & BEVERAGES
29-JUL-2022,7013986,9.05,TOTAL PRODUCE GATESHEAD,399244,Local Environmental Services,Adult Social Care,101,Supplies and Services,504,Equipment,5023,Revenue,CATERING.FOOD & BEVERAGES
29-JUL-2022,7013986,9.42,TOTAL PRODUCE GATESHEAD,399244,Local Environmental Services,Adult Social Care,101,Supplies and Services,504,Equipment,5023,Revenue,CATERING.FOOD & BEVERAGES
29-JUL-2022,7013986,10.5,TOTAL PRODUCE GATESHEAD,399244,Local Environmental Services,Adult Social Care,101,Supplies and Services,504,Equipment,5023,Revenue,CATERING.FOOD & BEVERAGES
29-JUL-2022,7013986,10.5,TOTAL PRODUCE GATESHEAD,399244,Local Environmental Services,Adult Social Care,101,Supplies and Services,504,Equipment,5023,Revenue,CATERING.FOOD & BEVERAGES
29-JUL-2022,7013986,12.54,TOTAL PRODUCE GATESHEAD,399244,Local Environmental Services,Adult Social Care,101,Supplies and Services,504,Equipment,5023,Revenue,CATERING.FOOD & BEVERAGES
29-JUL-2022,7013986,12.54,TOTAL PRODUCE GATESHEAD,399244,Local Environmental Services,Adult Social Care,101,Supplies and Services,504,Equipment,5023,Revenue,CATERING.FOOD & BEVERAGES
29-JUL-2022,7013986,12.54,TOTAL PRODUCE GATESHEAD,399244,Local Environmental Services,Adult Social Care,101,Supplies and Services,504,Equipment,5023,Revenue,CATERING.FOOD & BEVERAGES
29-JUL-2022,7013986,13.67,TOTAL PRODUCE GATESHEAD,399244,Local Environmental Services,Adult Social Care,101,Supplies and Services,504,Equipment,5023,Revenue,CATERING.FOOD & BEVERAGES
29-JUL-2022,7013986,15.75,TOTAL PRODUCE GATESHEAD,399244,Local Environmental Services,Adult Social Care,101,Supplies and Services,504,Equipment,5023,Revenue,CATERING.FOOD & BEVERAGES
29-JUL-2022,7013986,15.75,TOTAL PRODUCE GATESHEAD,399244,Local Environmental Services,Adult Social Care,101,Supplies and Services,504,Equipment,5023,Revenue,CATERING.FOOD & BEVERAGES
29-JUL-2022,7013986,16.59,TOTAL PRODUCE GATESHEAD,399244,Local Environmental Services,Adult Social Care,101,Supplies and Services,504,Equipment,5023,Revenue,CATERING.FOOD & BEVERAGES
29-JUL-2022,7013986,16.59,TOTAL PRODUCE GATESHEAD,399244,Local Environmental Services,Adult Social Care,101,Supplies and Services,504,Equipment,5023,Revenue,CATERING.FOOD & BEVERAGES
29-JUL-2022,7013986,17.52,TOTAL PRODUCE GATESHEAD,399244,Local Environmental Services,Adult Social Care,101,Supplies and Services,504,Equipment,5023,Revenue,CATERING.FOOD & BEVERAGES
29-JUL-2022,7013986,18,TOTAL PRODUCE GATESHEAD,399244,Local Environmental Services,Adult Social Care,101,Supplies and Services,504,Equipment,5023,Revenue,CATERING.FOOD & BEVERAGES
29-JUL-2022,7013986,18,TOTAL PRODUCE GATESHEAD,399244,Local Environmental Services,Adult Social Care,101,Supplies and Services,504,Equipment,5023,Revenue,CATERING.FOOD & BEVERAGES
29-JUL-2022,7013986,18,TOTAL PRODUCE GATESHEAD,399244,Local Environmental Services,Adult Social Care,101,Supplies and Services,504,Equipment,5023,Revenue,CATERING.FOOD & BEVERAGES
29-JUL-2022,7013986,22.12,TOTAL PRODUCE GATESHEAD,399244,Local Environmental Services,Adult Social Care,101,Supplies and Services,504,Equipment,5023,Revenue,CATERING.FOOD & BEVERAGES
29-JUL-2022,7013986,22.12,TOTAL PRODUCE GATESHEAD,399244,Local Environmental Services,Adult Social Care,101,Supplies and Services,504,Equipment,5023,Revenue,CATERING.FOOD & BEVERAGES
29-JUL-2022,7013986,25.08,TOTAL PRODUCE GATESHEAD,399244,Local Environmental Services,Adult Social Care,101,Supplies and Services,504,Equipment,5023,Revenue,CATERING.FOOD & BEVERAGES
29-JUL-2022,7013986,25.08,TOTAL PRODUCE GATESHEAD,399244,Local Environmental Services,Adult Social Care,101,Supplies and Services,504,Equipment,5023,Revenue,CATERING.FOOD & BEVERAGES
29-JUL-2022,7013986,25.08,TOTAL PRODUCE GATESHEAD,399244,Local Environmental Services,Adult Social Care,101,Supplies and Services,504,Equipment,5023,Revenue,CATERING.FOOD & BEVERAGES
29-JUL-2022,7013986,25.08,TOTAL PRODUCE GATESHEAD,399244,Local Environmental Services,Adult Social Care,101,Supplies and Services,504,Equipment,5023,Revenue,CATERING.FOOD & BEVERAGES
29-JUL-2022,7013986,49.46,TOTAL PRODUCE GATESHEAD,399244,Local Environmental Services,Adult Social Care,101,Supplies and Services,504,Equipment,5023,Revenue,CATERING.FOOD & BEVERAGES
29-JUL-2022,7013986,71.57,TOTAL PRODUCE GATESHEAD,399244,Local Environmental Services,Adult Social Care,101,Supplies and Services,504,Equipment,5023,Revenue,CATERING.FOOD & BEVERAGES
29-JUL-2022,7014074,0.01,SCREWFIX,383257,Local Environmental Services,Adult Social Care,101,Supplies and Services,504,Equipment,5023,Revenue,BUILDING MATERIALS.GENERAL MATERIALS
29-JUL-2022,7014074,7.07,SCREWFIX,383257,Local Environmental Services,Adult Social Care,101,Supplies and Services,504,Equipment,5023,Revenue,BUILDING MATERIALS.GENERAL MATERIALS
29-JUL-2022,7014095,45.43,TOOLSTATION LTD,393689,Local Environmental Services,Adult Social Care,101,Supplies and Services,504,Equipment,5023,Revenue,HORTICULTURAL.TOOLS & EQUIPMENT
29-JUL-2022,7014106,4.2,BRAKES BROS LTD,358889,Local Environmental Services,Adult Social Care,101,Supplies and Services,504,Equipment,5023,Revenue,CATERING.FOOD & BEVERAGES
29-JUL-2022,7014106,4.2,BRAKES BROS LTD,358889,Local Environmental Services,Adult Social Care,101,Supplies and Services,504,Equipment,5023,Revenue,CATERING.FOOD & BEVERAGES
29-JUL-2022,7014106,6.37,BRAKES BROS LTD,358889,Local Environmental Services,Adult Social Care,101,Supplies and Services,504,Equipment,5023,Revenue,CATERING.FOOD & BEVERAGES
29-JUL-2022,7014106,7.57,BRAKES BROS LTD,358889,Local Environmental Services,Adult Social Care,101,Supplies and Services,504,Equipment,5023,Revenue,CATERING.FOOD & BEVERAGES
29-JUL-2022,7014106,8.47,BRAKES BROS LTD,358889,Local Environmental Services,Adult Social Care,101,Supplies and Services,504,Equipment,5023,Revenue,CATERING.FOOD & BEVERAGES
29-JUL-2022,7014106,10.88,BRAKES BROS LTD,358889,Local Environmental Services,Adult Social Care,101,Supplies and Services,504,Equipment,5023,Revenue,CATERING.FOOD & BEVERAGES
29-JUL-2022,7014106,10.88,BRAKES BROS LTD,358889,Local Environmental Services,Adult Social Care,101,Supplies and Services,504,Equipment,5023,Revenue,CATERING.FOOD & BEVERAGES
29-JUL-2022,7014106,11.75,BRAKES BROS LTD,358889,Local Environmental Services,Adult Social Care,101,Supplies and Services,504,Equipment,5023,Revenue,CATERING.FOOD & BEVERAGES
29-JUL-2022,7014106,16.77,BRAKES BROS LTD,358889,Local Environmental Services,Adult Social Care,101,Supplies and Services,504,Equipment,5023,Revenue,CATERING.FOOD & BEVERAGES
29-JUL-2022,7014106,20.67,BRAKES BROS LTD,358889,Local Environmental Services,Adult Social Care,101,Supplies and Services,504,Equipment,5023,Revenue,CATERING.FOOD & BEVERAGES
29-JUL-2022,7014106,20.84,BRAKES BROS LTD,358889,Local Environmental Services,Adult Social Care,101,Supplies and Services,504,Equipment,5023,Revenue,CATERING.FOOD & BEVERAGES
29-JUL-2022,7014106,20.84,BRAKES BROS LTD,358889,Local Environmental Services,Adult Social Care,101,Supplies and Services,504,Equipment,5023,Revenue,CATERING.FOOD & BEVERAGES
29-JUL-2022,7014106,20.84,BRAKES BROS LTD,358889,Local Environmental Services,Adult Social Care,101,Supplies and Services,504,Equipment,5023,Revenue,CATERING.FOOD & BEVERAGES
29-JUL-2022,7014106,21.76,BRAKES BROS LTD,358889,Local Environmental Services,Adult Social Care,101,Supplies and Services,504,Equipment,5023,Revenue,CATERING.FOOD & BEVERAGES
29-JUL-2022,7014106,22.49,BRAKES BROS LTD,358889,Local Environmental Services,Adult Social Care,101,Supplies and Services,504,Equipment,5023,Revenue,CATERING.FOOD & BEVERAGES
29-JUL-2022,7014106,22.49,BRAKES BROS LTD,358889,Local Environmental Services,Adult Social Care,101,Supplies and Services,504,Equipment,5023,Revenue,CATERING.FOOD & BEVERAGES
29-JUL-2022,7014106,22.49,BRAKES BROS LTD,358889,Local Environmental Services,Adult Social Care,101,Supplies and Services,504,Equipment,5023,Revenue,CATERING.FOOD & BEVERAGES
29-JUL-2022,7014106,22.79,BRAKES BROS LTD,358889,Local Environmental Services,Adult Social Care,101,Supplies and Services,504,Equipment,5023,Revenue,CATERING.FOOD & BEVERAGES
29-JUL-2022,7014106,23.5,BRAKES BROS LTD,358889,Local Environmental Services,Adult Social Care,101,Supplies and Services,504,Equipment,5023,Revenue,CATERING.FOOD & BEVERAGES
29-JUL-2022,7014106,23.5,BRAKES BROS LTD,358889,Local Environmental Services,Adult Social Care,101,Supplies and Services,504,Equipment,5023,Revenue,CATERING.FOOD & BEVERAGES
29-JUL-2022,7014106,25.15,BRAKES BROS LTD,358889,Local Environmental Services,Adult Social Care,101,Supplies and Services,504,Equipment,5023,Revenue,CATERING.FOOD & BEVERAGES
29-JUL-2022,7014106,25.15,BRAKES BROS LTD,358889,Local Environmental Services,Adult Social Care,101,Supplies and Services,504,Equipment,5023,Revenue,CATERING.FOOD & BEVERAGES
29-JUL-2022,7014106,26.09,BRAKES BROS LTD,358889,Local Environmental Services,Adult Social Care,101,Supplies and Services,504,Equipment,5023,Revenue,CATERING.FOOD & BEVERAGES
29-JUL-2022,7014106,26.09,BRAKES BROS LTD,358889,Local Environmental Services,Adult Social Care,101,Supplies and Services,504,Equipment,5023,Revenue,CATERING.FOOD & BEVERAGES
29-JUL-2022,7014106,26.47,BRAKES BROS LTD,358889,Local Environmental Services,Adult Social Care,101,Supplies and Services,504,Equipment,5023,Revenue,CATERING.FOOD & BEVERAGES
29-JUL-2022,7014106,26.47,BRAKES BROS LTD,358889,Local Environmental Services,Adult Social Care,101,Supplies and Services,504,Equipment,5023,Revenue,CATERING.FOOD & BEVERAGES
29-JUL-2022,7014106,26.47,BRAKES BROS LTD,358889,Local Environmental Services,Adult Social Care,101,Supplies and Services,504,Equipment,5023,Revenue,CATERING.FOOD & BEVERAGES
29-JUL-2022,7014106,26.47,BRAKES BROS LTD,358889,Local Environmental Services,Adult Social Care,101,Supplies and Services,504,Equipment,5023,Revenue,CATERING.FOOD & BEVERAGES
29-JUL-2022,7014106,31,BRAKES BROS LTD,358889,Local Environmental Services,Adult Social Care,101,Supplies and Services,504,Equipment,5023,Revenue,CATERING.FOOD & BEVERAGES
29-JUL-2022,7014106,41.19,BRAKES BROS LTD,358889,Local Environmental Services,Adult Social Care,101,Supplies and Services,504,Equipment,5023,Revenue,CATERING.FOOD & BEVERAGES
29-JUL-2022,7014106,41.34,BRAKES BROS LTD,358889,Local Environmental Services,Adult Social Care,101,Supplies and Services,504,Equipment,5023,Revenue,CATERING.FOOD & BEVERAGES
29-JUL-2022,7014106,51.67,BRAKES BROS LTD,358889,Local Environmental Services,Adult Social Care,101,Supplies and Services,504,Equipment,5023,Revenue,CATERING.FOOD & BEVERAGES
29-JUL-2022,7014106,51.67,BRAKES BROS LTD,358889,Local Environmental Services,Adult Social Care,101,Supplies and Services,504,Equipment,5023,Revenue,CATERING.FOOD & BEVERAGES
29-JUL-2022,7014106,51.67,BRAKES BROS LTD,358889,Local Environmental Services,Adult Social Care,101,Supplies and Services,504,Equipment,5023,Revenue,CATERING.FOOD & BEVERAGES
29-JUL-2022,7014106,82.38,BRAKES BROS LTD,358889,Local Environmental Services,Adult Social Care,101,Supplies and Services,504,Equipment,5023,Revenue,CATERING.FOOD & BEVERAGES
29-JUL-2022,7014110,2.8,ASDA STORES LIMITED,306530,Local Environmental Services,Adult Social Care,101,Supplies and Services,504,Equipment,5023,Revenue,CATERING.FOOD & BEVERAGES
29-JUL-2022,7014110,3.33,ASDA STORES LIMITED,306530,Local Environmental Services,Adult Social Care,101,Supplies and Services,504,Equipment,5023,Revenue,CATERING.FOOD & BEVERAGES
29-JUL-2022,7014110,3.33,ASDA STORES LIMITED,306530,Local Environmental Services,Adult Social Care,101,Supplies and Services,504,Equipment,5023,Revenue,CATERING.FOOD & BEVERAGES
29-JUL-2022,7014110,6,ASDA STORES LIMITED,306530,Local Environmental Services,Adult Social Care,101,Supplies and Services,504,Equipment,5023,Revenue,CATERING.FOOD & BEVERAGES
29-JUL-2022,7014110,6.33,ASDA STORES LIMITED,306530,Local Environmental Services,Adult Social Care,101,Supplies and Services,504,Equipment,5023,Revenue,CATERING.FOOD & BEVERAGES
29-JUL-2022,7014110,6.85,ASDA STORES LIMITED,306530,Local Environmental Services,Adult Social Care,101,Supplies and Services,504,Equipment,5023,Revenue,CATERING.FOOD & BEVERAGES
29-JUL-2022,7014110,10,ASDA STORES LIMITED,306530,Local Environmental Services,Adult Social Care,101,Supplies and Services,504,Equipment,5023,Revenue,CATERING.FOOD & BEVERAGES
29-JUL-2022,7014110,10.7,ASDA STORES LIMITED,306530,Local Environmental Services,Adult Social Care,101,Supplies and Services,504,Equipment,5023,Revenue,CATERING.FOOD & BEVERAGES
29-JUL-2022,7014110,15,ASDA STORES LIMITED,306530,Local Environmental Services,Adult Social Care,101,Supplies and Services,504,Equipment,5023,Revenue,CATERING.FOOD & BEVERAGES
29-JUL-2022,7014110,28.17,ASDA STORES LIMITED,306530,Local Environmental Services,Adult Social Care,101,Supplies and Services,504,Equipment,5023,Revenue,CATERING.FOOD & BEVERAGES
29-JUL-2022,7013953,499.98,FURNITURE IN STORE,403354,"Health, Education, Care and Safeguarding",Adult Social Care,101,Supplies and Services,504,Equipment,5023,Revenue,FURNITURE.DOMESTIC
29-JUL-2022,7013998,100.96,DUNELM LTD,391723,"Health, Education, Care and Safeguarding",Adult Social Care,101,Supplies and Services,504,Equipment,5023,Revenue,FURNITURE.SOFT FURNISHINGS
29-JUL-2022,7013959,7.92,NEW KENT HOTEL,312970,General Fund Housing,Housing Services,108,Third Party Payments,505,Private Contractors,5042,Revenue,
29-JUL-2022,7013959,14.71,NEW KENT HOTEL,312970,General Fund Housing,Housing Services,108,Third Party Payments,505,Private Contractors,5042,Revenue,
29-JUL-2022,7013959,71.67,NEW KENT HOTEL,312970,General Fund Housing,Housing Services,108,Third Party Payments,505,Private Contractors,5042,Revenue,
29-JUL-2022,7013959,100,NEW KENT HOTEL,312970,General Fund Housing,Housing Services,108,Third Party Payments,505,Private Contractors,5042,Revenue,
29-JUL-2022,7013959,186.67,NEW KENT HOTEL,312970,General Fund Housing,Housing Services,108,Third Party Payments,505,Private Contractors,5042,Revenue,
29-JUL-2022,7013975,58.33,THEMEL ROSEGUES,400318,General Fund Housing,Housing Services,108,Third Party Payments,505,Private Contractors,5042,Revenue,HUMAN RESOURCES.ACCOMMODATION
29-JUL-2022,7013975,87.5,THEMEL ROSEGUES,400318,General Fund Housing,Housing Services,108,Third Party Payments,505,Private Contractors,5042,Revenue,HUMAN RESOURCES.ACCOMMODATION
29-JUL-2022,7013975,204.17,THEMEL ROSEGUES,400318,General Fund Housing,Housing Services,108,Third Party Payments,505,Private Contractors,5042,Revenue,HUMAN RESOURCES.ACCOMMODATION
29-JUL-2022,7013975,204.17,THEMEL ROSEGUES,400318,General Fund Housing,Housing Services,108,Third Party Payments,505,Private Contractors,5042,Revenue,HUMAN RESOURCES.ACCOMMODATION
29-JUL-2022,7013975,204.17,THEMEL ROSEGUES,400318,General Fund Housing,Housing Services,108,Third Party Payments,505,Private Contractors,5042,Revenue,HUMAN RESOURCES.ACCOMMODATION
29-JUL-2022,7013975,204.17,THEMEL ROSEGUES,400318,General Fund Housing,Housing Services,108,Third Party Payments,505,Private Contractors,5042,Revenue,HUMAN RESOURCES.ACCOMMODATION
29-JUL-2022,7013975,475,THEMEL ROSEGUES,400318,General Fund Housing,Housing Services,108,Third Party Payments,505,Private Contractors,5042,Revenue,HUMAN RESOURCES.ACCOMMODATION
29-JUL-2022,7013975,554.17,THEMEL ROSEGUES,400318,General Fund Housing,Housing Services,108,Third Party Payments,505,Private Contractors,5042,Revenue,HUMAN RESOURCES.ACCOMMODATION
29-JUL-2022,7013977,115.83,ROOMZZZ LIMITED,399988,General Fund Housing,Housing Services,108,Third Party Payments,505,Private Contractors,5042,Revenue,HUMAN RESOURCES.ACCOMMODATION
29-JUL-2022,7013978,83.37,RAMANDA ENCORE,399987,General Fund Housing,Housing Services,108,Third Party Payments,505,Private Contractors,5042,Revenue,HUMAN RESOURCES.ACCOMMODATION
29-JUL-2022,7013978,196.52,RAMANDA ENCORE,399987,General Fund Housing,Housing Services,108,Third Party Payments,505,Private Contractors,5042,Revenue,HUMAN RESOURCES.ACCOMMODATION
29-JUL-2022,7013978,227.87,RAMANDA ENCORE,399987,General Fund Housing,Housing Services,108,Third Party Payments,505,Private Contractors,5042,Revenue,HUMAN RESOURCES.ACCOMMODATION
29-JUL-2022,7013978,274.89,RAMANDA ENCORE,399987,General Fund Housing,Housing Services,108,Third Party Payments,505,Private Contractors,5042,Revenue,HUMAN RESOURCES.ACCOMMODATION
29-JUL-2022,7013978,307.07,RAMANDA ENCORE,399987,General Fund Housing,Housing Services,108,Third Party Payments,505,Private Contractors,5042,Revenue,HUMAN RESOURCES.ACCOMMODATION
29-JUL-2022,7013978,404.54,RAMANDA ENCORE,399987,General Fund Housing,Housing Services,108,Third Party Payments,505,Private Contractors,5042,Revenue,HUMAN RESOURCES.ACCOMMODATION
29-JUL-2022,7013978,537.37,RAMANDA ENCORE,399987,General Fund Housing,Housing Services,108,Third Party Payments,505,Private Contractors,5042,Revenue,HUMAN RESOURCES.ACCOMMODATION
29-JUL-2022,7013985,-263.75,JURYS INN NEWCASTLE,366318,General Fund Housing,Housing Services,108,Third Party Payments,505,Private Contractors,5042,Revenue,
29-JUL-2022,7013985,22.67,JURYS INN NEWCASTLE,366318,General Fund Housing,Housing Services,108,Third Party Payments,505,Private Contractors,5042,Revenue,
29-JUL-2022,7013985,147.5,JURYS INN NEWCASTLE,366318,General Fund Housing,Housing Services,108,Third Party Payments,505,Private Contractors,5042,Revenue,
29-JUL-2022,7013985,306.67,JURYS INN NEWCASTLE,366318,General Fund Housing,Housing Services,108,Third Party Payments,505,Private Contractors,5042,Revenue,
29-JUL-2022,7014005,100,THE DORSET ARMS,340956,General Fund Housing,Housing Services,108,Third Party Payments,505,Private Contractors,5042,Revenue,HUMAN RESOURCES.ACCOMMODATION
29-JUL-2022,7014005,200,THE DORSET ARMS,340956,General Fund Housing,Housing Services,108,Third Party Payments,505,Private Contractors,5042,Revenue,HUMAN RESOURCES.ACCOMMODATION
29-JUL-2022,7014005,200,THE DORSET ARMS,340956,General Fund Housing,Housing Services,108,Third Party Payments,505,Private Contractors,5042,Revenue,HUMAN RESOURCES.ACCOMMODATION
29-JUL-2022,7014005,500,THE DORSET ARMS,340956,General Fund Housing,Housing Services,108,Third Party Payments,505,Private Contractors,5042,Revenue,HUMAN RESOURCES.ACCOMMODATION
29-JUL-2022,7014010,99.17,THE COUNTY HOTEL,273859,General Fund Housing,Housing Services,108,Third Party Payments,505,Private Contractors,5042,Revenue,HUMAN RESOURCES.TRAVEL & SUBSISTENCE
29-JUL-2022,7014054,-148.5,PREMIER INN,381529,General Fund Housing,Housing Services,108,Third Party Payments,505,Private Contractors,5042,Revenue,HUMAN RESOURCES.ACCOMMODATION
29-JUL-2022,7014054,-80.83,PREMIER INN,381529,General Fund Housing,Housing Services,108,Third Party Payments,505,Private Contractors,5042,Revenue,HUMAN RESOURCES.ACCOMMODATION
29-JUL-2022,7014054,-70.42,PREMIER INN,381529,General Fund Housing,Housing Services,108,Third Party Payments,505,Private Contractors,5042,Revenue,HUMAN RESOURCES.ACCOMMODATION
29-JUL-2022,7014054,-2.92,PREMIER INN,381529,General Fund Housing,Housing Services,108,Third Party Payments,505,Private Contractors,5042,Revenue,HUMAN RESOURCES.ACCOMMODATION
29-JUL-2022,7014054,8.75,PREMIER INN,381529,General Fund Housing,Housing Services,108,Third Party Payments,505,Private Contractors,5042,Revenue,HUMAN RESOURCES.ACCOMMODATION
29-JUL-2022,7014054,10.83,PREMIER INN,381529,General Fund Housing,Housing Services,108,Third Party Payments,505,Private Contractors,5042,Revenue,HUMAN RESOURCES.ACCOMMODATION
29-JUL-2022,7014054,52.92,PREMIER INN,381529,General Fund Housing,Housing Services,108,Third Party Payments,505,Private Contractors,5042,Revenue,HUMAN RESOURCES.ACCOMMODATION
29-JUL-2022,7014054,62.92,PREMIER INN,381529,General Fund Housing,Housing Services,108,Third Party Payments,505,Private Contractors,5042,Revenue,HUMAN RESOURCES.ACCOMMODATION
29-JUL-2022,7014054,65.42,PREMIER INN,381529,General Fund Housing,Housing Services,108,Third Party Payments,505,Private Contractors,5042,Revenue,HUMAN RESOURCES.ACCOMMODATION
29-JUL-2022,7014054,77.08,PREMIER INN,381529,General Fund Housing,Housing Services,108,Third Party Payments,505,Private Contractors,5042,Revenue,HUMAN RESOURCES.ACCOMMODATION
29-JUL-2022,7014054,80.83,PREMIER INN,381529,General Fund Housing,Housing Services,108,Third Party Payments,505,Private Contractors,5042,Revenue,HUMAN RESOURCES.ACCOMMODATION
29-JUL-2022,7014054,93.33,PREMIER INN,381529,General Fund Housing,Housing Services,108,Third Party Payments,505,Private Contractors,5042,Revenue,HUMAN RESOURCES.ACCOMMODATION
29-JUL-2022,7014054,126.67,PREMIER INN,381529,General Fund Housing,Housing Services,108,Third Party Payments,505,Private Contractors,5042,Revenue,HUMAN RESOURCES.ACCOMMODATION
29-JUL-2022,7014054,130.83,PREMIER INN,381529,General Fund Housing,Housing Services,108,Third Party Payments,505,Private Contractors,5042,Revenue,HUMAN RESOURCES.ACCOMMODATION
29-JUL-2022,7014054,133.75,PREMIER INN,381529,General Fund Housing,Housing Services,108,Third Party Payments,505,Private Contractors,5042,Revenue,HUMAN RESOURCES.ACCOMMODATION
29-JUL-2022,7014054,133.75,PREMIER INN,381529,General Fund Housing,Housing Services,108,Third Party Payments,505,Private Contractors,5042,Revenue,HUMAN RESOURCES.ACCOMMODATION
29-JUL-2022,7014054,137.08,PREMIER INN,381529,General Fund Housing,Housing Services,108,Third Party Payments,505,Private Contractors,5042,Revenue,HUMAN RESOURCES.ACCOMMODATION
29-JUL-2022,7014054,143.75,PREMIER INN,381529,General Fund Housing,Housing Services,108,Third Party Payments,505,Private Contractors,5042,Revenue,HUMAN RESOURCES.ACCOMMODATION
29-JUL-2022,7014054,159.58,PREMIER INN,381529,General Fund Housing,Housing Services,108,Third Party Payments,505,Private Contractors,5042,Revenue,HUMAN RESOURCES.ACCOMMODATION
29-JUL-2022,7014054,176.67,PREMIER INN,381529,General Fund Housing,Housing Services,108,Third Party Payments,505,Private Contractors,5042,Revenue,HUMAN RESOURCES.ACCOMMODATION
29-JUL-2022,7014054,193.75,PREMIER INN,381529,General Fund Housing,Housing Services,108,Third Party Payments,505,Private Contractors,5042,Revenue,HUMAN RESOURCES.ACCOMMODATION
29-JUL-2022,7014054,195.42,PREMIER INN,381529,General Fund Housing,Housing Services,108,Third Party Payments,505,Private Contractors,5042,Revenue,HUMAN RESOURCES.ACCOMMODATION
29-JUL-2022,7014054,198.33,PREMIER INN,381529,General Fund Housing,Housing Services,108,Third Party Payments,505,Private Contractors,5042,Revenue,HUMAN RESOURCES.ACCOMMODATION
29-JUL-2022,7014054,205.83,PREMIER INN,381529,General Fund Housing,Housing Services,108,Third Party Payments,505,Private Contractors,5042,Revenue,HUMAN RESOURCES.ACCOMMODATION
29-JUL-2022,7014054,209.58,PREMIER INN,381529,General Fund Housing,Housing Services,108,Third Party Payments,505,Private Contractors,5042,Revenue,HUMAN RESOURCES.ACCOMMODATION
29-JUL-2022,7014054,217.92,PREMIER INN,381529,General Fund Housing,Housing Services,108,Third Party Payments,505,Private Contractors,5042,Revenue,HUMAN RESOURCES.ACCOMMODATION
29-JUL-2022,7014054,236.25,PREMIER INN,381529,General Fund Housing,Housing Services,108,Third Party Payments,505,Private Contractors,5042,Revenue,HUMAN RESOURCES.ACCOMMODATION
29-JUL-2022,7014054,238.33,PREMIER INN,381529,General Fund Housing,Housing Services,108,Third Party Payments,505,Private Contractors,5042,Revenue,HUMAN RESOURCES.ACCOMMODATION
29-JUL-2022,7014054,240.83,PREMIER INN,381529,General Fund Housing,Housing Services,108,Third Party Payments,505,Private Contractors,5042,Revenue,HUMAN RESOURCES.ACCOMMODATION
29-JUL-2022,7014054,256.67,PREMIER INN,381529,General Fund Housing,Housing Services,108,Third Party Payments,505,Private Contractors,5042,Revenue,HUMAN RESOURCES.ACCOMMODATION
29-JUL-2022,7014054,265,PREMIER INN,381529,General Fund Housing,Housing Services,108,Third Party Payments,505,Private Contractors,5042,Revenue,HUMAN RESOURCES.ACCOMMODATION
29-JUL-2022,7014054,285,PREMIER INN,381529,General Fund Housing,Housing Services,108,Third Party Payments,505,Private Contractors,5042,Revenue,HUMAN RESOURCES.ACCOMMODATION
29-JUL-2022,7014054,294.58,PREMIER INN,381529,General Fund Housing,Housing Services,108,Third Party Payments,505,Private Contractors,5042,Revenue,HUMAN RESOURCES.ACCOMMODATION
29-JUL-2022,7014054,298.33,PREMIER INN,381529,General Fund Housing,Housing Services,108,Third Party Payments,505,Private Contractors,5042,Revenue,HUMAN RESOURCES.ACCOMMODATION
29-JUL-2022,7014054,313.33,PREMIER INN,381529,General Fund Housing,Housing Services,108,Third Party Payments,505,Private Contractors,5042,Revenue,HUMAN RESOURCES.ACCOMMODATION
29-JUL-2022,7014054,347.5,PREMIER INN,381529,General Fund Housing,Housing Services,108,Third Party Payments,505,Private Contractors,5042,Revenue,HUMAN RESOURCES.ACCOMMODATION
29-JUL-2022,7014054,351.25,PREMIER INN,381529,General Fund Housing,Housing Services,108,Third Party Payments,505,Private Contractors,5042,Revenue,HUMAN RESOURCES.ACCOMMODATION
29-JUL-2022,7014054,351.25,PREMIER INN,381529,General Fund Housing,Housing Services,108,Third Party Payments,505,Private Contractors,5042,Revenue,HUMAN RESOURCES.ACCOMMODATION
29-JUL-2022,7014054,466.25,PREMIER INN,381529,General Fund Housing,Housing Services,108,Third Party Payments,505,Private Contractors,5042,Revenue,HUMAN RESOURCES.ACCOMMODATION
29-JUL-2022,7014085,37.5,KENILWORTH HOTEL,396858,General Fund Housing,Housing Services,108,Third Party Payments,505,Private Contractors,5042,Revenue,HUMAN RESOURCES.ACCOMMODATION
29-JUL-2022,7014085,37.5,KENILWORTH HOTEL,396858,General Fund Housing,Housing Services,108,Third Party Payments,505,Private Contractors,5042,Revenue,HUMAN RESOURCES.ACCOMMODATION
29-JUL-2022,7014085,37.5,KENILWORTH HOTEL,396858,General Fund Housing,Housing Services,108,Third Party Payments,505,Private Contractors,5042,Revenue,HUMAN RESOURCES.ACCOMMODATION
29-JUL-2022,7014085,112.5,KENILWORTH HOTEL,396858,General Fund Housing,Housing Services,108,Third Party Payments,505,Private Contractors,5042,Revenue,HUMAN RESOURCES.ACCOMMODATION
29-JUL-2022,7014085,162.5,KENILWORTH HOTEL,396858,General Fund Housing,Housing Services,108,Third Party Payments,505,Private Contractors,5042,Revenue,HUMAN RESOURCES.ACCOMMODATION
29-JUL-2022,7014085,270.83,KENILWORTH HOTEL,396858,General Fund Housing,Housing Services,108,Third Party Payments,505,Private Contractors,5042,Revenue,HUMAN RESOURCES.ACCOMMODATION
29-JUL-2022,7014085,325,KENILWORTH HOTEL,396858,General Fund Housing,Housing Services,108,Third Party Payments,505,Private Contractors,5042,Revenue,HUMAN RESOURCES.ACCOMMODATION
29-JUL-2022,7014085,345.83,KENILWORTH HOTEL,396858,General Fund Housing,Housing Services,108,Third Party Payments,505,Private Contractors,5042,Revenue,HUMAN RESOURCES.ACCOMMODATION
29-JUL-2022,7014085,345.83,KENILWORTH HOTEL,396858,General Fund Housing,Housing Services,108,Third Party Payments,505,Private Contractors,5042,Revenue,HUMAN RESOURCES.ACCOMMODATION
29-JUL-2022,7014085,345.83,KENILWORTH HOTEL,396858,General Fund Housing,Housing Services,108,Third Party Payments,505,Private Contractors,5042,Revenue,HUMAN RESOURCES.ACCOMMODATION
29-JUL-2022,7014085,345.83,KENILWORTH HOTEL,396858,General Fund Housing,Housing Services,108,Third Party Payments,505,Private Contractors,5042,Revenue,HUMAN RESOURCES.ACCOMMODATION
29-JUL-2022,7014085,362.5,KENILWORTH HOTEL,396858,General Fund Housing,Housing Services,108,Third Party Payments,505,Private Contractors,5042,Revenue,HUMAN RESOURCES.ACCOMMODATION
29-JUL-2022,7014085,362.5,KENILWORTH HOTEL,396858,General Fund Housing,Housing Services,108,Third Party Payments,505,Private Contractors,5042,Revenue,HUMAN RESOURCES.ACCOMMODATION
29-JUL-2022,7014085,362.5,KENILWORTH HOTEL,396858,General Fund Housing,Housing Services,108,Third Party Payments,505,Private Contractors,5042,Revenue,HUMAN RESOURCES.ACCOMMODATION
29-JUL-2022,7014085,362.5,KENILWORTH HOTEL,396858,General Fund Housing,Housing Services,108,Third Party Payments,505,Private Contractors,5042,Revenue,HUMAN RESOURCES.ACCOMMODATION
29-JUL-2022,7014085,362.5,KENILWORTH HOTEL,396858,General Fund Housing,Housing Services,108,Third Party Payments,505,Private Contractors,5042,Revenue,HUMAN RESOURCES.ACCOMMODATION
29-JUL-2022,7014085,362.5,KENILWORTH HOTEL,396858,General Fund Housing,Housing Services,108,Third Party Payments,505,Private Contractors,5042,Revenue,HUMAN RESOURCES.ACCOMMODATION
29-JUL-2022,7014085,362.5,KENILWORTH HOTEL,396858,General Fund Housing,Housing Services,108,Third Party Payments,505,Private Contractors,5042,Revenue,HUMAN RESOURCES.ACCOMMODATION
29-JUL-2022,7014085,362.5,KENILWORTH HOTEL,396858,General Fund Housing,Housing Services,108,Third Party Payments,505,Private Contractors,5042,Revenue,HUMAN RESOURCES.ACCOMMODATION
29-JUL-2022,7014085,362.5,KENILWORTH HOTEL,396858,General Fund Housing,Housing Services,108,Third Party Payments,505,Private Contractors,5042,Revenue,HUMAN RESOURCES.ACCOMMODATION
29-JUL-2022,7014085,370.83,KENILWORTH HOTEL,396858,General Fund Housing,Housing Services,108,Third Party Payments,505,Private Contractors,5042,Revenue,HUMAN RESOURCES.ACCOMMODATION
29-JUL-2022,7014085,370.83,KENILWORTH HOTEL,396858,General Fund Housing,Housing Services,108,Third Party Payments,505,Private Contractors,5042,Revenue,HUMAN RESOURCES.ACCOMMODATION
29-JUL-2022,7014085,370.83,KENILWORTH HOTEL,396858,General Fund Housing,Housing Services,108,Third Party Payments,505,Private Contractors,5042,Revenue,HUMAN RESOURCES.ACCOMMODATION
29-JUL-2022,7014085,400,KENILWORTH HOTEL,396858,General Fund Housing,Housing Services,108,Third Party Payments,505,Private Contractors,5042,Revenue,HUMAN RESOURCES.ACCOMMODATION
29-JUL-2022,7014085,525,KENILWORTH HOTEL,396858,General Fund Housing,Housing Services,108,Third Party Payments,505,Private Contractors,5042,Revenue,HUMAN RESOURCES.ACCOMMODATION
29-JUL-2022,7014086,0.01,ALCATRAZ GUEST HOUSE,387483,General Fund Housing,Housing Services,108,Third Party Payments,505,Private Contractors,5042,Revenue,SOCIAL CARE.CARE SERVICES
29-JUL-2022,7014086,0.01,ALCATRAZ GUEST HOUSE,387483,General Fund Housing,Housing Services,108,Third Party Payments,505,Private Contractors,5042,Revenue,SOCIAL CARE.CARE SERVICES
29-JUL-2022,7014086,0.01,ALCATRAZ GUEST HOUSE,387483,General Fund Housing,Housing Services,108,Third Party Payments,505,Private Contractors,5042,Revenue,SOCIAL CARE.CARE SERVICES
29-JUL-2022,7014086,0.01,ALCATRAZ GUEST HOUSE,387483,General Fund Housing,Housing Services,108,Third Party Payments,505,Private Contractors,5042,Revenue,SOCIAL CARE.CARE SERVICES
29-JUL-2022,7014086,0.01,ALCATRAZ GUEST HOUSE,387483,General Fund Housing,Housing Services,108,Third Party Payments,505,Private Contractors,5042,Revenue,SOCIAL CARE.CARE SERVICES
29-JUL-2022,7014086,0.01,ALCATRAZ GUEST HOUSE,387483,General Fund Housing,Housing Services,108,Third Party Payments,505,Private Contractors,5042,Revenue,SOCIAL CARE.CARE SERVICES
29-JUL-2022,7014086,0.01,ALCATRAZ GUEST HOUSE,387483,General Fund Housing,Housing Services,108,Third Party Payments,505,Private Contractors,5042,Revenue,SOCIAL CARE.CARE SERVICES
29-JUL-2022,7014086,0.01,ALCATRAZ GUEST HOUSE,387483,General Fund Housing,Housing Services,108,Third Party Payments,505,Private Contractors,5042,Revenue,SOCIAL CARE.CARE SERVICES
29-JUL-2022,7014086,0.01,ALCATRAZ GUEST HOUSE,387483,General Fund Housing,Housing Services,108,Third Party Payments,505,Private Contractors,5042,Revenue,SOCIAL CARE.CARE SERVICES
29-JUL-2022,7014086,33.33,ALCATRAZ GUEST HOUSE,387483,General Fund Housing,Housing Services,108,Third Party Payments,505,Private Contractors,5042,Revenue,SOCIAL CARE.CARE SERVICES
29-JUL-2022,7014086,33.33,ALCATRAZ GUEST HOUSE,387483,General Fund Housing,Housing Services,108,Third Party Payments,505,Private Contractors,5042,Revenue,SOCIAL CARE.CARE SERVICES
29-JUL-2022,7014086,66.67,ALCATRAZ GUEST HOUSE,387483,General Fund Housing,Housing Services,108,Third Party Payments,505,Private Contractors,5042,Revenue,SOCIAL CARE.CARE SERVICES
29-JUL-2022,7014086,66.67,ALCATRAZ GUEST HOUSE,387483,General Fund Housing,Housing Services,108,Third Party Payments,505,Private Contractors,5042,Revenue,SOCIAL CARE.CARE SERVICES
29-JUL-2022,7014086,66.67,ALCATRAZ GUEST HOUSE,387483,General Fund Housing,Housing Services,108,Third Party Payments,505,Private Contractors,5042,Revenue,SOCIAL CARE.CARE SERVICES
29-JUL-2022,7014086,66.67,ALCATRAZ GUEST HOUSE,387483,General Fund Housing,Housing Services,108,Third Party Payments,505,Private Contractors,5042,Revenue,SOCIAL CARE.CARE SERVICES
29-JUL-2022,7014086,100,ALCATRAZ GUEST HOUSE,387483,General Fund Housing,Housing Services,108,Third Party Payments,505,Private Contractors,5042,Revenue,SOCIAL CARE.CARE SERVICES
29-JUL-2022,7014086,133.33,ALCATRAZ GUEST HOUSE,387483,General Fund Housing,Housing Services,108,Third Party Payments,505,Private Contractors,5042,Revenue,SOCIAL CARE.CARE SERVICES
29-JUL-2022,7014086,133.33,ALCATRAZ GUEST HOUSE,387483,General Fund Housing,Housing Services,108,Third Party Payments,505,Private Contractors,5042,Revenue,SOCIAL CARE.CARE SERVICES
29-JUL-2022,7014086,133.33,ALCATRAZ GUEST HOUSE,387483,General Fund Housing,Housing Services,108,Third Party Payments,505,Private Contractors,5042,Revenue,SOCIAL CARE.CARE SERVICES
29-JUL-2022,7014086,133.33,ALCATRAZ GUEST HOUSE,387483,General Fund Housing,Housing Services,108,Third Party Payments,505,Private Contractors,5042,Revenue,SOCIAL CARE.CARE SERVICES
29-JUL-2022,7014086,166.67,ALCATRAZ GUEST HOUSE,387483,General Fund Housing,Housing Services,108,Third Party Payments,505,Private Contractors,5042,Revenue,SOCIAL CARE.CARE SERVICES
29-JUL-2022,7014086,166.67,ALCATRAZ GUEST HOUSE,387483,General Fund Housing,Housing Services,108,Third Party Payments,505,Private Contractors,5042,Revenue,SOCIAL CARE.CARE SERVICES
29-JUL-2022,7014086,166.67,ALCATRAZ GUEST HOUSE,387483,General Fund Housing,Housing Services,108,Third Party Payments,505,Private Contractors,5042,Revenue,SOCIAL CARE.CARE SERVICES
29-JUL-2022,7014086,200,ALCATRAZ GUEST HOUSE,387483,General Fund Housing,Housing Services,108,Third Party Payments,505,Private Contractors,5042,Revenue,SOCIAL CARE.CARE SERVICES
29-JUL-2022,7014086,200,ALCATRAZ GUEST HOUSE,387483,General Fund Housing,Housing Services,108,Third Party Payments,505,Private Contractors,5042,Revenue,SOCIAL CARE.CARE SERVICES
29-JUL-2022,7014086,333.33,ALCATRAZ GUEST HOUSE,387483,General Fund Housing,Housing Services,108,Third Party Payments,505,Private Contractors,5042,Revenue,SOCIAL CARE.CARE SERVICES
29-JUL-2022,7014086,333.33,ALCATRAZ GUEST HOUSE,387483,General Fund Housing,Housing Services,108,Third Party Payments,505,Private Contractors,5042,Revenue,SOCIAL CARE.CARE SERVICES
29-JUL-2022,7014086,333.33,ALCATRAZ GUEST HOUSE,387483,General Fund Housing,Housing Services,108,Third Party Payments,505,Private Contractors,5042,Revenue,SOCIAL CARE.CARE SERVICES
29-JUL-2022,7014086,500,ALCATRAZ GUEST HOUSE,387483,General Fund Housing,Housing Services,108,Third Party Payments,505,Private Contractors,5042,Revenue,SOCIAL CARE.CARE SERVICES
29-JUL-2022,7014086,666.67,ALCATRAZ GUEST HOUSE,387483,General Fund Housing,Housing Services,108,Third Party Payments,505,Private Contractors,5042,Revenue,SOCIAL CARE.CARE SERVICES
29-JUL-2022,7014086,666.67,ALCATRAZ GUEST HOUSE,387483,General Fund Housing,Housing Services,108,Third Party Payments,505,Private Contractors,5042,Revenue,SOCIAL CARE.CARE SERVICES
29-JUL-2022,7014105,40.42,THE WINDSOR HOTEL,023681,General Fund Housing,Housing Services,108,Third Party Payments,505,Private Contractors,5042,Revenue,HUMAN RESOURCES.TRAINING & CONFERENCES
29-JUL-2022,7014105,64.17,THE WINDSOR HOTEL,023681,General Fund Housing,Housing Services,108,Third Party Payments,505,Private Contractors,5042,Revenue,HUMAN RESOURCES.TRAINING & CONFERENCES
29-JUL-2022,7014105,121.25,THE WINDSOR HOTEL,023681,General Fund Housing,Housing Services,108,Third Party Payments,505,Private Contractors,5042,Revenue,HUMAN RESOURCES.TRAINING & CONFERENCES
29-JUL-2022,7014105,121.25,THE WINDSOR HOTEL,023681,General Fund Housing,Housing Services,108,Third Party Payments,505,Private Contractors,5042,Revenue,HUMAN RESOURCES.TRAINING & CONFERENCES
29-JUL-2022,7014105,121.25,THE WINDSOR HOTEL,023681,General Fund Housing,Housing Services,108,Third Party Payments,505,Private Contractors,5042,Revenue,HUMAN RESOURCES.TRAINING & CONFERENCES
29-JUL-2022,7014105,121.25,THE WINDSOR HOTEL,023681,General Fund Housing,Housing Services,108,Third Party Payments,505,Private Contractors,5042,Revenue,HUMAN RESOURCES.TRAINING & CONFERENCES
29-JUL-2022,7014105,121.25,THE WINDSOR HOTEL,023681,General Fund Housing,Housing Services,108,Third Party Payments,505,Private Contractors,5042,Revenue,HUMAN RESOURCES.TRAINING & CONFERENCES
29-JUL-2022,7014105,121.25,THE WINDSOR HOTEL,023681,General Fund Housing,Housing Services,108,Third Party Payments,505,Private Contractors,5042,Revenue,HUMAN RESOURCES.TRAINING & CONFERENCES
29-JUL-2022,7014105,121.25,THE WINDSOR HOTEL,023681,General Fund Housing,Housing Services,108,Third Party Payments,505,Private Contractors,5042,Revenue,HUMAN RESOURCES.TRAINING & CONFERENCES
29-JUL-2022,7014105,121.25,THE WINDSOR HOTEL,023681,General Fund Housing,Housing Services,108,Third Party Payments,505,Private Contractors,5042,Revenue,HUMAN RESOURCES.TRAINING & CONFERENCES
29-JUL-2022,7014105,121.25,THE WINDSOR HOTEL,023681,General Fund Housing,Housing Services,108,Third Party Payments,505,Private Contractors,5042,Revenue,HUMAN RESOURCES.TRAINING & CONFERENCES
29-JUL-2022,7014105,121.25,THE WINDSOR HOTEL,023681,General Fund Housing,Housing Services,108,Third Party Payments,505,Private Contractors,5042,Revenue,HUMAN RESOURCES.TRAINING & CONFERENCES
29-JUL-2022,7014105,121.25,THE WINDSOR HOTEL,023681,General Fund Housing,Housing Services,108,Third Party Payments,505,Private Contractors,5042,Revenue,HUMAN RESOURCES.TRAINING & CONFERENCES
29-JUL-2022,7014105,121.25,THE WINDSOR HOTEL,023681,General Fund Housing,Housing Services,108,Third Party Payments,505,Private Contractors,5042,Revenue,HUMAN RESOURCES.TRAINING & CONFERENCES
29-JUL-2022,7014105,121.25,THE WINDSOR HOTEL,023681,General Fund Housing,Housing Services,108,Third Party Payments,505,Private Contractors,5042,Revenue,HUMAN RESOURCES.TRAINING & CONFERENCES
29-JUL-2022,7014105,121.25,THE WINDSOR HOTEL,023681,General Fund Housing,Housing Services,108,Third Party Payments,505,Private Contractors,5042,Revenue,HUMAN RESOURCES.TRAINING & CONFERENCES
29-JUL-2022,7014105,121.25,THE WINDSOR HOTEL,023681,General Fund Housing,Housing Services,108,Third Party Payments,505,Private Contractors,5042,Revenue,HUMAN RESOURCES.TRAINING & CONFERENCES
29-JUL-2022,7014105,121.25,THE WINDSOR HOTEL,023681,General Fund Housing,Housing Services,108,Third Party Payments,505,Private Contractors,5042,Revenue,HUMAN RESOURCES.TRAINING & CONFERENCES
29-JUL-2022,7014105,121.25,THE WINDSOR HOTEL,023681,General Fund Housing,Housing Services,108,Third Party Payments,505,Private Contractors,5042,Revenue,HUMAN RESOURCES.TRAINING & CONFERENCES
29-JUL-2022,7014105,145.5,THE WINDSOR HOTEL,023681,General Fund Housing,Housing Services,108,Third Party Payments,505,Private Contractors,5042,Revenue,HUMAN RESOURCES.TRAINING & CONFERENCES
29-JUL-2022,7014105,161.67,THE WINDSOR HOTEL,023681,General Fund Housing,Housing Services,108,Third Party Payments,505,Private Contractors,5042,Revenue,HUMAN RESOURCES.TRAINING & CONFERENCES
29-JUL-2022,7014105,161.67,THE WINDSOR HOTEL,023681,General Fund Housing,Housing Services,108,Third Party Payments,505,Private Contractors,5042,Revenue,HUMAN RESOURCES.TRAINING & CONFERENCES
29-JUL-2022,7014105,161.67,THE WINDSOR HOTEL,023681,General Fund Housing,Housing Services,108,Third Party Payments,505,Private Contractors,5042,Revenue,HUMAN RESOURCES.TRAINING & CONFERENCES
29-JUL-2022,7014105,161.67,THE WINDSOR HOTEL,023681,General Fund Housing,Housing Services,108,Third Party Payments,505,Private Contractors,5042,Revenue,HUMAN RESOURCES.TRAINING & CONFERENCES
29-JUL-2022,7014105,161.67,THE WINDSOR HOTEL,023681,General Fund Housing,Housing Services,108,Third Party Payments,505,Private Contractors,5042,Revenue,HUMAN RESOURCES.TRAINING & CONFERENCES
29-JUL-2022,7014105,161.67,THE WINDSOR HOTEL,023681,General Fund Housing,Housing Services,108,Third Party Payments,505,Private Contractors,5042,Revenue,HUMAN RESOURCES.TRAINING & CONFERENCES
29-JUL-2022,7014105,161.67,THE WINDSOR HOTEL,023681,General Fund Housing,Housing Services,108,Third Party Payments,505,Private Contractors,5042,Revenue,HUMAN RESOURCES.TRAINING & CONFERENCES
29-JUL-2022,7014105,161.67,THE WINDSOR HOTEL,023681,General Fund Housing,Housing Services,108,Third Party Payments,505,Private Contractors,5042,Revenue,HUMAN RESOURCES.TRAINING & CONFERENCES
29-JUL-2022,7014105,161.67,THE WINDSOR HOTEL,023681,General Fund Housing,Housing Services,108,Third Party Payments,505,Private Contractors,5042,Revenue,HUMAN RESOURCES.TRAINING & CONFERENCES
29-JUL-2022,7014105,161.67,THE WINDSOR HOTEL,023681,General Fund Housing,Housing Services,108,Third Party Payments,505,Private Contractors,5042,Revenue,HUMAN RESOURCES.TRAINING & CONFERENCES
29-JUL-2022,7014105,161.67,THE WINDSOR HOTEL,023681,General Fund Housing,Housing Services,108,Third Party Payments,505,Private Contractors,5042,Revenue,HUMAN RESOURCES.TRAINING & CONFERENCES
29-JUL-2022,7014105,161.67,THE WINDSOR HOTEL,023681,General Fund Housing,Housing Services,108,Third Party Payments,505,Private Contractors,5042,Revenue,HUMAN RESOURCES.TRAINING & CONFERENCES
29-JUL-2022,7014105,171.25,THE WINDSOR HOTEL,023681,General Fund Housing,Housing Services,108,Third Party Payments,505,Private Contractors,5042,Revenue,HUMAN RESOURCES.TRAINING & CONFERENCES
29-JUL-2022,7014105,192.5,THE WINDSOR HOTEL,023681,General Fund Housing,Housing Services,108,Third Party Payments,505,Private Contractors,5042,Revenue,HUMAN RESOURCES.TRAINING & CONFERENCES
29-JUL-2022,7014105,192.5,THE WINDSOR HOTEL,023681,General Fund Housing,Housing Services,108,Third Party Payments,505,Private Contractors,5042,Revenue,HUMAN RESOURCES.TRAINING & CONFERENCES
29-JUL-2022,7014105,202.08,THE WINDSOR HOTEL,023681,General Fund Housing,Housing Services,108,Third Party Payments,505,Private Contractors,5042,Revenue,HUMAN RESOURCES.TRAINING & CONFERENCES
29-JUL-2022,7014105,228.33,THE WINDSOR HOTEL,023681,General Fund Housing,Housing Services,108,Third Party Payments,505,Private Contractors,5042,Revenue,HUMAN RESOURCES.TRAINING & CONFERENCES
29-JUL-2022,7014105,256.67,THE WINDSOR HOTEL,023681,General Fund Housing,Housing Services,108,Third Party Payments,505,Private Contractors,5042,Revenue,HUMAN RESOURCES.TRAINING & CONFERENCES
29-JUL-2022,7014105,256.67,THE WINDSOR HOTEL,023681,General Fund Housing,Housing Services,108,Third Party Payments,505,Private Contractors,5042,Revenue,HUMAN RESOURCES.TRAINING & CONFERENCES
29-JUL-2022,7014105,256.67,THE WINDSOR HOTEL,023681,General Fund Housing,Housing Services,108,Third Party Payments,505,Private Contractors,5042,Revenue,HUMAN RESOURCES.TRAINING & CONFERENCES
29-JUL-2022,7014109,-0.01,TRAVELODGE,345558,General Fund Housing,Housing Services,108,Third Party Payments,505,Private Contractors,5042,Revenue,ADVERTISING & MARKETING.EVENTS & PROMOTIONS
29-JUL-2022,7014109,-0.01,TRAVELODGE,345558,General Fund Housing,Housing Services,108,Third Party Payments,505,Private Contractors,5042,Revenue,ADVERTISING & MARKETING.EVENTS & PROMOTIONS
29-JUL-2022,7014109,-0.01,TRAVELODGE,345558,General Fund Housing,Housing Services,108,Third Party Payments,505,Private Contractors,5042,Revenue,ADVERTISING & MARKETING.EVENTS & PROMOTIONS
29-JUL-2022,7014109,0.01,TRAVELODGE,345558,General Fund Housing,Housing Services,108,Third Party Payments,505,Private Contractors,5042,Revenue,ADVERTISING & MARKETING.EVENTS & PROMOTIONS
29-JUL-2022,7014109,0.01,TRAVELODGE,345558,General Fund Housing,Housing Services,108,Third Party Payments,505,Private Contractors,5042,Revenue,ADVERTISING & MARKETING.EVENTS & PROMOTIONS
29-JUL-2022,7014109,0.01,TRAVELODGE,345558,General Fund Housing,Housing Services,108,Third Party Payments,505,Private Contractors,5042,Revenue,ADVERTISING & MARKETING.EVENTS & PROMOTIONS
29-JUL-2022,7014109,0.01,TRAVELODGE,345558,General Fund Housing,Housing Services,108,Third Party Payments,505,Private Contractors,5042,Revenue,ADVERTISING & MARKETING.EVENTS & PROMOTIONS
29-JUL-2022,7014109,0.01,TRAVELODGE,345558,General Fund Housing,Housing Services,108,Third Party Payments,505,Private Contractors,5042,Revenue,ADVERTISING & MARKETING.EVENTS & PROMOTIONS
29-JUL-2022,7014109,0.01,TRAVELODGE,345558,General Fund Housing,Housing Services,108,Third Party Payments,505,Private Contractors,5042,Revenue,ADVERTISING & MARKETING.EVENTS & PROMOTIONS
29-JUL-2022,7014109,0.01,TRAVELODGE,345558,General Fund Housing,Housing Services,108,Third Party Payments,505,Private Contractors,5042,Revenue,ADVERTISING & MARKETING.EVENTS & PROMOTIONS
29-JUL-2022,7014109,0.01,TRAVELODGE,345558,General Fund Housing,Housing Services,108,Third Party Payments,505,Private Contractors,5042,Revenue,ADVERTISING & MARKETING.EVENTS & PROMOTIONS
29-JUL-2022,7014109,0.01,TRAVELODGE,345558,General Fund Housing,Housing Services,108,Third Party Payments,505,Private Contractors,5042,Revenue,ADVERTISING & MARKETING.EVENTS & PROMOTIONS
29-JUL-2022,7014109,0.01,TRAVELODGE,345558,General Fund Housing,Housing Services,108,Third Party Payments,505,Private Contractors,5042,Revenue,ADVERTISING & MARKETING.EVENTS & PROMOTIONS
29-JUL-2022,7014109,0.01,TRAVELODGE,345558,General Fund Housing,Housing Services,108,Third Party Payments,505,Private Contractors,5042,Revenue,ADVERTISING & MARKETING.EVENTS & PROMOTIONS
29-JUL-2022,7014109,0.01,TRAVELODGE,345558,General Fund Housing,Housing Services,108,Third Party Payments,505,Private Contractors,5042,Revenue,ADVERTISING & MARKETING.EVENTS & PROMOTIONS
29-JUL-2022,7014109,0.01,TRAVELODGE,345558,General Fund Housing,Housing Services,108,Third Party Payments,505,Private Contractors,5042,Revenue,ADVERTISING & MARKETING.EVENTS & PROMOTIONS
29-JUL-2022,7014109,0.01,TRAVELODGE,345558,General Fund Housing,Housing Services,108,Third Party Payments,505,Private Contractors,5042,Revenue,ADVERTISING & MARKETING.EVENTS & PROMOTIONS
29-JUL-2022,7014109,0.01,TRAVELODGE,345558,General Fund Housing,Housing Services,108,Third Party Payments,505,Private Contractors,5042,Revenue,ADVERTISING & MARKETING.EVENTS & PROMOTIONS
29-JUL-2022,7014109,0.01,TRAVELODGE,345558,General Fund Housing,Housing Services,108,Third Party Payments,505,Private Contractors,5042,Revenue,ADVERTISING & MARKETING.EVENTS & PROMOTIONS
29-JUL-2022,7014109,37.38,TRAVELODGE,345558,General Fund Housing,Housing Services,108,Third Party Payments,505,Private Contractors,5042,Revenue,ADVERTISING & MARKETING.EVENTS & PROMOTIONS
29-JUL-2022,7014109,41.62,TRAVELODGE,345558,General Fund Housing,Housing Services,108,Third Party Payments,505,Private Contractors,5042,Revenue,ADVERTISING & MARKETING.EVENTS & PROMOTIONS
29-JUL-2022,7014109,45.87,TRAVELODGE,345558,General Fund Housing,Housing Services,108,Third Party Payments,505,Private Contractors,5042,Revenue,ADVERTISING & MARKETING.EVENTS & PROMOTIONS
29-JUL-2022,7014109,58.63,TRAVELODGE,345558,General Fund Housing,Housing Services,108,Third Party Payments,505,Private Contractors,5042,Revenue,ADVERTISING & MARKETING.EVENTS & PROMOTIONS
29-JUL-2022,7014109,61.18,TRAVELODGE,345558,General Fund Housing,Housing Services,108,Third Party Payments,505,Private Contractors,5042,Revenue,ADVERTISING & MARKETING.EVENTS & PROMOTIONS
29-JUL-2022,7014109,74.76,TRAVELODGE,345558,General Fund Housing,Housing Services,108,Third Party Payments,505,Private Contractors,5042,Revenue,ADVERTISING & MARKETING.EVENTS & PROMOTIONS
29-JUL-2022,7014109,74.76,TRAVELODGE,345558,General Fund Housing,Housing Services,108,Third Party Payments,505,Private Contractors,5042,Revenue,ADVERTISING & MARKETING.EVENTS & PROMOTIONS
29-JUL-2022,7014109,74.76,TRAVELODGE,345558,General Fund Housing,Housing Services,108,Third Party Payments,505,Private Contractors,5042,Revenue,ADVERTISING & MARKETING.EVENTS & PROMOTIONS
29-JUL-2022,7014109,74.76,TRAVELODGE,345558,General Fund Housing,Housing Services,108,Third Party Payments,505,Private Contractors,5042,Revenue,ADVERTISING & MARKETING.EVENTS & PROMOTIONS
29-JUL-2022,7014109,74.76,TRAVELODGE,345558,General Fund Housing,Housing Services,108,Third Party Payments,505,Private Contractors,5042,Revenue,ADVERTISING & MARKETING.EVENTS & PROMOTIONS
29-JUL-2022,7014109,74.76,TRAVELODGE,345558,General Fund Housing,Housing Services,108,Third Party Payments,505,Private Contractors,5042,Revenue,ADVERTISING & MARKETING.EVENTS & PROMOTIONS
29-JUL-2022,7014109,74.76,TRAVELODGE,345558,General Fund Housing,Housing Services,108,Third Party Payments,505,Private Contractors,5042,Revenue,ADVERTISING & MARKETING.EVENTS & PROMOTIONS
29-JUL-2022,7014109,74.76,TRAVELODGE,345558,General Fund Housing,Housing Services,108,Third Party Payments,505,Private Contractors,5042,Revenue,ADVERTISING & MARKETING.EVENTS & PROMOTIONS
29-JUL-2022,7014109,74.76,TRAVELODGE,345558,General Fund Housing,Housing Services,108,Third Party Payments,505,Private Contractors,5042,Revenue,ADVERTISING & MARKETING.EVENTS & PROMOTIONS
29-JUL-2022,7014109,74.76,TRAVELODGE,345558,General Fund Housing,Housing Services,108,Third Party Payments,505,Private Contractors,5042,Revenue,ADVERTISING & MARKETING.EVENTS & PROMOTIONS
29-JUL-2022,7014109,81.56,TRAVELODGE,345558,General Fund Housing,Housing Services,108,Third Party Payments,505,Private Contractors,5042,Revenue,ADVERTISING & MARKETING.EVENTS & PROMOTIONS
29-JUL-2022,7014109,96.01,TRAVELODGE,345558,General Fund Housing,Housing Services,108,Third Party Payments,505,Private Contractors,5042,Revenue,ADVERTISING & MARKETING.EVENTS & PROMOTIONS
29-JUL-2022,7014109,100.26,TRAVELODGE,345558,General Fund Housing,Housing Services,108,Third Party Payments,505,Private Contractors,5042,Revenue,ADVERTISING & MARKETING.EVENTS & PROMOTIONS
29-JUL-2022,7014109,113.86,TRAVELODGE,345558,General Fund Housing,Housing Services,108,Third Party Payments,505,Private Contractors,5042,Revenue,ADVERTISING & MARKETING.EVENTS & PROMOTIONS
29-JUL-2022,7014109,113.86,TRAVELODGE,345558,General Fund Housing,Housing Services,108,Third Party Payments,505,Private Contractors,5042,Revenue,ADVERTISING & MARKETING.EVENTS & PROMOTIONS
29-JUL-2022,7014109,149.52,TRAVELODGE,345558,General Fund Housing,Housing Services,108,Third Party Payments,505,Private Contractors,5042,Revenue,ADVERTISING & MARKETING.EVENTS & PROMOTIONS
29-JUL-2022,7014109,149.52,TRAVELODGE,345558,General Fund Housing,Housing Services,108,Third Party Payments,505,Private Contractors,5042,Revenue,ADVERTISING & MARKETING.EVENTS & PROMOTIONS
29-JUL-2022,7014109,149.52,TRAVELODGE,345558,General Fund Housing,Housing Services,108,Third Party Payments,505,Private Contractors,5042,Revenue,ADVERTISING & MARKETING.EVENTS & PROMOTIONS
29-JUL-2022,7014109,149.52,TRAVELODGE,345558,General Fund Housing,Housing Services,108,Third Party Payments,505,Private Contractors,5042,Revenue,ADVERTISING & MARKETING.EVENTS & PROMOTIONS
29-JUL-2022,7014109,149.52,TRAVELODGE,345558,General Fund Housing,Housing Services,108,Third Party Payments,505,Private Contractors,5042,Revenue,ADVERTISING & MARKETING.EVENTS & PROMOTIONS
29-JUL-2022,7014109,150.39,TRAVELODGE,345558,General Fund Housing,Housing Services,108,Third Party Payments,505,Private Contractors,5042,Revenue,ADVERTISING & MARKETING.EVENTS & PROMOTIONS
29-JUL-2022,7014109,150.39,TRAVELODGE,345558,General Fund Housing,Housing Services,108,Third Party Payments,505,Private Contractors,5042,Revenue,ADVERTISING & MARKETING.EVENTS & PROMOTIONS
29-JUL-2022,7014109,180.99,TRAVELODGE,345558,General Fund Housing,Housing Services,108,Third Party Payments,505,Private Contractors,5042,Revenue,ADVERTISING & MARKETING.EVENTS & PROMOTIONS
29-JUL-2022,7014109,201.39,TRAVELODGE,345558,General Fund Housing,Housing Services,108,Third Party Payments,505,Private Contractors,5042,Revenue,ADVERTISING & MARKETING.EVENTS & PROMOTIONS
29-JUL-2022,7014109,211.59,TRAVELODGE,345558,General Fund Housing,Housing Services,108,Third Party Payments,505,Private Contractors,5042,Revenue,ADVERTISING & MARKETING.EVENTS & PROMOTIONS
29-JUL-2022,7014109,216.67,TRAVELODGE,345558,General Fund Housing,Housing Services,108,Third Party Payments,505,Private Contractors,5042,Revenue,ADVERTISING & MARKETING.EVENTS & PROMOTIONS
29-JUL-2022,7014109,216.67,TRAVELODGE,345558,General Fund Housing,Housing Services,108,Third Party Payments,505,Private Contractors,5042,Revenue,ADVERTISING & MARKETING.EVENTS & PROMOTIONS
29-JUL-2022,7014109,237.92,TRAVELODGE,345558,General Fund Housing,Housing Services,108,Third Party Payments,505,Private Contractors,5042,Revenue,ADVERTISING & MARKETING.EVENTS & PROMOTIONS
29-JUL-2022,7014109,237.92,TRAVELODGE,345558,General Fund Housing,Housing Services,108,Third Party Payments,505,Private Contractors,5042,Revenue,ADVERTISING & MARKETING.EVENTS & PROMOTIONS
29-JUL-2022,7014109,237.92,TRAVELODGE,345558,General Fund Housing,Housing Services,108,Third Party Payments,505,Private Contractors,5042,Revenue,ADVERTISING & MARKETING.EVENTS & PROMOTIONS
29-JUL-2022,7014109,237.92,TRAVELODGE,345558,General Fund Housing,Housing Services,108,Third Party Payments,505,Private Contractors,5042,Revenue,ADVERTISING & MARKETING.EVENTS & PROMOTIONS
29-JUL-2022,7014109,240.49,TRAVELODGE,345558,General Fund Housing,Housing Services,108,Third Party Payments,505,Private Contractors,5042,Revenue,ADVERTISING & MARKETING.EVENTS & PROMOTIONS
29-JUL-2022,7014109,240.49,TRAVELODGE,345558,General Fund Housing,Housing Services,108,Third Party Payments,505,Private Contractors,5042,Revenue,ADVERTISING & MARKETING.EVENTS & PROMOTIONS
29-JUL-2022,7014109,255.77,TRAVELODGE,345558,General Fund Housing,Housing Services,108,Third Party Payments,505,Private Contractors,5042,Revenue,ADVERTISING & MARKETING.EVENTS & PROMOTIONS
29-JUL-2022,7014109,271.07,TRAVELODGE,345558,General Fund Housing,Housing Services,108,Third Party Payments,505,Private Contractors,5042,Revenue,ADVERTISING & MARKETING.EVENTS & PROMOTIONS
29-JUL-2022,7014109,289.77,TRAVELODGE,345558,General Fund Housing,Housing Services,108,Third Party Payments,505,Private Contractors,5042,Revenue,ADVERTISING & MARKETING.EVENTS & PROMOTIONS
29-JUL-2022,7014109,321.21,TRAVELODGE,345558,General Fund Housing,Housing Services,108,Third Party Payments,505,Private Contractors,5042,Revenue,ADVERTISING & MARKETING.EVENTS & PROMOTIONS
29-JUL-2022,7014109,321.21,TRAVELODGE,345558,General Fund Housing,Housing Services,108,Third Party Payments,505,Private Contractors,5042,Revenue,ADVERTISING & MARKETING.EVENTS & PROMOTIONS
29-JUL-2022,7014109,321.21,TRAVELODGE,345558,General Fund Housing,Housing Services,108,Third Party Payments,505,Private Contractors,5042,Revenue,ADVERTISING & MARKETING.EVENTS & PROMOTIONS
29-JUL-2022,7014109,321.21,TRAVELODGE,345558,General Fund Housing,Housing Services,108,Third Party Payments,505,Private Contractors,5042,Revenue,ADVERTISING & MARKETING.EVENTS & PROMOTIONS
29-JUL-2022,7014109,321.21,TRAVELODGE,345558,General Fund Housing,Housing Services,108,Third Party Payments,505,Private Contractors,5042,Revenue,ADVERTISING & MARKETING.EVENTS & PROMOTIONS
29-JUL-2022,7014109,361.19,TRAVELODGE,345558,General Fund Housing,Housing Services,108,Third Party Payments,505,Private Contractors,5042,Revenue,ADVERTISING & MARKETING.EVENTS & PROMOTIONS
29-JUL-2022,7014111,549.58,JURYS INN,381017,General Fund Housing,Housing Services,108,Supplies and Services,504,Miscellaneous Expenses,5034,Revenue,ADVERTISING & MARKETING.EVENTS & PROMOTIONS
29-JUL-2022,7014111,114.58,JURYS INN,381017,General Fund Housing,Housing Services,108,Third Party Payments,505,Private Contractors,5042,Revenue,ADVERTISING & MARKETING.EVENTS & PROMOTIONS
29-JUL-2022,7014111,152.5,JURYS INN,381017,General Fund Housing,Housing Services,108,Third Party Payments,505,Private Contractors,5042,Revenue,ADVERTISING & MARKETING.EVENTS & PROMOTIONS
29-JUL-2022,7014111,194.58,JURYS INN,381017,General Fund Housing,Housing Services,108,Third Party Payments,505,Private Contractors,5042,Revenue,ADVERTISING & MARKETING.EVENTS & PROMOTIONS
29-JUL-2022,7014111,195.42,JURYS INN,381017,General Fund Housing,Housing Services,108,Third Party Payments,505,Private Contractors,5042,Revenue,ADVERTISING & MARKETING.EVENTS & PROMOTIONS
29-JUL-2022,7014111,197.92,JURYS INN,381017,General Fund Housing,Housing Services,108,Third Party Payments,505,Private Contractors,5042,Revenue,ADVERTISING & MARKETING.EVENTS & PROMOTIONS
29-JUL-2022,7014111,233.75,JURYS INN,381017,General Fund Housing,Housing Services,108,Third Party Payments,505,Private Contractors,5042,Revenue,ADVERTISING & MARKETING.EVENTS & PROMOTIONS
29-JUL-2022,7014111,236.25,JURYS INN,381017,General Fund Housing,Housing Services,108,Third Party Payments,505,Private Contractors,5042,Revenue,ADVERTISING & MARKETING.EVENTS & PROMOTIONS
29-JUL-2022,7014111,236.25,JURYS INN,381017,General Fund Housing,Housing Services,108,Third Party Payments,505,Private Contractors,5042,Revenue,ADVERTISING & MARKETING.EVENTS & PROMOTIONS
29-JUL-2022,7014111,257.92,JURYS INN,381017,General Fund Housing,Housing Services,108,Third Party Payments,505,Private Contractors,5042,Revenue,ADVERTISING & MARKETING.EVENTS & PROMOTIONS
29-JUL-2022,7014111,335,JURYS INN,381017,General Fund Housing,Housing Services,108,Third Party Payments,505,Private Contractors,5042,Revenue,ADVERTISING & MARKETING.EVENTS & PROMOTIONS
29-JUL-2022,7014111,377.08,JURYS INN,381017,General Fund Housing,Housing Services,108,Third Party Payments,505,Private Contractors,5042,Revenue,ADVERTISING & MARKETING.EVENTS & PROMOTIONS
29-JUL-2022,7014111,386.25,JURYS INN,381017,General Fund Housing,Housing Services,108,Third Party Payments,505,Private Contractors,5042,Revenue,ADVERTISING & MARKETING.EVENTS & PROMOTIONS
29-JUL-2022,7014111,393.75,JURYS INN,381017,General Fund Housing,Housing Services,108,Third Party Payments,505,Private Contractors,5042,Revenue,ADVERTISING & MARKETING.EVENTS & PROMOTIONS
29-JUL-2022,7014111,437.92,JURYS INN,381017,General Fund Housing,Housing Services,108,Third Party Payments,505,Private Contractors,5042,Revenue,ADVERTISING & MARKETING.EVENTS & PROMOTIONS
29-JUL-2022,7014073,104.52,AMAZON GENERAL PAYMENTS,375398,"Health, Education, Care and Safeguarding",Adult Social Care,101,Supplies and Services,504,Equipment,5023,Revenue,EDUCATIONAL SUPPLIES.SUPPLIES
29-JUL-2022,7014073,0.01,AMAZON GENERAL PAYMENTS,375398,"Health, Education, Care and Safeguarding",Adult Social Care,101,Supplies and Services,504,Equipment,5023,Revenue,EDUCATIONAL SUPPLIES.SUPPLIES
29-JUL-2022,7014073,18.32,AMAZON GENERAL PAYMENTS,375398,"Health, Education, Care and Safeguarding",Adult Social Care,101,Supplies and Services,504,Equipment,5023,Revenue,EDUCATIONAL SUPPLIES.SUPPLIES
29-JUL-2022,7014073,0.01,AMAZON GENERAL PAYMENTS,375398,"Health, Education, Care and Safeguarding",Adult Social Care,101,Supplies and Services,504,Equipment,5023,Revenue,EDUCATIONAL SUPPLIES.SUPPLIES
29-JUL-2022,7014073,108.33,AMAZON GENERAL PAYMENTS,375398,"Health, Education, Care and Safeguarding",Adult Social Care,101,Supplies and Services,504,Equipment,5023,Revenue,EDUCATIONAL SUPPLIES.SUPPLIES
29-JUL-2022,7013959,54.17,NEW KENT HOTEL,312970,"Health, Education, Care and Safeguarding",Adult Social Care,101,Third Party Payments,505,Private Contractors,5042,Revenue,
29-JUL-2022,7014073,0.01,AMAZON GENERAL PAYMENTS,375398,"Health, Education, Care and Safeguarding",Adult Social Care,101,Supplies and Services,504,Miscellaneous Expenses,5034,Revenue,EDUCATIONAL SUPPLIES.SUPPLIES
29-JUL-2022,7014073,0.01,AMAZON GENERAL PAYMENTS,375398,"Health, Education, Care and Safeguarding",Adult Social Care,101,Supplies and Services,504,Miscellaneous Expenses,5034,Revenue,EDUCATIONAL SUPPLIES.SUPPLIES
29-JUL-2022,7014073,78.48,AMAZON GENERAL PAYMENTS,375398,"Health, Education, Care and Safeguarding",Adult Social Care,101,Supplies and Services,504,Miscellaneous Expenses,5034,Revenue,EDUCATIONAL SUPPLIES.SUPPLIES
29-JUL-2022,7014073,78.48,AMAZON GENERAL PAYMENTS,375398,"Health, Education, Care and Safeguarding",Adult Social Care,101,Supplies and Services,504,Miscellaneous Expenses,5034,Revenue,EDUCATIONAL SUPPLIES.SUPPLIES
29-JUL-2022,7014073,0.01,AMAZON GENERAL PAYMENTS,375398,Public Health,Children's & Education Services,103,Supplies and Services,504,Equipment,5023,Revenue,EDUCATIONAL SUPPLIES.SUPPLIES
29-JUL-2022,7014073,0.01,AMAZON GENERAL PAYMENTS,375398,Public Health,Children's & Education Services,103,Supplies and Services,504,Equipment,5023,Revenue,EDUCATIONAL SUPPLIES.SUPPLIES
29-JUL-2022,7014073,0.01,AMAZON GENERAL PAYMENTS,375398,Public Health,Children's & Education Services,103,Supplies and Services,504,Equipment,5023,Revenue,EDUCATIONAL SUPPLIES.SUPPLIES
29-JUL-2022,7014073,0.01,AMAZON GENERAL PAYMENTS,375398,Public Health,Children's & Education Services,103,Supplies and Services,504,Equipment,5023,Revenue,EDUCATIONAL SUPPLIES.SUPPLIES
29-JUL-2022,7014073,0.01,AMAZON GENERAL PAYMENTS,375398,Public Health,Children's & Education Services,103,Supplies and Services,504,Equipment,5023,Revenue,EDUCATIONAL SUPPLIES.SUPPLIES
29-JUL-2022,7014073,0.01,AMAZON GENERAL PAYMENTS,375398,Public Health,Children's & Education Services,103,Supplies and Services,504,Equipment,5023,Revenue,EDUCATIONAL SUPPLIES.SUPPLIES
29-JUL-2022,7014073,0.01,AMAZON GENERAL PAYMENTS,375398,Public Health,Children's & Education Services,103,Supplies and Services,504,Equipment,5023,Revenue,EDUCATIONAL SUPPLIES.SUPPLIES
29-JUL-2022,7014073,0.01,AMAZON GENERAL PAYMENTS,375398,Public Health,Children's & Education Services,103,Supplies and Services,504,Equipment,5023,Revenue,EDUCATIONAL SUPPLIES.SUPPLIES
29-JUL-2022,7014073,0.01,AMAZON GENERAL PAYMENTS,375398,Public Health,Children's & Education Services,103,Supplies and Services,504,Equipment,5023,Revenue,EDUCATIONAL SUPPLIES.SUPPLIES
29-JUL-2022,7014073,0.01,AMAZON GENERAL PAYMENTS,375398,Public Health,Children's & Education Services,103,Supplies and Services,504,Equipment,5023,Revenue,EDUCATIONAL SUPPLIES.SUPPLIES
29-JUL-2022,7014073,0.01,AMAZON GENERAL PAYMENTS,375398,Public Health,Children's & Education Services,103,Supplies and Services,504,Equipment,5023,Revenue,EDUCATIONAL SUPPLIES.SUPPLIES
29-JUL-2022,7014073,0.01,AMAZON GENERAL PAYMENTS,375398,Public Health,Children's & Education Services,103,Supplies and Services,504,Equipment,5023,Revenue,EDUCATIONAL SUPPLIES.SUPPLIES
29-JUL-2022,7014073,0.01,AMAZON GENERAL PAYMENTS,375398,Public Health,Children's & Education Services,103,Supplies and Services,504,Equipment,5023,Revenue,EDUCATIONAL SUPPLIES.SUPPLIES
29-JUL-2022,7014073,0.01,AMAZON GENERAL PAYMENTS,375398,Public Health,Children's & Education Services,103,Supplies and Services,504,Equipment,5023,Revenue,EDUCATIONAL SUPPLIES.SUPPLIES
29-JUL-2022,7014073,0.01,AMAZON GENERAL PAYMENTS,375398,Public Health,Children's & Education Services,103,Supplies and Services,504,Equipment,5023,Revenue,EDUCATIONAL SUPPLIES.SUPPLIES
29-JUL-2022,7014073,0.01,AMAZON GENERAL PAYMENTS,375398,Public Health,Children's & Education Services,103,Supplies and Services,504,Equipment,5023,Revenue,EDUCATIONAL SUPPLIES.SUPPLIES
29-JUL-2022,7014073,0.01,AMAZON GENERAL PAYMENTS,375398,Public Health,Children's & Education Services,103,Supplies and Services,504,Equipment,5023,Revenue,EDUCATIONAL SUPPLIES.SUPPLIES
29-JUL-2022,7014073,0.01,AMAZON GENERAL PAYMENTS,375398,Public Health,Children's & Education Services,103,Supplies and Services,504,Equipment,5023,Revenue,EDUCATIONAL SUPPLIES.SUPPLIES
29-JUL-2022,7014073,0.01,AMAZON GENERAL PAYMENTS,375398,Public Health,Children's & Education Services,103,Supplies and Services,504,Equipment,5023,Revenue,EDUCATIONAL SUPPLIES.SUPPLIES
29-JUL-2022,7014073,0.01,AMAZON GENERAL PAYMENTS,375398,Public Health,Children's & Education Services,103,Supplies and Services,504,Equipment,5023,Revenue,EDUCATIONAL SUPPLIES.SUPPLIES
29-JUL-2022,7014073,0.01,AMAZON GENERAL PAYMENTS,375398,Public Health,Children's & Education Services,103,Supplies and Services,504,Equipment,5023,Revenue,EDUCATIONAL SUPPLIES.SUPPLIES
29-JUL-2022,7014073,0.01,AMAZON GENERAL PAYMENTS,375398,Public Health,Children's & Education Services,103,Supplies and Services,504,Equipment,5023,Revenue,EDUCATIONAL SUPPLIES.SUPPLIES
29-JUL-2022,7014073,0.01,AMAZON GENERAL PAYMENTS,375398,Public Health,Children's & Education Services,103,Supplies and Services,504,Equipment,5023,Revenue,EDUCATIONAL SUPPLIES.SUPPLIES
29-JUL-2022,7014073,0.01,AMAZON GENERAL PAYMENTS,375398,Public Health,Children's & Education Services,103,Supplies and Services,504,Equipment,5023,Revenue,EDUCATIONAL SUPPLIES.SUPPLIES
29-JUL-2022,7014073,0.01,AMAZON GENERAL PAYMENTS,375398,Public Health,Children's & Education Services,103,Supplies and Services,504,Equipment,5023,Revenue,EDUCATIONAL SUPPLIES.SUPPLIES
29-JUL-2022,7014073,23.32,AMAZON GENERAL PAYMENTS,375398,Public Health,Children's & Education Services,103,Supplies and Services,504,Equipment,5023,Revenue,EDUCATIONAL SUPPLIES.SUPPLIES
29-JUL-2022,7014073,23.32,AMAZON GENERAL PAYMENTS,375398,Public Health,Children's & Education Services,103,Supplies and Services,504,Equipment,5023,Revenue,EDUCATIONAL SUPPLIES.SUPPLIES
29-JUL-2022,7014073,23.32,AMAZON GENERAL PAYMENTS,375398,Public Health,Children's & Education Services,103,Supplies and Services,504,Equipment,5023,Revenue,EDUCATIONAL SUPPLIES.SUPPLIES
29-JUL-2022,7014073,23.32,AMAZON GENERAL PAYMENTS,375398,Public Health,Children's & Education Services,103,Supplies and Services,504,Equipment,5023,Revenue,EDUCATIONAL SUPPLIES.SUPPLIES
29-JUL-2022,7014073,23.32,AMAZON GENERAL PAYMENTS,375398,Public Health,Children's & Education Services,103,Supplies and Services,504,Equipment,5023,Revenue,EDUCATIONAL SUPPLIES.SUPPLIES
29-JUL-2022,7014073,23.32,AMAZON GENERAL PAYMENTS,375398,Public Health,Children's & Education Services,103,Supplies and Services,504,Equipment,5023,Revenue,EDUCATIONAL SUPPLIES.SUPPLIES
29-JUL-2022,7014073,23.32,AMAZON GENERAL PAYMENTS,375398,Public Health,Children's & Education Services,103,Supplies and Services,504,Equipment,5023,Revenue,EDUCATIONAL SUPPLIES.SUPPLIES
29-JUL-2022,7014073,23.32,AMAZON GENERAL PAYMENTS,375398,Public Health,Children's & Education Services,103,Supplies and Services,504,Equipment,5023,Revenue,EDUCATIONAL SUPPLIES.SUPPLIES
29-JUL-2022,7014073,23.32,AMAZON GENERAL PAYMENTS,375398,Public Health,Children's & Education Services,103,Supplies and Services,504,Equipment,5023,Revenue,EDUCATIONAL SUPPLIES.SUPPLIES
29-JUL-2022,7014073,23.32,AMAZON GENERAL PAYMENTS,375398,Public Health,Children's & Education Services,103,Supplies and Services,504,Equipment,5023,Revenue,EDUCATIONAL SUPPLIES.SUPPLIES
29-JUL-2022,7014073,23.32,AMAZON GENERAL PAYMENTS,375398,Public Health,Children's & Education Services,103,Supplies and Services,504,Equipment,5023,Revenue,EDUCATIONAL SUPPLIES.SUPPLIES
29-JUL-2022,7014073,23.32,AMAZON GENERAL PAYMENTS,375398,Public Health,Children's & Education Services,103,Supplies and Services,504,Equipment,5023,Revenue,EDUCATIONAL SUPPLIES.SUPPLIES
29-JUL-2022,7014073,23.32,AMAZON GENERAL PAYMENTS,375398,Public Health,Children's & Education Services,103,Supplies and Services,504,Equipment,5023,Revenue,EDUCATIONAL SUPPLIES.SUPPLIES
29-JUL-2022,7014073,23.32,AMAZON GENERAL PAYMENTS,375398,Public Health,Children's & Education Services,103,Supplies and Services,504,Equipment,5023,Revenue,EDUCATIONAL SUPPLIES.SUPPLIES
29-JUL-2022,7014073,23.32,AMAZON GENERAL PAYMENTS,375398,Public Health,Children's & Education Services,103,Supplies and Services,504,Equipment,5023,Revenue,EDUCATIONAL SUPPLIES.SUPPLIES
29-JUL-2022,7014073,23.32,AMAZON GENERAL PAYMENTS,375398,Public Health,Children's & Education Services,103,Supplies and Services,504,Equipment,5023,Revenue,EDUCATIONAL SUPPLIES.SUPPLIES
29-JUL-2022,7014073,23.32,AMAZON GENERAL PAYMENTS,375398,Public Health,Children's & Education Services,103,Supplies and Services,504,Equipment,5023,Revenue,EDUCATIONAL SUPPLIES.SUPPLIES
29-JUL-2022,7014073,23.32,AMAZON GENERAL PAYMENTS,375398,Public Health,Children's & Education Services,103,Supplies and Services,504,Equipment,5023,Revenue,EDUCATIONAL SUPPLIES.SUPPLIES
29-JUL-2022,7014073,23.32,AMAZON GENERAL PAYMENTS,375398,Public Health,Children's & Education Services,103,Supplies and Services,504,Equipment,5023,Revenue,EDUCATIONAL SUPPLIES.SUPPLIES
29-JUL-2022,7014073,23.32,AMAZON GENERAL PAYMENTS,375398,Public Health,Children's & Education Services,103,Supplies and Services,504,Equipment,5023,Revenue,EDUCATIONAL SUPPLIES.SUPPLIES
29-JUL-2022,7014073,23.32,AMAZON GENERAL PAYMENTS,375398,Public Health,Children's & Education Services,103,Supplies and Services,504,Equipment,5023,Revenue,EDUCATIONAL SUPPLIES.SUPPLIES
29-JUL-2022,7014073,23.32,AMAZON GENERAL PAYMENTS,375398,Public Health,Children's & Education Services,103,Supplies and Services,504,Equipment,5023,Revenue,EDUCATIONAL SUPPLIES.SUPPLIES
29-JUL-2022,7014073,23.32,AMAZON GENERAL PAYMENTS,375398,Public Health,Children's & Education Services,103,Supplies and Services,504,Equipment,5023,Revenue,EDUCATIONAL SUPPLIES.SUPPLIES
29-JUL-2022,7014073,23.32,AMAZON GENERAL PAYMENTS,375398,Public Health,Children's & Education Services,103,Supplies and Services,504,Equipment,5023,Revenue,EDUCATIONAL SUPPLIES.SUPPLIES
29-JUL-2022,7014073,23.32,AMAZON GENERAL PAYMENTS,375398,Public Health,Children's & Education Services,103,Supplies and Services,504,Equipment,5023,Revenue,EDUCATIONAL SUPPLIES.SUPPLIES
29-JUL-2022,7014073,41.62,AMAZON GENERAL PAYMENTS,375398,Public Health,Children's & Education Services,103,Supplies and Services,504,Equipment,5023,Revenue,EDUCATIONAL SUPPLIES.SUPPLIES
29-JUL-2022,7014073,0.01,AMAZON GENERAL PAYMENTS,375398,Public Health,Children's & Education Services,103,Supplies and Services,504,Miscellaneous Expenses,5034,Revenue,EDUCATIONAL SUPPLIES.SUPPLIES
29-JUL-2022,7014073,23.32,AMAZON GENERAL PAYMENTS,375398,Public Health,Children's & Education Services,103,Supplies and Services,504,Miscellaneous Expenses,5034,Revenue,EDUCATIONAL SUPPLIES.SUPPLIES
29-JUL-2022,7014073,0.01,AMAZON GENERAL PAYMENTS,375398,"Health, Education, Care and Safeguarding",Children's & Education Services,103,Supplies and Services,504,"Printing, Stationery and General Office Expenses",5026,Revenue,EDUCATIONAL SUPPLIES.SUPPLIES
29-JUL-2022,7014073,10.82,AMAZON GENERAL PAYMENTS,375398,"Health, Education, Care and Safeguarding",Children's & Education Services,103,Supplies and Services,504,"Printing, Stationery and General Office Expenses",5026,Revenue,EDUCATIONAL SUPPLIES.SUPPLIES
29-JUL-2022,7014073,0.01,AMAZON GENERAL PAYMENTS,375398,"Health, Education, Care and Safeguarding",Children's & Education Services,103,Supplies and Services,504,Miscellaneous Expenses,5034,Revenue,EDUCATIONAL SUPPLIES.SUPPLIES
29-JUL-2022,7014073,180.83,AMAZON GENERAL PAYMENTS,375398,"Health, Education, Care and Safeguarding",Children's & Education Services,103,Supplies and Services,504,Miscellaneous Expenses,5034,Revenue,EDUCATIONAL SUPPLIES.SUPPLIES
29-JUL-2022,7014073,0.01,AMAZON GENERAL PAYMENTS,375398,"Health, Education, Care and Safeguarding",Children's & Education Services,103,Supplies and Services,504,Miscellaneous Expenses,5034,Revenue,EDUCATIONAL SUPPLIES.SUPPLIES
29-JUL-2022,7014073,5.39,AMAZON GENERAL PAYMENTS,375398,"Health, Education, Care and Safeguarding",Children's & Education Services,103,Supplies and Services,504,Miscellaneous Expenses,5034,Revenue,EDUCATIONAL SUPPLIES.SUPPLIES
29-JUL-2022,7014073,33.32,AMAZON GENERAL PAYMENTS,375398,"Health, Education, Care and Safeguarding",Children's & Education Services,103,Supplies and Services,504,Miscellaneous Expenses,5034,Revenue,EDUCATIONAL SUPPLIES.SUPPLIES
29-JUL-2022,7014073,34.16,AMAZON GENERAL PAYMENTS,375398,"Health, Education, Care and Safeguarding",Children's & Education Services,103,Supplies and Services,504,Miscellaneous Expenses,5034,Revenue,EDUCATIONAL SUPPLIES.SUPPLIES
29-JUL-2022,7014073,41.31,AMAZON GENERAL PAYMENTS,375398,"Health, Education, Care and Safeguarding",Children's & Education Services,103,Supplies and Services,504,Miscellaneous Expenses,5034,Revenue,EDUCATIONAL SUPPLIES.SUPPLIES
29-JUL-2022,7014078,1033.76,AIRBNB,397725,"Health, Education, Care and Safeguarding",Children's & Education Services,103,Third Party Payments,505,Private Contractors,5042,Revenue,HUMAN RESOURCES.ACCOMMODATION
29-JUL-2022,7014006,139.17,WALKERGATE & PARKSIDE,346590,"Health, Education, Care and Safeguarding",Children's & Education Services,103,Premises-Related Expenditure,502,"Repairs, alterations and maintenance of buildings",5005,Revenue,HORTICULTURAL.TOOLS & EQUIPMENT
29-JUL-2022,7014025,14.01,BEWICKE S/STN,385514,"Health, Education, Care and Safeguarding",Children's & Education Services,103,Premises-Related Expenditure,502,"Repairs, alterations and maintenance of buildings",5005,Revenue,VEHICLE MANAGEMENT.FUEL
29-JUL-2022,7014025,15.39,BEWICKE S/STN,385514,"Health, Education, Care and Safeguarding",Children's & Education Services,103,Premises-Related Expenditure,502,"Repairs, alterations and maintenance of buildings",5005,Revenue,VEHICLE MANAGEMENT.FUEL
29-JUL-2022,7013980,40,ICO,399984,"Health, Education, Care and Safeguarding",Children's & Education Services,103,Supplies and Services,504,"Printing, Stationery and General Office Expenses",5026,Revenue,FINANCIAL SERVICES.FINANCIAL SERVICES
29-JUL-2022,7014073,20.82,AMAZON GENERAL PAYMENTS,375398,"Health, Education, Care and Safeguarding",Children's & Education Services,103,Supplies and Services,504,Miscellaneous Expenses,5034,Revenue,EDUCATIONAL SUPPLIES.SUPPLIES
29-JUL-2022,7014043,11,NORTH TYNESIDE COUNCIL,102767,"Health, Education, Care and Safeguarding",Children's & Education Services,103,Supplies and Services,504,Miscellaneous Expenses,5034,Revenue,NON INFLUENCIBLE.PUBLIC SECTOR
29-JUL-2022,7013954,43.75,CARAVAN RENTALS,403353,"Health, Education, Care and Safeguarding",Children's & Education Services,103,Transfer Payments,506,School Children and Students,5046,Revenue,NON INFLUENCIBLE.NON INFLUENCIBLE
29-JUL-2022,7013954,325,CARAVAN RENTALS,403353,"Health, Education, Care and Safeguarding",Children's & Education Services,103,Transfer Payments,506,School Children and Students,5046,Revenue,NON INFLUENCIBLE.NON INFLUENCIBLE
29-JUL-2022,7014009,45.25,GENERAL REGISTER OFFICE,388286,"Health, Education, Care and Safeguarding",Children's & Education Services,103,Supplies and Services,504,Miscellaneous Expenses,5034,Revenue,NON INFLUENCIBLE.NON INFLUENCIBLE
29-JUL-2022,7014078,0.01,AIRBNB,397725,"Health, Education, Care and Safeguarding",Children's & Education Services,103,Transfer Payments,506,School Children and Students,5046,Revenue,HUMAN RESOURCES.ACCOMMODATION
29-JUL-2022,7014078,412.07,AIRBNB,397725,"Health, Education, Care and Safeguarding",Children's & Education Services,103,Transfer Payments,506,School Children and Students,5046,Revenue,HUMAN RESOURCES.ACCOMMODATION
29-JUL-2022,7014103,-0.01,ARGOS LTD,253446,"Health, Education, Care and Safeguarding",Children's & Education Services,103,Transfer Payments,506,School Children and Students,5046,Revenue,FURNITURE.DOMESTIC
29-JUL-2022,7014103,68.3,ARGOS LTD,253446,"Health, Education, Care and Safeguarding",Children's & Education Services,103,Transfer Payments,506,School Children and Students,5046,Revenue,FURNITURE.DOMESTIC
29-JUL-2022,7014109,164.86,TRAVELODGE,345558,"Health, Education, Care and Safeguarding",Children's & Education Services,103,Transfer Payments,506,School Children and Students,5046,Revenue,ADVERTISING & MARKETING.EVENTS & PROMOTIONS
29-JUL-2022,7014109,174.56,TRAVELODGE,345558,"Health, Education, Care and Safeguarding",Children's & Education Services,103,Transfer Payments,506,School Children and Students,5046,Revenue,ADVERTISING & MARKETING.EVENTS & PROMOTIONS
29-JUL-2022,7014091,578,HOTEL ONBOOKING.COM,395243,"Health, Education, Care and Safeguarding",Children's & Education Services,103,Third Party Payments,505,Private Contractors,5042,Revenue,HUMAN RESOURCES.ACCOMMODATION
29-JUL-2022,7013948,27.08,PIZZERIA FRANCESCA,403371,"Health, Education, Care and Safeguarding",Children's & Education Services,103,Supplies and Services,504,Miscellaneous Expenses,5034,Revenue,NON INFLUENCIBLE.INDIVIDUAL
29-JUL-2022,7013950,5.83,IZ,403357,"Health, Education, Care and Safeguarding",Children's & Education Services,103,Supplies and Services,504,Equipment,5023,Revenue,NON INFLUENCIBLE.NON INFLUENCIBLE
29-JUL-2022,7013950,29.83,IZ,403357,"Health, Education, Care and Safeguarding",Children's & Education Services,103,Supplies and Services,504,Miscellaneous Expenses,5034,Revenue,NON INFLUENCIBLE.NON INFLUENCIBLE
29-JUL-2022,7013960,18.32,INFLATANATION,399328,"Health, Education, Care and Safeguarding",Children's & Education Services,103,Supplies and Services,504,Miscellaneous Expenses,5034,Revenue,ADVERTISING & MARKETING.ADVERTISING
29-JUL-2022,7013964,14.71,FIVE GUYS,402836,"Health, Education, Care and Safeguarding",Children's & Education Services,103,Supplies and Services,504,Miscellaneous Expenses,5034,Revenue,NON INFLUENCIBLE.NON INFLUENCIBLE
29-JUL-2022,7013999,79.72,ALDI STORES LTD,391717,"Health, Education, Care and Safeguarding",Children's & Education Services,103,Supplies and Services,504,Equipment,5023,Revenue,CATERING.FOOD & BEVERAGES
29-JUL-2022,7013999,85.02,ALDI STORES LTD,391717,"Health, Education, Care and Safeguarding",Children's & Education Services,103,Supplies and Services,504,Equipment,5023,Revenue,CATERING.FOOD & BEVERAGES
29-JUL-2022,7013999,95.76,ALDI STORES LTD,391717,"Health, Education, Care and Safeguarding",Children's & Education Services,103,Supplies and Services,504,Equipment,5023,Revenue,CATERING.FOOD & BEVERAGES
29-JUL-2022,7014012,38.94,SKY BUSINESS LTD,320823,"Health, Education, Care and Safeguarding",Children's & Education Services,103,Supplies and Services,504,Equipment,5023,Revenue,SUBSCRIPTIONS & PUBLICATIONS.TV/RADIO LICENCES
29-JUL-2022,7014033,15,SPORTS DIRECT,373833,"Health, Education, Care and Safeguarding",Children's & Education Services,103,Supplies and Services,504,"Clothing, Uniforms and Laundry",5025,Revenue,CLOTHING.CHILDRENS & ADULTS
29-JUL-2022,7014033,21.67,SPORTS DIRECT,373833,"Health, Education, Care and Safeguarding",Children's & Education Services,103,Supplies and Services,504,"Clothing, Uniforms and Laundry",5025,Revenue,CLOTHING.CHILDRENS & ADULTS
29-JUL-2022,7014042,21.67,ODEON CINEMAS LIMITED,349238,"Health, Education, Care and Safeguarding",Children's & Education Services,103,Supplies and Services,504,Miscellaneous Expenses,5034,Revenue,ADVERTISING & MARKETING.EVENTS & PROMOTIONS
29-JUL-2022,7014048,105.57,WM MORRISON SUPERMARKETS PLC,013562,"Health, Education, Care and Safeguarding",Children's & Education Services,103,Supplies and Services,504,Equipment,5023,Revenue,CATERING.FOOD & BEVERAGES
29-JUL-2022,7014048,88.72,WM MORRISON SUPERMARKETS PLC,013562,"Health, Education, Care and Safeguarding",Children's & Education Services,103,Supplies and Services,504,Equipment,5023,Revenue,CATERING.FOOD & BEVERAGES
29-JUL-2022,7014048,91.2,WM MORRISON SUPERMARKETS PLC,013562,"Health, Education, Care and Safeguarding",Children's & Education Services,103,Supplies and Services,504,Equipment,5023,Revenue,CATERING.FOOD & BEVERAGES
29-JUL-2022,7014048,94.38,WM MORRISON SUPERMARKETS PLC,013562,"Health, Education, Care and Safeguarding",Children's & Education Services,103,Supplies and Services,504,Equipment,5023,Revenue,CATERING.FOOD & BEVERAGES
29-JUL-2022,7014049,0.01,TESCO STORES LTD,336585,"Health, Education, Care and Safeguarding",Children's & Education Services,103,Supplies and Services,504,Equipment,5023,Revenue,CATERING.FOOD & BEVERAGES
29-JUL-2022,7014049,18.32,TESCO STORES LTD,336585,"Health, Education, Care and Safeguarding",Children's & Education Services,103,Supplies and Services,504,Equipment,5023,Revenue,CATERING.FOOD & BEVERAGES
29-JUL-2022,7014049,22.08,TESCO STORES LTD,336585,"Health, Education, Care and Safeguarding",Children's & Education Services,103,Supplies and Services,504,Equipment,5023,Revenue,CATERING.FOOD & BEVERAGES
29-JUL-2022,7014049,22.15,TESCO STORES LTD,336585,"Health, Education, Care and Safeguarding",Children's & Education Services,103,Supplies and Services,504,Equipment,5023,Revenue,CATERING.FOOD & BEVERAGES
29-JUL-2022,7014053,4.17,THE WORKS,383640,"Health, Education, Care and Safeguarding",Children's & Education Services,103,Supplies and Services,504,Miscellaneous Expenses,5034,Revenue,SUBSCRIPTIONS & PUBLICATIONS.BOOKS & PUBLICATIONS
29-JUL-2022,7014055,5,ASDA DIRECT WEB 4387,381378,"Health, Education, Care and Safeguarding",Children's & Education Services,103,Supplies and Services,504,Equipment,5023,Revenue,CATERING.FOOD & BEVERAGES
29-JUL-2022,7014058,16.75,JD SPORTS,382976,"Health, Education, Care and Safeguarding",Children's & Education Services,103,Supplies and Services,504,"Clothing, Uniforms and Laundry",5025,Revenue,CLOTHING.CHILDRENS & ADULTS
29-JUL-2022,7014058,20.83,JD SPORTS,382976,"Health, Education, Care and Safeguarding",Children's & Education Services,103,Supplies and Services,504,"Clothing, Uniforms and Laundry",5025,Revenue,CLOTHING.CHILDRENS & ADULTS
29-JUL-2022,7014058,51.67,JD SPORTS,382976,"Health, Education, Care and Safeguarding",Children's & Education Services,103,Supplies and Services,504,"Clothing, Uniforms and Laundry",5025,Revenue,CLOTHING.CHILDRENS & ADULTS
29-JUL-2022,7014061,0.01,CURRYS,310317,"Health, Education, Care and Safeguarding",Children's & Education Services,103,Supplies and Services,504,Equipment,5023,Revenue,FURNITURE.DOMESTIC
29-JUL-2022,7014061,38.32,CURRYS,310317,"Health, Education, Care and Safeguarding",Children's & Education Services,103,Supplies and Services,504,Equipment,5023,Revenue,FURNITURE.DOMESTIC
29-JUL-2022,7014061,66.66,CURRYS,310317,"Health, Education, Care and Safeguarding",Children's & Education Services,103,Supplies and Services,504,Equipment,5023,Revenue,FURNITURE.DOMESTIC
29-JUL-2022,7014066,3.98,HOME BARGAINS,381011,"Health, Education, Care and Safeguarding",Children's & Education Services,103,Supplies and Services,504,Equipment,5023,Revenue,FURNITURE.SOFT FURNISHINGS
29-JUL-2022,7014103,4.58,ARGOS LTD,253446,"Health, Education, Care and Safeguarding",Children's & Education Services,103,Supplies and Services,504,Equipment,5023,Revenue,FURNITURE.DOMESTIC
29-JUL-2022,7014103,24.99,ARGOS LTD,253446,"Health, Education, Care and Safeguarding",Children's & Education Services,103,Supplies and Services,504,Equipment,5023,Revenue,FURNITURE.DOMESTIC
29-JUL-2022,7014115,20.24,B & Q (205037),205037,"Health, Education, Care and Safeguarding",Children's & Education Services,103,Supplies and Services,504,Equipment,5023,Revenue,BUILDING MATERIALS.GENERAL MATERIALS
29-JUL-2022,7014103,83.33,ARGOS LTD,253446,"Health, Education, Care and Safeguarding",Children's & Education Services,103,Transfer Payments,506,School Children and Students,5046,Revenue,FURNITURE.DOMESTIC
29-JUL-2022,7014110,-1.62,ASDA STORES LIMITED,306530,"Health, Education, Care and Safeguarding",Children's & Education Services,103,Supplies and Services,504,Equipment,5023,Revenue,CATERING.FOOD & BEVERAGES
29-JUL-2022,7014110,-0.01,ASDA STORES LIMITED,306530,"Health, Education, Care and Safeguarding",Children's & Education Services,103,Supplies and Services,504,Equipment,5023,Revenue,CATERING.FOOD & BEVERAGES
29-JUL-2022,7014110,0.01,ASDA STORES LIMITED,306530,"Health, Education, Care and Safeguarding",Children's & Education Services,103,Supplies and Services,504,Equipment,5023,Revenue,CATERING.FOOD & BEVERAGES
29-JUL-2022,7014110,63.56,ASDA STORES LIMITED,306530,"Health, Education, Care and Safeguarding",Children's & Education Services,103,Supplies and Services,504,Equipment,5023,Revenue,CATERING.FOOD & BEVERAGES
29-JUL-2022,7014110,82.92,ASDA STORES LIMITED,306530,"Health, Education, Care and Safeguarding",Children's & Education Services,103,Supplies and Services,504,Equipment,5023,Revenue,CATERING.FOOD & BEVERAGES
29-JUL-2022,7014110,102.18,ASDA STORES LIMITED,306530,"Health, Education, Care and Safeguarding",Children's & Education Services,103,Supplies and Services,504,Equipment,5023,Revenue,CATERING.FOOD & BEVERAGES
29-JUL-2022,7014110,109.2,ASDA STORES LIMITED,306530,"Health, Education, Care and Safeguarding",Children's & Education Services,103,Supplies and Services,504,Equipment,5023,Revenue,CATERING.FOOD & BEVERAGES
29-JUL-2022,7014110,228.58,ASDA STORES LIMITED,306530,"Health, Education, Care and Safeguarding",Children's & Education Services,103,Supplies and Services,504,Equipment,5023,Revenue,CATERING.FOOD & BEVERAGES
29-JUL-2022,7014012,22.5,SKY BUSINESS LTD,320823,"Health, Education, Care and Safeguarding",Children's & Education Services,103,Supplies and Services,504,Miscellaneous Expenses,5034,Revenue,SUBSCRIPTIONS & PUBLICATIONS.TV/RADIO LICENCES
29-JUL-2022,7013996,6.5,PRODUCT SUPPORT AG,391921,"Health, Education, Care and Safeguarding",Children's & Education Services,103,Supplies and Services,504,Miscellaneous Expenses,5034,Revenue,ICT.MAINTENANCE & SUPPORT
29-JUL-2022,7013999,-0.01,ALDI STORES LTD,391717,"Health, Education, Care and Safeguarding",Children's & Education Services,103,Supplies and Services,504,Equipment,5023,Revenue,CATERING.FOOD & BEVERAGES
29-JUL-2022,7013999,0.01,ALDI STORES LTD,391717,"Health, Education, Care and Safeguarding",Children's & Education Services,103,Supplies and Services,504,Equipment,5023,Revenue,CATERING.FOOD & BEVERAGES
29-JUL-2022,7013999,4.83,ALDI STORES LTD,391717,"Health, Education, Care and Safeguarding",Children's & Education Services,103,Supplies and Services,504,Equipment,5023,Revenue,CATERING.FOOD & BEVERAGES
29-JUL-2022,7013999,47.58,ALDI STORES LTD,391717,"Health, Education, Care and Safeguarding",Children's & Education Services,103,Supplies and Services,504,Equipment,5023,Revenue,CATERING.FOOD & BEVERAGES
29-JUL-2022,7013999,88.17,ALDI STORES LTD,391717,"Health, Education, Care and Safeguarding",Children's & Education Services,103,Supplies and Services,504,Equipment,5023,Revenue,CATERING.FOOD & BEVERAGES
29-JUL-2022,7014011,14.18,B&M RETAIL LTD,388117,"Health, Education, Care and Safeguarding",Children's & Education Services,103,Premises-Related Expenditure,502,Cleaning and Domestic Supplies,5012,Revenue,FURNITURE.DOMESTIC
29-JUL-2022,7014012,70,SKY BUSINESS LTD,320823,"Health, Education, Care and Safeguarding",Children's & Education Services,103,Supplies and Services,504,Miscellaneous Expenses,5034,Revenue,SUBSCRIPTIONS & PUBLICATIONS.TV/RADIO LICENCES
29-JUL-2022,7014057,132.5,DREAMING BEDS,383452,"Health, Education, Care and Safeguarding",Children's & Education Services,103,Supplies and Services,504,Equipment,5023,Revenue,FURNITURE.DOMESTIC
29-JUL-2022,7014073,4,AMAZON GENERAL PAYMENTS,375398,"Health, Education, Care and Safeguarding",Children's & Education Services,103,Supplies and Services,504,Equipment,5023,Revenue,EDUCATIONAL SUPPLIES.SUPPLIES
29-JUL-2022,7014073,4.88,AMAZON GENERAL PAYMENTS,375398,"Health, Education, Care and Safeguarding",Children's & Education Services,103,Supplies and Services,504,Equipment,5023,Revenue,EDUCATIONAL SUPPLIES.SUPPLIES
29-JUL-2022,7013971,16.25,ETSY,401830,"Health, Education, Care and Safeguarding",Children's & Education Services,103,Supplies and Services,504,Miscellaneous Expenses,5034,Revenue,NON INFLUENCIBLE.NON INFLUENCIBLE
29-JUL-2022,7014011,22.08,B&M RETAIL LTD,388117,"Health, Education, Care and Safeguarding",Children's & Education Services,103,Supplies and Services,504,Equipment,5023,Revenue,FURNITURE.DOMESTIC
29-JUL-2022,7014012,22.5,SKY BUSINESS LTD,320823,"Health, Education, Care and Safeguarding",Children's & Education Services,103,Supplies and Services,504,Miscellaneous Expenses,5034,Revenue,SUBSCRIPTIONS & PUBLICATIONS.TV/RADIO LICENCES
29-JUL-2022,7014041,35.1,RENTOKIL INITIAL UK LIMITED - PEST CONTROL,321392,"Health, Education, Care and Safeguarding",Children's & Education Services,103,Supplies and Services,504,Equipment,5023,Revenue,ENVIRONMENTAL SERVICES.ANIMAL SERVICES
29-JUL-2022,7014057,115.83,DREAMING BEDS,383452,"Health, Education, Care and Safeguarding",Children's & Education Services,103,Supplies and Services,504,Equipment,5023,Revenue,FURNITURE.DOMESTIC
29-JUL-2022,7014073,0.01,AMAZON GENERAL PAYMENTS,375398,"Health, Education, Care and Safeguarding",Children's & Education Services,103,Supplies and Services,504,Equipment,5023,Revenue,EDUCATIONAL SUPPLIES.SUPPLIES
29-JUL-2022,7014073,1.9,AMAZON GENERAL PAYMENTS,375398,"Health, Education, Care and Safeguarding",Children's & Education Services,103,Supplies and Services,504,Equipment,5023,Revenue,EDUCATIONAL SUPPLIES.SUPPLIES
29-JUL-2022,7014073,9.2,AMAZON GENERAL PAYMENTS,375398,"Health, Education, Care and Safeguarding",Children's & Education Services,103,Supplies and Services,504,Equipment,5023,Revenue,EDUCATIONAL SUPPLIES.SUPPLIES
29-JUL-2022,7014073,9.96,AMAZON GENERAL PAYMENTS,375398,"Health, Education, Care and Safeguarding",Children's & Education Services,103,Supplies and Services,504,Equipment,5023,Revenue,EDUCATIONAL SUPPLIES.SUPPLIES
29-JUL-2022,7014073,13.19,AMAZON GENERAL PAYMENTS,375398,"Health, Education, Care and Safeguarding",Children's & Education Services,103,Supplies and Services,504,Equipment,5023,Revenue,EDUCATIONAL SUPPLIES.SUPPLIES
29-JUL-2022,7014073,14.16,AMAZON GENERAL PAYMENTS,375398,"Health, Education, Care and Safeguarding",Children's & Education Services,103,Supplies and Services,504,Equipment,5023,Revenue,EDUCATIONAL SUPPLIES.SUPPLIES
29-JUL-2022,7014073,0.01,AMAZON GENERAL PAYMENTS,375398,"Health, Education, Care and Safeguarding",Children's & Education Services,103,Supplies and Services,504,Miscellaneous Expenses,5034,Revenue,EDUCATIONAL SUPPLIES.SUPPLIES
29-JUL-2022,7014073,20.81,AMAZON GENERAL PAYMENTS,375398,"Health, Education, Care and Safeguarding",Children's & Education Services,103,Supplies and Services,504,Miscellaneous Expenses,5034,Revenue,EDUCATIONAL SUPPLIES.SUPPLIES
29-JUL-2022,7014073,27.2,AMAZON GENERAL PAYMENTS,375398,"Health, Education, Care and Safeguarding",Children's & Education Services,103,Supplies and Services,504,Miscellaneous Expenses,5034,Revenue,EDUCATIONAL SUPPLIES.SUPPLIES
29-JUL-2022,7014073,41.6,AMAZON GENERAL PAYMENTS,375398,"Health, Education, Care and Safeguarding",Children's & Education Services,103,Supplies and Services,504,Miscellaneous Expenses,5034,Revenue,EDUCATIONAL SUPPLIES.SUPPLIES
29-JUL-2022,7014073,86.5,AMAZON GENERAL PAYMENTS,375398,"Health, Education, Care and Safeguarding",Children's & Education Services,103,Supplies and Services,504,Miscellaneous Expenses,5034,Revenue,EDUCATIONAL SUPPLIES.SUPPLIES
29-JUL-2022,7014073,124.79,AMAZON GENERAL PAYMENTS,375398,"Health, Education, Care and Safeguarding",Children's & Education Services,103,Supplies and Services,504,Miscellaneous Expenses,5034,Revenue,EDUCATIONAL SUPPLIES.SUPPLIES
29-JUL-2022,7014103,20.82,ARGOS LTD,253446,"Health, Education, Care and Safeguarding",Children's & Education Services,103,Supplies and Services,504,Equipment,5023,Revenue,FURNITURE.DOMESTIC
29-JUL-2022,7013944,35,SUPERHOG,403375,"Health, Education, Care and Safeguarding",Children's & Education Services,103,Transfer Payments,506,School Children and Students,5046,Revenue,NON INFLUENCIBLE.NON INFLUENCIBLE
29-JUL-2022,7013965,420.83,LUKE STAYS,402835,"Health, Education, Care and Safeguarding",Children's & Education Services,103,Transfer Payments,506,School Children and Students,5046,Revenue,NON INFLUENCIBLE.NON INFLUENCIBLE
29-JUL-2022,7014009,38,GENERAL REGISTER OFFICE,388286,"Health, Education, Care and Safeguarding",Children's & Education Services,103,Supplies and Services,504,Expenses,5030,Revenue,NON INFLUENCIBLE.NON INFLUENCIBLE
29-JUL-2022,7014015,35,NEWCASTLE CITY COUNCIL,014331,"Health, Education, Care and Safeguarding",Children's & Education Services,103,Supplies and Services,504,Expenses,5030,Revenue,NON INFLUENCIBLE.PUBLIC SECTOR
29-JUL-2022,7014044,-18.33,IKEA LTD,231453,"Health, Education, Care and Safeguarding",Children's & Education Services,103,Transfer Payments,506,School Children and Students,5046,Revenue,FURNITURE.DOMESTIC
29-JUL-2022,7014044,18.33,IKEA LTD,231453,"Health, Education, Care and Safeguarding",Children's & Education Services,103,Transfer Payments,506,School Children and Students,5046,Revenue,FURNITURE.DOMESTIC
29-JUL-2022,7014044,29.17,IKEA LTD,231453,"Health, Education, Care and Safeguarding",Children's & Education Services,103,Transfer Payments,506,School Children and Students,5046,Revenue,FURNITURE.DOMESTIC
29-JUL-2022,7014073,26.66,AMAZON GENERAL PAYMENTS,375398,"Health, Education, Care and Safeguarding",Children's & Education Services,103,Supplies and Services,504,Miscellaneous Expenses,5034,Revenue,EDUCATIONAL SUPPLIES.SUPPLIES
29-JUL-2022,7014073,33.32,AMAZON GENERAL PAYMENTS,375398,"Health, Education, Care and Safeguarding",Children's & Education Services,103,Supplies and Services,504,Miscellaneous Expenses,5034,Revenue,EDUCATIONAL SUPPLIES.SUPPLIES
29-JUL-2022,7014108,750.99,TRAINLINE.COM LTD,378856,"Health, Education, Care and Safeguarding",Children's & Education Services,103,Supplies and Services,504,Expenses,5030,Revenue,HUMAN RESOURCES.TRAVEL & SUBSISTENCE
29-JUL-2022,7014032,28.33,DVLA,322925,"Health, Education, Care and Safeguarding",Children's & Education Services,103,Supplies and Services,504,Miscellaneous Expenses,5034,Revenue,NON INFLUENCIBLE.NON INFLUENCIBLE
29-JUL-2022,7014009,-35,GENERAL REGISTER OFFICE,388286,"Health, Education, Care and Safeguarding",Children's & Education Services,103,Supplies and Services,504,Expenses,5030,Revenue,NON INFLUENCIBLE.NON INFLUENCIBLE
29-JUL-2022,7014009,35,GENERAL REGISTER OFFICE,388286,"Health, Education, Care and Safeguarding",Children's & Education Services,103,Supplies and Services,504,Expenses,5030,Revenue,NON INFLUENCIBLE.NON INFLUENCIBLE
29-JUL-2022,7014009,38,GENERAL REGISTER OFFICE,388286,"Health, Education, Care and Safeguarding",Children's & Education Services,103,Supplies and Services,504,Expenses,5030,Revenue,NON INFLUENCIBLE.NON INFLUENCIBLE
29-JUL-2022,7014009,73,GENERAL REGISTER OFFICE,388286,"Health, Education, Care and Safeguarding",Children's & Education Services,103,Supplies and Services,504,Expenses,5030,Revenue,NON INFLUENCIBLE.NON INFLUENCIBLE
29-JUL-2022,7014009,38,GENERAL REGISTER OFFICE,388286,"Health, Education, Care and Safeguarding",Children's & Education Services,103,Supplies and Services,504,Miscellaneous Expenses,5034,Revenue,NON INFLUENCIBLE.NON INFLUENCIBLE
29-JUL-2022,7014030,49,HER MAJESTY'S PASSPORT OFFICE,342302,"Health, Education, Care and Safeguarding",Children's & Education Services,103,Supplies and Services,504,Expenses,5030,Revenue,NON INFLUENCIBLE.NON INFLUENCIBLE
29-JUL-2022,7014091,579.23,HOTEL ONBOOKING.COM,395243,"Health, Education, Care and Safeguarding",Children's & Education Services,103,Third Party Payments,505,Private Contractors,5042,Revenue,HUMAN RESOURCES.ACCOMMODATION
29-JUL-2022,7014091,1317.5,HOTEL ONBOOKING.COM,395243,"Health, Education, Care and Safeguarding",Children's & Education Services,103,Third Party Payments,505,Private Contractors,5042,Revenue,HUMAN RESOURCES.ACCOMMODATION
29-JUL-2022,7013965,506,LUKE STAYS,402835,"Health, Education, Care and Safeguarding",Children's & Education Services,103,Transfer Payments,506,School Children and Students,5046,Revenue,NON INFLUENCIBLE.NON INFLUENCIBLE
29-JUL-2022,7013965,876.67,LUKE STAYS,402835,"Health, Education, Care and Safeguarding",Children's & Education Services,103,Transfer Payments,506,School Children and Students,5046,Revenue,NON INFLUENCIBLE.NON INFLUENCIBLE
29-JUL-2022,7014009,-35,GENERAL REGISTER OFFICE,388286,"Health, Education, Care and Safeguarding",Children's & Education Services,103,Supplies and Services,504,Expenses,5030,Revenue,NON INFLUENCIBLE.NON INFLUENCIBLE
29-JUL-2022,7014009,-31.5,GENERAL REGISTER OFFICE,388286,"Health, Education, Care and Safeguarding",Children's & Education Services,103,Supplies and Services,504,Expenses,5030,Revenue,NON INFLUENCIBLE.NON INFLUENCIBLE
29-JUL-2022,7014009,36.5,GENERAL REGISTER OFFICE,388286,"Health, Education, Care and Safeguarding",Children's & Education Services,103,Supplies and Services,504,Expenses,5030,Revenue,NON INFLUENCIBLE.NON INFLUENCIBLE
29-JUL-2022,7014009,38,GENERAL REGISTER OFFICE,388286,"Health, Education, Care and Safeguarding",Children's & Education Services,103,Supplies and Services,504,Expenses,5030,Revenue,NON INFLUENCIBLE.NON INFLUENCIBLE
29-JUL-2022,7014009,73,GENERAL REGISTER OFFICE,388286,"Health, Education, Care and Safeguarding",Children's & Education Services,103,Supplies and Services,504,Expenses,5030,Revenue,NON INFLUENCIBLE.NON INFLUENCIBLE
29-JUL-2022,7014009,35,GENERAL REGISTER OFFICE,388286,"Health, Education, Care and Safeguarding",Children's & Education Services,103,Supplies and Services,504,Expenses,5030,Revenue,NON INFLUENCIBLE.NON INFLUENCIBLE
29-JUL-2022,7014015,70,NEWCASTLE CITY COUNCIL,014331,"Health, Education, Care and Safeguarding",Children's & Education Services,103,Supplies and Services,504,Expenses,5030,Revenue,NON INFLUENCIBLE.PUBLIC SECTOR
29-JUL-2022,7014043,1376.24,NORTH TYNESIDE COUNCIL,102767,"Health, Education, Care and Safeguarding",Children's & Education Services,103,Transfer Payments,506,School Children and Students,5046,Revenue,NON INFLUENCIBLE.PUBLIC SECTOR
29-JUL-2022,7014049,20,TESCO STORES LTD,336585,"Health, Education, Care and Safeguarding",Children's & Education Services,103,Supplies and Services,504,Miscellaneous Expenses,5034,Revenue,CATERING.FOOD & BEVERAGES
29-JUL-2022,7014049,25,TESCO STORES LTD,336585,"Health, Education, Care and Safeguarding",Children's & Education Services,103,Supplies and Services,504,Miscellaneous Expenses,5034,Revenue,CATERING.FOOD & BEVERAGES
29-JUL-2022,7014049,25,TESCO STORES LTD,336585,"Health, Education, Care and Safeguarding",Children's & Education Services,103,Supplies and Services,504,Miscellaneous Expenses,5034,Revenue,CATERING.FOOD & BEVERAGES
29-JUL-2022,7014073,28.47,AMAZON GENERAL PAYMENTS,375398,"Health, Education, Care and Safeguarding",Children's & Education Services,103,Supplies and Services,504,Miscellaneous Expenses,5034,Revenue,EDUCATIONAL SUPPLIES.SUPPLIES
29-JUL-2022,7013940,0.01,WF (PURCHASE CARD),403379,"Health, Education, Care and Safeguarding",Children's & Education Services,103,Supplies and Services,504,Equipment,5023,Revenue,NON INFLUENCIBLE.NON INFLUENCIBLE
29-JUL-2022,7013940,109.99,WF (PURCHASE CARD),403379,"Health, Education, Care and Safeguarding",Children's & Education Services,103,Supplies and Services,504,Equipment,5023,Revenue,NON INFLUENCIBLE.NON INFLUENCIBLE
29-JUL-2022,7013940,133.32,WF (PURCHASE CARD),403379,"Health, Education, Care and Safeguarding",Children's & Education Services,103,Supplies and Services,504,Equipment,5023,Revenue,NON INFLUENCIBLE.NON INFLUENCIBLE
29-JUL-2022,7013941,6.1,VINNY SANDWICH SHOP,403378,"Health, Education, Care and Safeguarding",Children's & Education Services,103,Third Party Payments,505,Other Establishments,5041,Revenue,NON INFLUENCIBLE.NON INFLUENCIBLE
29-JUL-2022,7013946,281.67,SLEEP & SNOOZE,403373,"Health, Education, Care and Safeguarding",Children's & Education Services,103,Third Party Payments,505,Other Establishments,5041,Revenue,NON INFLUENCIBLE.NON INFLUENCIBLE
29-JUL-2022,7013958,8.4,ROYAL VICTORIA INFIRMARY,340684,"Health, Education, Care and Safeguarding",Children's & Education Services,103,Supplies and Services,504,Expenses,5030,Revenue,NON INFLUENCIBLE.PUBLIC SECTOR
29-JUL-2022,7013963,2,PREMIER PARK,403016,"Health, Education, Care and Safeguarding",Children's & Education Services,103,Supplies and Services,504,Expenses,5030,Revenue,NON INFLUENCIBLE.NON INFLUENCIBLE
29-JUL-2022,7013992,14.29,BRITISH GAS BUSINESS,361360,"Health, Education, Care and Safeguarding",Children's & Education Services,103,Supplies and Services,504,Communications & Computing,5028,Revenue,GAS.GAS
29-JUL-2022,7013992,14.29,BRITISH GAS BUSINESS,361360,"Health, Education, Care and Safeguarding",Children's & Education Services,103,Supplies and Services,504,Communications & Computing,5028,Revenue,GAS.GAS
29-JUL-2022,7013999,20,ALDI STORES LTD,391717,"Health, Education, Care and Safeguarding",Children's & Education Services,103,Third Party Payments,505,Other Establishments,5041,Revenue,CATERING.FOOD & BEVERAGES
29-JUL-2022,7013999,25,ALDI STORES LTD,391717,"Health, Education, Care and Safeguarding",Children's & Education Services,103,Third Party Payments,505,Other Establishments,5041,Revenue,CATERING.FOOD & BEVERAGES
29-JUL-2022,7014000,7.31,SUBWAY,391486,"Health, Education, Care and Safeguarding",Children's & Education Services,103,Third Party Payments,505,Other Establishments,5041,Revenue,CATERING.FOOD & BEVERAGES
29-JUL-2022,7014001,5,EMAP PUBLISHING LTD,208794,"Health, Education, Care and Safeguarding",Children's & Education Services,103,Third Party Payments,505,Other Establishments,5041,Revenue,ADVERTISING & MARKETING.EVENTS & PROMOTIONS
29-JUL-2022,7014008,4.16,LIDL UK GMBH,383629,"Health, Education, Care and Safeguarding",Children's & Education Services,103,Third Party Payments,505,Other Establishments,5041,Revenue,NON INFLUENCIBLE.GRANTS
29-JUL-2022,7014008,6.64,LIDL UK GMBH,383629,"Health, Education, Care and Safeguarding",Children's & Education Services,103,Third Party Payments,505,Other Establishments,5041,Revenue,NON INFLUENCIBLE.GRANTS
29-JUL-2022,7014009,9.17,GENERAL REGISTER OFFICE,388286,"Health, Education, Care and Safeguarding",Children's & Education Services,103,Third Party Payments,505,Other Establishments,5041,Revenue,NON INFLUENCIBLE.NON INFLUENCIBLE
29-JUL-2022,7014013,555.42,HESLOP APPLIANCES,387960,"Health, Education, Care and Safeguarding",Children's & Education Services,103,Third Party Payments,505,Other Establishments,5041,Revenue,CATERING.EQUIPMENT & UTENSILS
29-JUL-2022,7014013,565,HESLOP APPLIANCES,387960,"Health, Education, Care and Safeguarding",Children's & Education Services,103,Third Party Payments,505,Other Establishments,5041,Revenue,CATERING.EQUIPMENT & UTENSILS
29-JUL-2022,7014016,4.17,GREGGS PLC,340206,"Health, Education, Care and Safeguarding",Children's & Education Services,103,Third Party Payments,505,Other Establishments,5041,Revenue,CATERING.FOOD & BEVERAGES
29-JUL-2022,7014020,500.83,FRANKS THE FLOORING STORE,367234,"Health, Education, Care and Safeguarding",Children's & Education Services,103,Third Party Payments,505,Other Establishments,5041,Revenue,FURNITURE.SOFT FURNISHINGS
29-JUL-2022,7014032,20,DVLA,322925,"Health, Education, Care and Safeguarding",Children's & Education Services,103,Third Party Payments,505,Other Establishments,5041,Revenue,NON INFLUENCIBLE.NON INFLUENCIBLE
29-JUL-2022,7014032,28.33,DVLA,322925,"Health, Education, Care and Safeguarding",Children's & Education Services,103,Third Party Payments,505,Other Establishments,5041,Revenue,NON INFLUENCIBLE.NON INFLUENCIBLE
29-JUL-2022,7014032,34,DVLA,322925,"Health, Education, Care and Safeguarding",Children's & Education Services,103,Third Party Payments,505,Other Establishments,5041,Revenue,NON INFLUENCIBLE.NON INFLUENCIBLE
29-JUL-2022,7014034,5,NEXT PLC,338362,"Health, Education, Care and Safeguarding",Children's & Education Services,103,Third Party Payments,505,Other Establishments,5041,Revenue,NON INFLUENCIBLE.NON INFLUENCIBLE
29-JUL-2022,7014037,231.46,WILKO RETAIL LIMITED,280813,"Health, Education, Care and Safeguarding",Children's & Education Services,103,Third Party Payments,505,Other Establishments,5041,Revenue,NON INFLUENCIBLE.REDECORATION GRANTS
29-JUL-2022,7014037,11.67,WILKO RETAIL LIMITED,280813,"Health, Education, Care and Safeguarding",Children's & Education Services,103,Third Party Payments,505,Other Establishments,5041,Revenue,NON INFLUENCIBLE.REDECORATION GRANTS
29-JUL-2022,7014043,1.2,NORTH TYNESIDE COUNCIL,102767,"Health, Education, Care and Safeguarding",Children's & Education Services,103,Supplies and Services,504,Expenses,5030,Revenue,NON INFLUENCIBLE.PUBLIC SECTOR
29-JUL-2022,7014043,17,NORTH TYNESIDE COUNCIL,102767,"Health, Education, Care and Safeguarding",Children's & Education Services,103,Third Party Payments,505,Other Establishments,5041,Revenue,NON INFLUENCIBLE.PUBLIC SECTOR
29-JUL-2022,7014043,762.85,NORTH TYNESIDE COUNCIL,102767,"Health, Education, Care and Safeguarding",Children's & Education Services,103,Third Party Payments,505,Other Establishments,5041,Revenue,NON INFLUENCIBLE.PUBLIC SECTOR
29-JUL-2022,7014043,41.67,NORTH TYNESIDE COUNCIL,102767,"Health, Education, Care and Safeguarding",Children's & Education Services,103,Third Party Payments,505,Other Establishments,5041,Revenue,NON INFLUENCIBLE.PUBLIC SECTOR
29-JUL-2022,7014043,17.46,NORTH TYNESIDE COUNCIL,102767,"Health, Education, Care and Safeguarding",Children's & Education Services,103,Third Party Payments,505,Other Establishments,5041,Revenue,NON INFLUENCIBLE.PUBLIC SECTOR
29-JUL-2022,7014048,5,WM MORRISON SUPERMARKETS PLC,013562,"Health, Education, Care and Safeguarding",Children's & Education Services,103,Third Party Payments,505,Other Establishments,5041,Revenue,CATERING.FOOD & BEVERAGES
29-JUL-2022,7014049,38.6,TESCO STORES LTD,336585,"Health, Education, Care and Safeguarding",Children's & Education Services,103,Supplies and Services,504,Equipment,5023,Revenue,CATERING.FOOD & BEVERAGES
29-JUL-2022,7014049,10,TESCO STORES LTD,336585,"Health, Education, Care and Safeguarding",Children's & Education Services,103,Supplies and Services,504,Communications & Computing,5028,Revenue,CATERING.FOOD & BEVERAGES
29-JUL-2022,7014049,0.01,TESCO STORES LTD,336585,"Health, Education, Care and Safeguarding",Children's & Education Services,103,Third Party Payments,505,Other Establishments,5041,Revenue,CATERING.FOOD & BEVERAGES
29-JUL-2022,7014049,18.32,TESCO STORES LTD,336585,"Health, Education, Care and Safeguarding",Children's & Education Services,103,Third Party Payments,505,Other Establishments,5041,Revenue,CATERING.FOOD & BEVERAGES
29-JUL-2022,7014049,40,TESCO STORES LTD,336585,"Health, Education, Care and Safeguarding",Children's & Education Services,103,Third Party Payments,505,Other Establishments,5041,Revenue,CATERING.FOOD & BEVERAGES
29-JUL-2022,7014050,130,HOMEBASE LIMITED,329060,"Health, Education, Care and Safeguarding",Children's & Education Services,103,Supplies and Services,504,Equipment,5023,Revenue,BUILDING MATERIALS.GENERAL MATERIALS
29-JUL-2022,7014055,5.24,ASDA DIRECT WEB 4387,381378,"Health, Education, Care and Safeguarding",Children's & Education Services,103,Third Party Payments,505,Other Establishments,5041,Revenue,CATERING.FOOD & BEVERAGES
29-JUL-2022,7014056,6.21,KFC,381365,"Health, Education, Care and Safeguarding",Children's & Education Services,103,Third Party Payments,505,Other Establishments,5041,Revenue,CATERING.FOOD & BEVERAGES
29-JUL-2022,7014060,3.2,NEXUS,305246,"Health, Education, Care and Safeguarding",Children's & Education Services,103,Supplies and Services,504,Expenses,5030,Revenue,NON INFLUENCIBLE.NON INFLUENCIBLE
29-JUL-2022,7014063,7.25,MARKS & SPENCER PLC,013098,"Health, Education, Care and Safeguarding",Children's & Education Services,103,Third Party Payments,505,Other Establishments,5041,Revenue,CATERING.FOOD & BEVERAGES
29-JUL-2022,7014068,2.5,POUNDLAND LTD,383123,"Health, Education, Care and Safeguarding",Children's & Education Services,103,Third Party Payments,505,Other Establishments,5041,Revenue,CLEANING & JANITORIAL.CLEANING MATERIALS
29-JUL-2022,7014070,3.17,TT2 LTD,377653,"Health, Education, Care and Safeguarding",Children's & Education Services,103,Third Party Payments,505,Other Establishments,5041,Revenue,NON INFLUENCIBLE.NON INFLUENCIBLE
29-JUL-2022,7014071,13.33,COSTA COFFEE,375193,"Health, Education, Care and Safeguarding",Children's & Education Services,103,Third Party Payments,505,Other Establishments,5041,Revenue,CATERING.FOOD & BEVERAGES
29-JUL-2022,7014073,14.16,AMAZON GENERAL PAYMENTS,375398,"Health, Education, Care and Safeguarding",Children's & Education Services,103,Supplies and Services,504,Equipment,5023,Revenue,EDUCATIONAL SUPPLIES.SUPPLIES
29-JUL-2022,7014073,19.16,AMAZON GENERAL PAYMENTS,375398,"Health, Education, Care and Safeguarding",Children's & Education Services,103,Supplies and Services,504,Equipment,5023,Revenue,EDUCATIONAL SUPPLIES.SUPPLIES
29-JUL-2022,7014073,20,AMAZON GENERAL PAYMENTS,375398,"Health, Education, Care and Safeguarding",Children's & Education Services,103,Third Party Payments,505,Other Establishments,5041,Revenue,EDUCATIONAL SUPPLIES.SUPPLIES
29-JUL-2022,7014080,0.01,DISCOUNT CENTRE (383602),397461,"Health, Education, Care and Safeguarding",Children's & Education Services,103,Third Party Payments,505,Other Establishments,5041,Revenue,
29-JUL-2022,7014080,13.32,DISCOUNT CENTRE (383602),397461,"Health, Education, Care and Safeguarding",Children's & Education Services,103,Third Party Payments,505,Other Establishments,5041,Revenue,
29-JUL-2022,7014082,60,PASSNGO.NET,397232,"Health, Education, Care and Safeguarding",Children's & Education Services,103,Third Party Payments,505,Other Establishments,5041,Revenue,
29-JUL-2022,7014090,20,UTILITA ENERGY LIMITED,395514,"Health, Education, Care and Safeguarding",Children's & Education Services,103,Third Party Payments,505,Other Establishments,5041,Revenue,GAS.GAS
29-JUL-2022,7014090,25,UTILITA ENERGY LIMITED,395514,"Health, Education, Care and Safeguarding",Children's & Education Services,103,Third Party Payments,505,Other Establishments,5041,Revenue,GAS.GAS
29-JUL-2022,7014102,0.01,BLAYDON COMMUNICATIONS LTD,002858,"Health, Education, Care and Safeguarding",Children's & Education Services,103,Third Party Payments,505,Other Establishments,5041,Revenue,EDUCATIONAL SUPPLIES.AUDIO VISUAL
29-JUL-2022,7014102,8.37,BLAYDON COMMUNICATIONS LTD,002858,"Health, Education, Care and Safeguarding",Children's & Education Services,103,Third Party Payments,505,Other Establishments,5041,Revenue,EDUCATIONAL SUPPLIES.AUDIO VISUAL
29-JUL-2022,7014103,-0.01,ARGOS LTD,253446,"Health, Education, Care and Safeguarding",Children's & Education Services,103,Supplies and Services,504,Equipment,5023,Revenue,FURNITURE.DOMESTIC
29-JUL-2022,7014103,-0.01,ARGOS LTD,253446,"Health, Education, Care and Safeguarding",Children's & Education Services,103,Supplies and Services,504,Equipment,5023,Revenue,FURNITURE.DOMESTIC
29-JUL-2022,7014103,41.67,ARGOS LTD,253446,"Health, Education, Care and Safeguarding",Children's & Education Services,103,Supplies and Services,504,Equipment,5023,Revenue,FURNITURE.DOMESTIC
29-JUL-2022,7014103,389.96,ARGOS LTD,253446,"Health, Education, Care and Safeguarding",Children's & Education Services,103,Supplies and Services,504,Equipment,5023,Revenue,FURNITURE.DOMESTIC
29-JUL-2022,7014103,45.83,ARGOS LTD,253446,"Health, Education, Care and Safeguarding",Children's & Education Services,103,Third Party Payments,505,Other Establishments,5041,Revenue,FURNITURE.DOMESTIC
29-JUL-2022,7014103,190.83,ARGOS LTD,253446,"Health, Education, Care and Safeguarding",Children's & Education Services,103,Third Party Payments,505,Other Establishments,5041,Revenue,FURNITURE.DOMESTIC
29-JUL-2022,7014103,645.83,ARGOS LTD,253446,"Health, Education, Care and Safeguarding",Children's & Education Services,103,Third Party Payments,505,Other Establishments,5041,Revenue,FURNITURE.DOMESTIC
29-JUL-2022,7014110,20,ASDA STORES LIMITED,306530,"Health, Education, Care and Safeguarding",Children's & Education Services,103,Third Party Payments,505,Other Establishments,5041,Revenue,CATERING.FOOD & BEVERAGES
29-JUL-2022,7014110,48.27,ASDA STORES LIMITED,306530,"Health, Education, Care and Safeguarding",Children's & Education Services,103,Third Party Payments,505,Other Establishments,5041,Revenue,CATERING.FOOD & BEVERAGES
29-JUL-2022,7014112,20,HIGHSTREET VOUCHERS,380041,"Health, Education, Care and Safeguarding",Children's & Education Services,103,Third Party Payments,505,Other Establishments,5041,Revenue,ADVERTISING & MARKETING.EVENTS & PROMOTIONS
29-JUL-2022,7014112,20,HIGHSTREET VOUCHERS,380041,"Health, Education, Care and Safeguarding",Children's & Education Services,103,Third Party Payments,505,Other Establishments,5041,Revenue,ADVERTISING & MARKETING.EVENTS & PROMOTIONS
29-JUL-2022,7014112,20,HIGHSTREET VOUCHERS,380041,"Health, Education, Care and Safeguarding",Children's & Education Services,103,Third Party Payments,505,Other Establishments,5041,Revenue,ADVERTISING & MARKETING.EVENTS & PROMOTIONS
29-JUL-2022,7014112,25,HIGHSTREET VOUCHERS,380041,"Health, Education, Care and Safeguarding",Children's & Education Services,103,Third Party Payments,505,Other Establishments,5041,Revenue,ADVERTISING & MARKETING.EVENTS & PROMOTIONS
29-JUL-2022,7014118,159,TV LICENSING,014515,"Health, Education, Care and Safeguarding",Children's & Education Services,103,Third Party Payments,505,Other Establishments,5041,Revenue,SUBSCRIPTIONS & PUBLICATIONS.TV/RADIO LICENCES
29-JUL-2022,7014009,36.5,GENERAL REGISTER OFFICE,388286,"Health, Education, Care and Safeguarding",Children's & Education Services,103,Supplies and Services,504,Expenses,5030,Revenue,NON INFLUENCIBLE.NON INFLUENCIBLE
29-JUL-2022,7014091,1244.17,HOTEL ONBOOKING.COM,395243,"Health, Education, Care and Safeguarding",Children's & Education Services,103,Transfer Payments,506,School Children and Students,5046,Revenue,HUMAN RESOURCES.ACCOMMODATION
29-JUL-2022,7014049,5,TESCO STORES LTD,336585,Corporate Strategy,Children's & Education Services,103,Supplies and Services,504,Catering,5024,Revenue,CATERING.FOOD & BEVERAGES
29-JUL-2022,7014049,31.54,TESCO STORES LTD,336585,Corporate Strategy,Children's & Education Services,103,Supplies and Services,504,Catering,5024,Revenue,CATERING.FOOD & BEVERAGES
29-JUL-2022,7013936,16.29,TAKEAWAY,403381,Corporate Strategy,Children's & Education Services,103,Supplies and Services,504,Catering,5024,Revenue,NON INFLUENCIBLE.NON INFLUENCIBLE
29-JUL-2022,7013936,21.92,TAKEAWAY,403381,Corporate Strategy,Children's & Education Services,103,Supplies and Services,504,Catering,5024,Revenue,NON INFLUENCIBLE.NON INFLUENCIBLE
29-JUL-2022,7013968,31.23,SIDHU FISH AND CHIPS,402229,Corporate Strategy,Children's & Education Services,103,Supplies and Services,504,Catering,5024,Revenue,NON INFLUENCIBLE.NON INFLUENCIBLE
29-JUL-2022,7013999,16.35,ALDI STORES LTD,391717,Corporate Strategy,Children's & Education Services,103,Supplies and Services,504,Catering,5024,Revenue,CATERING.FOOD & BEVERAGES
29-JUL-2022,7013950,3.67,IZ,403357,Corporate Strategy,Children's & Education Services,103,Supplies and Services,504,Catering,5024,Revenue,NON INFLUENCIBLE.NON INFLUENCIBLE
29-JUL-2022,7014112,296.04,HIGHSTREET VOUCHERS,380041,Corporate Strategy,Children's & Education Services,103,Supplies and Services,504,Equipment,5023,Revenue,ADVERTISING & MARKETING.EVENTS & PROMOTIONS
29-JUL-2022,7014006,20,WALKERGATE & PARKSIDE,346590,"Health, Education, Care and Safeguarding",Children's & Education Services,103,Premises-Related Expenditure,502,"Repairs, alterations and maintenance of buildings",5005,Revenue,HORTICULTURAL.TOOLS & EQUIPMENT
29-JUL-2022,7014029,79.8,IRONMONGERY DIRECT LTD,385120,"Health, Education, Care and Safeguarding",Children's & Education Services,103,Premises-Related Expenditure,502,"Repairs, alterations and maintenance of buildings",5005,Revenue,FURNITURE.DOMESTIC
29-JUL-2022,7014074,0.01,SCREWFIX,383257,"Health, Education, Care and Safeguarding",Children's & Education Services,103,Premises-Related Expenditure,502,"Repairs, alterations and maintenance of buildings",5005,Revenue,BUILDING MATERIALS.GENERAL MATERIALS
29-JUL-2022,7014074,7.9,SCREWFIX,383257,"Health, Education, Care and Safeguarding",Children's & Education Services,103,Premises-Related Expenditure,502,"Repairs, alterations and maintenance of buildings",5005,Revenue,BUILDING MATERIALS.GENERAL MATERIALS
29-JUL-2022,7014074,9.98,SCREWFIX,383257,"Health, Education, Care and Safeguarding",Children's & Education Services,103,Premises-Related Expenditure,502,"Repairs, alterations and maintenance of buildings",5005,Revenue,BUILDING MATERIALS.GENERAL MATERIALS
29-JUL-2022,7014074,9.99,SCREWFIX,383257,"Health, Education, Care and Safeguarding",Children's & Education Services,103,Premises-Related Expenditure,502,"Repairs, alterations and maintenance of buildings",5005,Revenue,BUILDING MATERIALS.GENERAL MATERIALS
29-JUL-2022,7014074,14.97,SCREWFIX,383257,"Health, Education, Care and Safeguarding",Children's & Education Services,103,Premises-Related Expenditure,502,"Repairs, alterations and maintenance of buildings",5005,Revenue,BUILDING MATERIALS.GENERAL MATERIALS
29-JUL-2022,7014074,18.3,SCREWFIX,383257,"Health, Education, Care and Safeguarding",Children's & Education Services,103,Premises-Related Expenditure,502,"Repairs, alterations and maintenance of buildings",5005,Revenue,BUILDING MATERIALS.GENERAL MATERIALS
29-JUL-2022,7014074,54.84,SCREWFIX,383257,"Health, Education, Care and Safeguarding",Children's & Education Services,103,Premises-Related Expenditure,502,"Repairs, alterations and maintenance of buildings",5005,Revenue,BUILDING MATERIALS.GENERAL MATERIALS
29-JUL-2022,7014062,26.5,CITY ELECTRICAL FACTORS LTD,003739,"Health, Education, Care and Safeguarding",Children's & Education Services,103,Premises-Related Expenditure,502,"Repairs, alterations and maintenance of buildings",5005,Revenue,BUILDING MATERIALS.ELECTRICAL
29-JUL-2022,7014062,60,CITY ELECTRICAL FACTORS LTD,003739,"Health, Education, Care and Safeguarding",Children's & Education Services,103,Premises-Related Expenditure,502,"Repairs, alterations and maintenance of buildings",5005,Revenue,BUILDING MATERIALS.ELECTRICAL
29-JUL-2022,7014115,-0.01,B & Q (205037),205037,"Health, Education, Care and Safeguarding",Children's & Education Services,103,Premises-Related Expenditure,502,"Repairs, alterations and maintenance of buildings",5005,Revenue,BUILDING MATERIALS.GENERAL MATERIALS
29-JUL-2022,7014115,11.67,B & Q (205037),205037,"Health, Education, Care and Safeguarding",Children's & Education Services,103,Premises-Related Expenditure,502,"Repairs, alterations and maintenance of buildings",5005,Revenue,BUILDING MATERIALS.GENERAL MATERIALS
29-JUL-2022,7014047,9.16,FE MAUGHAN LTD,013143,"Sport, Leisure & Community",Cultural & Related Services,104,Supplies and Services,504,Equipment,5023,Revenue,NON INFLUENCIBLE.REDECORATION GRANTS
29-JUL-2022,7014047,23.32,FE MAUGHAN LTD,013143,"Sport, Leisure & Community",Cultural & Related Services,104,Supplies and Services,504,Equipment,5023,Revenue,NON INFLUENCIBLE.REDECORATION GRANTS
29-JUL-2022,7014073,0.01,AMAZON GENERAL PAYMENTS,375398,"Sport, Leisure & Community",Cultural & Related Services,104,Supplies and Services,504,Equipment,5023,Revenue,EDUCATIONAL SUPPLIES.SUPPLIES
29-JUL-2022,7014073,8.74,AMAZON GENERAL PAYMENTS,375398,"Sport, Leisure & Community",Cultural & Related Services,104,Supplies and Services,504,Equipment,5023,Revenue,EDUCATIONAL SUPPLIES.SUPPLIES
29-JUL-2022,7014073,21.98,AMAZON GENERAL PAYMENTS,375398,"Sport, Leisure & Community",Cultural & Related Services,104,Supplies and Services,504,Equipment,5023,Revenue,EDUCATIONAL SUPPLIES.SUPPLIES
29-JUL-2022,7014115,52.04,B & Q (205037),205037,"Sport, Leisure & Community",Cultural & Related Services,104,Supplies and Services,504,Equipment,5023,Revenue,BUILDING MATERIALS.GENERAL MATERIALS
29-JUL-2022,7014065,144,LOCKWISE LTD,012706,"Health, Education, Care and Safeguarding",Children's & Education Services,103,Supplies and Services,504,Equipment,5023,Revenue,REPAIRS & MAINTENANCE.REPAIRS & MAINTENANCE
29-JUL-2022,7013994,243.42,AO RETAIL LIMITED,392123,"Health, Education, Care and Safeguarding",Children's & Education Services,103,Supplies and Services,504,Miscellaneous Expenses,5034,Revenue,CATERING.EQUIPMENT & UTENSILS
29-JUL-2022,7014119,500,QUADIENT,274468,"Health, Education, Care and Safeguarding",Children's & Education Services,103,Supplies and Services,504,Communications & Computing,5028,Revenue,MAIL SERVICES.POSTAGE
29-JUL-2022,7014119,200,QUADIENT,274468,"Health, Education, Care and Safeguarding",Children's & Education Services,103,Supplies and Services,504,Communications & Computing,5028,Revenue,MAIL SERVICES.POSTAGE
29-JUL-2022,7014119,100,QUADIENT,274468,"Health, Education, Care and Safeguarding",Children's & Education Services,103,Supplies and Services,504,Communications & Computing,5028,Revenue,MAIL SERVICES.POSTAGE
29-JUL-2022,7014058,-42,JD SPORTS,382976,"Health, Education, Care and Safeguarding",Children's & Education Services,103,Supplies and Services,504,"Clothing, Uniforms and Laundry",5025,Revenue,CLOTHING.CHILDRENS & ADULTS
29-JUL-2022,7014103,195.83,ARGOS LTD,253446,"Health, Education, Care and Safeguarding",Children's & Education Services,103,Supplies and Services,504,Equipment,5023,Revenue,FURNITURE.DOMESTIC
29-JUL-2022,7014045,216.67,HALFORDS,347854,"Health, Education, Care and Safeguarding",Housing Services,108,Supplies and Services,504,Equipment,5023,Revenue,FINANCIAL SERVICES.FINANCIAL SERVICES
29-JUL-2022,7013945,20,SP (PURCHASE CARD),403374,"Health, Education, Care and Safeguarding",Children's & Education Services,103,Supplies and Services,504,"Clothing, Uniforms and Laundry",5025,Revenue,NON INFLUENCIBLE.NON INFLUENCIBLE
29-JUL-2022,7014011,79.07,B&M RETAIL LTD,388117,"Health, Education, Care and Safeguarding",Children's & Education Services,103,Supplies and Services,504,Equipment,5023,Revenue,FURNITURE.DOMESTIC
29-JUL-2022,7014012,41.67,SKY BUSINESS LTD,320823,"Health, Education, Care and Safeguarding",Children's & Education Services,103,Supplies and Services,504,Miscellaneous Expenses,5034,Revenue,SUBSCRIPTIONS & PUBLICATIONS.TV/RADIO LICENCES
29-JUL-2022,7014051,260,PAYPAL GENERAL PAYMENTS,383689,"Health, Education, Care and Safeguarding",Children's & Education Services,103,Supplies and Services,504,Expenses,5030,Revenue,FINANCIAL SERVICES.FINANCIAL SERVICES
29-JUL-2022,7014073,0.01,AMAZON GENERAL PAYMENTS,375398,"Health, Education, Care and Safeguarding",Children's & Education Services,103,Supplies and Services,504,Equipment,5023,Revenue,EDUCATIONAL SUPPLIES.SUPPLIES
29-JUL-2022,7014073,19.08,AMAZON GENERAL PAYMENTS,375398,"Health, Education, Care and Safeguarding",Children's & Education Services,103,Supplies and Services,504,Equipment,5023,Revenue,EDUCATIONAL SUPPLIES.SUPPLIES
29-JUL-2022,7014115,-7.47,B & Q (205037),205037,"Health, Education, Care and Safeguarding",Children's & Education Services,103,Supplies and Services,504,Equipment,5023,Revenue,BUILDING MATERIALS.GENERAL MATERIALS
29-JUL-2022,7014115,-0.01,B & Q (205037),205037,"Health, Education, Care and Safeguarding",Children's & Education Services,103,Supplies and Services,504,Equipment,5023,Revenue,BUILDING MATERIALS.GENERAL MATERIALS
29-JUL-2022,7014115,-0.01,B & Q (205037),205037,"Health, Education, Care and Safeguarding",Children's & Education Services,103,Supplies and Services,504,Equipment,5023,Revenue,BUILDING MATERIALS.GENERAL MATERIALS
29-JUL-2022,7014115,1.67,B & Q (205037),205037,"Health, Education, Care and Safeguarding",Children's & Education Services,103,Supplies and Services,504,Equipment,5023,Revenue,BUILDING MATERIALS.GENERAL MATERIALS
29-JUL-2022,7014115,54.82,B & Q (205037),205037,"Health, Education, Care and Safeguarding",Children's & Education Services,103,Supplies and Services,504,Equipment,5023,Revenue,BUILDING MATERIALS.GENERAL MATERIALS
29-JUL-2022,7013987,145,UTTER CLUTTER,399205,"Health, Education, Care and Safeguarding",Children's & Education Services,103,Supplies and Services,504,Equipment,5023,Revenue,FURNITURE.COMMERCIAL
29-JUL-2022,7013987,436.67,UTTER CLUTTER,399205,"Health, Education, Care and Safeguarding",Children's & Education Services,103,Supplies and Services,504,Equipment,5023,Revenue,FURNITURE.COMMERCIAL
29-JUL-2022,7014012,51.66,SKY BUSINESS LTD,320823,"Health, Education, Care and Safeguarding",Children's & Education Services,103,Supplies and Services,504,Miscellaneous Expenses,5034,Revenue,SUBSCRIPTIONS & PUBLICATIONS.TV/RADIO LICENCES
29-JUL-2022,7014015,-11,NEWCASTLE CITY COUNCIL,014331,"Health, Education, Care and Safeguarding",Children's & Education Services,103,Supplies and Services,504,Miscellaneous Expenses,5034,Revenue,NON INFLUENCIBLE.PUBLIC SECTOR
29-JUL-2022,7014061,249.17,CURRYS,310317,"Health, Education, Care and Safeguarding",Children's & Education Services,103,Supplies and Services,504,Equipment,5023,Revenue,FURNITURE.DOMESTIC
29-JUL-2022,7014073,0.01,AMAZON GENERAL PAYMENTS,375398,"Health, Education, Care and Safeguarding",Children's & Education Services,103,Supplies and Services,504,Equipment,5023,Revenue,EDUCATIONAL SUPPLIES.SUPPLIES
29-JUL-2022,7014073,0.01,AMAZON GENERAL PAYMENTS,375398,"Health, Education, Care and Safeguarding",Children's & Education Services,103,Supplies and Services,504,Equipment,5023,Revenue,EDUCATIONAL SUPPLIES.SUPPLIES
29-JUL-2022,7014073,22.48,AMAZON GENERAL PAYMENTS,375398,"Health, Education, Care and Safeguarding",Children's & Education Services,103,Supplies and Services,504,Equipment,5023,Revenue,EDUCATIONAL SUPPLIES.SUPPLIES
29-JUL-2022,7014073,108.32,AMAZON GENERAL PAYMENTS,375398,"Health, Education, Care and Safeguarding",Children's & Education Services,103,Supplies and Services,504,Equipment,5023,Revenue,EDUCATIONAL SUPPLIES.SUPPLIES
29-JUL-2022,7014110,0.73,ASDA STORES LIMITED,306530,"Health, Education, Care and Safeguarding",Children's & Education Services,103,Supplies and Services,504,Equipment,5023,Revenue,CATERING.FOOD & BEVERAGES
29-JUL-2022,7014110,190.92,ASDA STORES LIMITED,306530,"Health, Education, Care and Safeguarding",Children's & Education Services,103,Supplies and Services,504,Equipment,5023,Revenue,CATERING.FOOD & BEVERAGES
29-JUL-2022,7013943,39.83,FAT BUTCHER,403376,"Health, Education, Care and Safeguarding",Children's & Education Services,103,Supplies and Services,504,Equipment,5023,Revenue,NON INFLUENCIBLE.NON INFLUENCIBLE
29-JUL-2022,7013970,0.01,VF NORTHERN EUROPE,401844,"Health, Education, Care and Safeguarding",Children's & Education Services,103,Supplies and Services,504,"Clothing, Uniforms and Laundry",5025,Revenue,NON INFLUENCIBLE.NON INFLUENCIBLE
29-JUL-2022,7013970,40.37,VF NORTHERN EUROPE,401844,"Health, Education, Care and Safeguarding",Children's & Education Services,103,Supplies and Services,504,"Clothing, Uniforms and Laundry",5025,Revenue,NON INFLUENCIBLE.NON INFLUENCIBLE
29-JUL-2022,7013987,311.67,UTTER CLUTTER,399205,"Health, Education, Care and Safeguarding",Children's & Education Services,103,Supplies and Services,504,Equipment,5023,Revenue,FURNITURE.COMMERCIAL
29-JUL-2022,7013991,0.01,TK MAXX,392657,"Health, Education, Care and Safeguarding",Children's & Education Services,103,Supplies and Services,504,Equipment,5023,Revenue,FURNITURE.DOMESTIC
29-JUL-2022,7013991,24.97,TK MAXX,392657,"Health, Education, Care and Safeguarding",Children's & Education Services,103,Supplies and Services,504,Equipment,5023,Revenue,FURNITURE.DOMESTIC
29-JUL-2022,7013991,34.63,TK MAXX,392657,"Health, Education, Care and Safeguarding",Children's & Education Services,103,Supplies and Services,504,Miscellaneous Expenses,5034,Revenue,FURNITURE.DOMESTIC
29-JUL-2022,7013991,60.12,TK MAXX,392657,"Health, Education, Care and Safeguarding",Children's & Education Services,103,Supplies and Services,504,Miscellaneous Expenses,5034,Revenue,FURNITURE.DOMESTIC
29-JUL-2022,7013997,50,CYPAD T/A PARENTPAY,391920,"Health, Education, Care and Safeguarding",Children's & Education Services,103,Supplies and Services,504,Equipment,5023,Revenue,FINANCIAL SERVICES.FINANCIAL SERVICES
29-JUL-2022,7014048,33.39,WM MORRISON SUPERMARKETS PLC,013562,"Health, Education, Care and Safeguarding",Children's & Education Services,103,Supplies and Services,504,Equipment,5023,Revenue,CATERING.FOOD & BEVERAGES
29-JUL-2022,7014066,9.15,HOME BARGAINS,381011,"Health, Education, Care and Safeguarding",Children's & Education Services,103,Supplies and Services,504,Miscellaneous Expenses,5034,Revenue,FURNITURE.SOFT FURNISHINGS
29-JUL-2022,7014073,0.01,AMAZON GENERAL PAYMENTS,375398,"Health, Education, Care and Safeguarding",Children's & Education Services,103,Supplies and Services,504,Equipment,5023,Revenue,EDUCATIONAL SUPPLIES.SUPPLIES
29-JUL-2022,7014073,0.01,AMAZON GENERAL PAYMENTS,375398,"Health, Education, Care and Safeguarding",Children's & Education Services,103,Supplies and Services,504,Equipment,5023,Revenue,EDUCATIONAL SUPPLIES.SUPPLIES
29-JUL-2022,7014073,11.87,AMAZON GENERAL PAYMENTS,375398,"Health, Education, Care and Safeguarding",Children's & Education Services,103,Supplies and Services,504,Equipment,5023,Revenue,EDUCATIONAL SUPPLIES.SUPPLIES
29-JUL-2022,7014073,19.22,AMAZON GENERAL PAYMENTS,375398,"Health, Education, Care and Safeguarding",Children's & Education Services,103,Supplies and Services,504,Equipment,5023,Revenue,EDUCATIONAL SUPPLIES.SUPPLIES
29-JUL-2022,7014073,30.08,AMAZON GENERAL PAYMENTS,375398,"Health, Education, Care and Safeguarding",Children's & Education Services,103,Supplies and Services,504,Equipment,5023,Revenue,EDUCATIONAL SUPPLIES.SUPPLIES
29-JUL-2022,7014073,32.02,AMAZON GENERAL PAYMENTS,375398,"Health, Education, Care and Safeguarding",Children's & Education Services,103,Supplies and Services,504,Equipment,5023,Revenue,EDUCATIONAL SUPPLIES.SUPPLIES
29-JUL-2022,7014073,37.27,AMAZON GENERAL PAYMENTS,375398,"Health, Education, Care and Safeguarding",Children's & Education Services,103,Supplies and Services,504,Equipment,5023,Revenue,EDUCATIONAL SUPPLIES.SUPPLIES
29-JUL-2022,7014073,39.58,AMAZON GENERAL PAYMENTS,375398,"Health, Education, Care and Safeguarding",Children's & Education Services,103,Supplies and Services,504,Equipment,5023,Revenue,EDUCATIONAL SUPPLIES.SUPPLIES
29-JUL-2022,7014073,0.01,AMAZON GENERAL PAYMENTS,375398,"Health, Education, Care and Safeguarding",Children's & Education Services,103,Supplies and Services,504,Miscellaneous Expenses,5034,Revenue,EDUCATIONAL SUPPLIES.SUPPLIES
29-JUL-2022,7014073,20.82,AMAZON GENERAL PAYMENTS,375398,"Health, Education, Care and Safeguarding",Children's & Education Services,103,Supplies and Services,504,Miscellaneous Expenses,5034,Revenue,EDUCATIONAL SUPPLIES.SUPPLIES
29-JUL-2022,7014088,0.01,NETFLIX.COM,395937,"Health, Education, Care and Safeguarding",Children's & Education Services,103,Supplies and Services,504,Miscellaneous Expenses,5034,Revenue,ADVERTISING & MARKETING.EVENTS & PROMOTIONS
29-JUL-2022,7014088,13.32,NETFLIX.COM,395937,"Health, Education, Care and Safeguarding",Children's & Education Services,103,Supplies and Services,504,Miscellaneous Expenses,5034,Revenue,ADVERTISING & MARKETING.EVENTS & PROMOTIONS
29-JUL-2022,7014110,-1.09,ASDA STORES LIMITED,306530,"Health, Education, Care and Safeguarding",Children's & Education Services,103,Supplies and Services,504,Equipment,5023,Revenue,CATERING.FOOD & BEVERAGES
29-JUL-2022,7014110,94.14,ASDA STORES LIMITED,306530,"Health, Education, Care and Safeguarding",Children's & Education Services,103,Supplies and Services,504,Equipment,5023,Revenue,CATERING.FOOD & BEVERAGES
29-JUL-2022,7014110,6,ASDA STORES LIMITED,306530,"Health, Education, Care and Safeguarding",Children's & Education Services,103,Supplies and Services,504,Miscellaneous Expenses,5034,Revenue,CATERING.FOOD & BEVERAGES
29-JUL-2022,7013986,1.25,TOTAL PRODUCE GATESHEAD,399244,Commissioning & Asset Management,Children's & Education Services,103,Supplies and Services,504,Equipment,5023,Revenue,CATERING.FOOD & BEVERAGES
29-JUL-2022,7013986,1.36,TOTAL PRODUCE GATESHEAD,399244,Commissioning & Asset Management,Children's & Education Services,103,Supplies and Services,504,Equipment,5023,Revenue,CATERING.FOOD & BEVERAGES
29-JUL-2022,7013986,1.36,TOTAL PRODUCE GATESHEAD,399244,Commissioning & Asset Management,Children's & Education Services,103,Supplies and Services,504,Equipment,5023,Revenue,CATERING.FOOD & BEVERAGES
29-JUL-2022,7013986,1.36,TOTAL PRODUCE GATESHEAD,399244,Commissioning & Asset Management,Children's & Education Services,103,Supplies and Services,504,Equipment,5023,Revenue,CATERING.FOOD & BEVERAGES
29-JUL-2022,7013986,1.36,TOTAL PRODUCE GATESHEAD,399244,Commissioning & Asset Management,Children's & Education Services,103,Supplies and Services,504,Equipment,5023,Revenue,CATERING.FOOD & BEVERAGES
29-JUL-2022,7013986,1.36,TOTAL PRODUCE GATESHEAD,399244,Commissioning & Asset Management,Children's & Education Services,103,Supplies and Services,504,Equipment,5023,Revenue,CATERING.FOOD & BEVERAGES
29-JUL-2022,7013986,1.49,TOTAL PRODUCE GATESHEAD,399244,Commissioning & Asset Management,Children's & Education Services,103,Supplies and Services,504,Equipment,5023,Revenue,CATERING.FOOD & BEVERAGES
29-JUL-2022,7013986,1.62,TOTAL PRODUCE GATESHEAD,399244,Commissioning & Asset Management,Children's & Education Services,103,Supplies and Services,504,Equipment,5023,Revenue,CATERING.FOOD & BEVERAGES
29-JUL-2022,7013986,1.94,TOTAL PRODUCE GATESHEAD,399244,Commissioning & Asset Management,Children's & Education Services,103,Supplies and Services,504,Equipment,5023,Revenue,CATERING.FOOD & BEVERAGES
29-JUL-2022,7013986,1.94,TOTAL PRODUCE GATESHEAD,399244,Commissioning & Asset Management,Children's & Education Services,103,Supplies and Services,504,Equipment,5023,Revenue,CATERING.FOOD & BEVERAGES
29-JUL-2022,7013986,2.19,TOTAL PRODUCE GATESHEAD,399244,Commissioning & Asset Management,Children's & Education Services,103,Supplies and Services,504,Equipment,5023,Revenue,CATERING.FOOD & BEVERAGES
29-JUL-2022,7013986,2.19,TOTAL PRODUCE GATESHEAD,399244,Commissioning & Asset Management,Children's & Education Services,103,Supplies and Services,504,Equipment,5023,Revenue,CATERING.FOOD & BEVERAGES
29-JUL-2022,7013986,2.19,TOTAL PRODUCE GATESHEAD,399244,Commissioning & Asset Management,Children's & Education Services,103,Supplies and Services,504,Equipment,5023,Revenue,CATERING.FOOD & BEVERAGES
29-JUL-2022,7013986,2.44,TOTAL PRODUCE GATESHEAD,399244,Commissioning & Asset Management,Children's & Education Services,103,Supplies and Services,504,Equipment,5023,Revenue,CATERING.FOOD & BEVERAGES
29-JUL-2022,7013986,2.54,TOTAL PRODUCE GATESHEAD,399244,Commissioning & Asset Management,Children's & Education Services,103,Supplies and Services,504,Equipment,5023,Revenue,CATERING.FOOD & BEVERAGES
29-JUL-2022,7013986,2.7,TOTAL PRODUCE GATESHEAD,399244,Commissioning & Asset Management,Children's & Education Services,103,Supplies and Services,504,Equipment,5023,Revenue,CATERING.FOOD & BEVERAGES
29-JUL-2022,7013986,2.7,TOTAL PRODUCE GATESHEAD,399244,Commissioning & Asset Management,Children's & Education Services,103,Supplies and Services,504,Equipment,5023,Revenue,CATERING.FOOD & BEVERAGES
29-JUL-2022,7013986,2.7,TOTAL PRODUCE GATESHEAD,399244,Commissioning & Asset Management,Children's & Education Services,103,Supplies and Services,504,Equipment,5023,Revenue,CATERING.FOOD & BEVERAGES
29-JUL-2022,7013986,2.7,TOTAL PRODUCE GATESHEAD,399244,Commissioning & Asset Management,Children's & Education Services,103,Supplies and Services,504,Equipment,5023,Revenue,CATERING.FOOD & BEVERAGES
29-JUL-2022,7013986,2.7,TOTAL PRODUCE GATESHEAD,399244,Commissioning & Asset Management,Children's & Education Services,103,Supplies and Services,504,Equipment,5023,Revenue,CATERING.FOOD & BEVERAGES
29-JUL-2022,7013986,2.7,TOTAL PRODUCE GATESHEAD,399244,Commissioning & Asset Management,Children's & Education Services,103,Supplies and Services,504,Equipment,5023,Revenue,CATERING.FOOD & BEVERAGES
29-JUL-2022,7013986,2.72,TOTAL PRODUCE GATESHEAD,399244,Commissioning & Asset Management,Children's & Education Services,103,Supplies and Services,504,Equipment,5023,Revenue,CATERING.FOOD & BEVERAGES
29-JUL-2022,7013986,2.72,TOTAL PRODUCE GATESHEAD,399244,Commissioning & Asset Management,Children's & Education Services,103,Supplies and Services,504,Equipment,5023,Revenue,CATERING.FOOD & BEVERAGES
29-JUL-2022,7013986,2.84,TOTAL PRODUCE GATESHEAD,399244,Commissioning & Asset Management,Children's & Education Services,103,Supplies and Services,504,Equipment,5023,Revenue,CATERING.FOOD & BEVERAGES
29-JUL-2022,7013986,3.24,TOTAL PRODUCE GATESHEAD,399244,Commissioning & Asset Management,Children's & Education Services,103,Supplies and Services,504,Equipment,5023,Revenue,CATERING.FOOD & BEVERAGES
29-JUL-2022,7013986,3.6,TOTAL PRODUCE GATESHEAD,399244,Commissioning & Asset Management,Children's & Education Services,103,Supplies and Services,504,Equipment,5023,Revenue,CATERING.FOOD & BEVERAGES
29-JUL-2022,7013986,3.6,TOTAL PRODUCE GATESHEAD,399244,Commissioning & Asset Management,Children's & Education Services,103,Supplies and Services,504,Equipment,5023,Revenue,CATERING.FOOD & BEVERAGES
29-JUL-2022,7013986,3.69,TOTAL PRODUCE GATESHEAD,399244,Commissioning & Asset Management,Children's & Education Services,103,Supplies and Services,504,Equipment,5023,Revenue,CATERING.FOOD & BEVERAGES
29-JUL-2022,7013986,3.88,TOTAL PRODUCE GATESHEAD,399244,Commissioning & Asset Management,Children's & Education Services,103,Supplies and Services,504,Equipment,5023,Revenue,CATERING.FOOD & BEVERAGES
29-JUL-2022,7013986,3.88,TOTAL PRODUCE GATESHEAD,399244,Commissioning & Asset Management,Children's & Education Services,103,Supplies and Services,504,Equipment,5023,Revenue,CATERING.FOOD & BEVERAGES
29-JUL-2022,7013986,3.88,TOTAL PRODUCE GATESHEAD,399244,Commissioning & Asset Management,Children's & Education Services,103,Supplies and Services,504,Equipment,5023,Revenue,CATERING.FOOD & BEVERAGES
29-JUL-2022,7013986,3.88,TOTAL PRODUCE GATESHEAD,399244,Commissioning & Asset Management,Children's & Education Services,103,Supplies and Services,504,Equipment,5023,Revenue,CATERING.FOOD & BEVERAGES
29-JUL-2022,7013986,3.88,TOTAL PRODUCE GATESHEAD,399244,Commissioning & Asset Management,Children's & Education Services,103,Supplies and Services,504,Equipment,5023,Revenue,CATERING.FOOD & BEVERAGES
29-JUL-2022,7013986,4.26,TOTAL PRODUCE GATESHEAD,399244,Commissioning & Asset Management,Children's & Education Services,103,Supplies and Services,504,Equipment,5023,Revenue,CATERING.FOOD & BEVERAGES
29-JUL-2022,7013986,4.6,TOTAL PRODUCE GATESHEAD,399244,Commissioning & Asset Management,Children's & Education Services,103,Supplies and Services,504,Equipment,5023,Revenue,CATERING.FOOD & BEVERAGES
29-JUL-2022,7013986,4.6,TOTAL PRODUCE GATESHEAD,399244,Commissioning & Asset Management,Children's & Education Services,103,Supplies and Services,504,Equipment,5023,Revenue,CATERING.FOOD & BEVERAGES
29-JUL-2022,7013986,4.86,TOTAL PRODUCE GATESHEAD,399244,Commissioning & Asset Management,Children's & Education Services,103,Supplies and Services,504,Equipment,5023,Revenue,CATERING.FOOD & BEVERAGES
29-JUL-2022,7013986,4.86,TOTAL PRODUCE GATESHEAD,399244,Commissioning & Asset Management,Children's & Education Services,103,Supplies and Services,504,Equipment,5023,Revenue,CATERING.FOOD & BEVERAGES
29-JUL-2022,7013986,4.88,TOTAL PRODUCE GATESHEAD,399244,Commissioning & Asset Management,Children's & Education Services,103,Supplies and Services,504,Equipment,5023,Revenue,CATERING.FOOD & BEVERAGES
29-JUL-2022,7013986,4.88,TOTAL PRODUCE GATESHEAD,399244,Commissioning & Asset Management,Children's & Education Services,103,Supplies and Services,504,Equipment,5023,Revenue,CATERING.FOOD & BEVERAGES
29-JUL-2022,7013986,5.4,TOTAL PRODUCE GATESHEAD,399244,Commissioning & Asset Management,Children's & Education Services,103,Supplies and Services,504,Equipment,5023,Revenue,CATERING.FOOD & BEVERAGES
29-JUL-2022,7013986,5.68,TOTAL PRODUCE GATESHEAD,399244,Commissioning & Asset Management,Children's & Education Services,103,Supplies and Services,504,Equipment,5023,Revenue,CATERING.FOOD & BEVERAGES
29-JUL-2022,7013986,6.89,TOTAL PRODUCE GATESHEAD,399244,Commissioning & Asset Management,Children's & Education Services,103,Supplies and Services,504,Equipment,5023,Revenue,CATERING.FOOD & BEVERAGES
29-JUL-2022,7013986,7.32,TOTAL PRODUCE GATESHEAD,399244,Commissioning & Asset Management,Children's & Education Services,103,Supplies and Services,504,Equipment,5023,Revenue,CATERING.FOOD & BEVERAGES
29-JUL-2022,7013986,7.32,TOTAL PRODUCE GATESHEAD,399244,Commissioning & Asset Management,Children's & Education Services,103,Supplies and Services,504,Equipment,5023,Revenue,CATERING.FOOD & BEVERAGES
29-JUL-2022,7013986,7.62,TOTAL PRODUCE GATESHEAD,399244,Commissioning & Asset Management,Children's & Education Services,103,Supplies and Services,504,Equipment,5023,Revenue,CATERING.FOOD & BEVERAGES
29-JUL-2022,7013986,8.55,TOTAL PRODUCE GATESHEAD,399244,Commissioning & Asset Management,Children's & Education Services,103,Supplies and Services,504,Equipment,5023,Revenue,CATERING.FOOD & BEVERAGES
29-JUL-2022,7013986,8.55,TOTAL PRODUCE GATESHEAD,399244,Commissioning & Asset Management,Children's & Education Services,103,Supplies and Services,504,Equipment,5023,Revenue,CATERING.FOOD & BEVERAGES
29-JUL-2022,7013986,8.55,TOTAL PRODUCE GATESHEAD,399244,Commissioning & Asset Management,Children's & Education Services,103,Supplies and Services,504,Equipment,5023,Revenue,CATERING.FOOD & BEVERAGES
29-JUL-2022,7013986,8.55,TOTAL PRODUCE GATESHEAD,399244,Commissioning & Asset Management,Children's & Education Services,103,Supplies and Services,504,Equipment,5023,Revenue,CATERING.FOOD & BEVERAGES
29-JUL-2022,7013986,8.55,TOTAL PRODUCE GATESHEAD,399244,Commissioning & Asset Management,Children's & Education Services,103,Supplies and Services,504,Equipment,5023,Revenue,CATERING.FOOD & BEVERAGES
29-JUL-2022,7013986,9.72,TOTAL PRODUCE GATESHEAD,399244,Commissioning & Asset Management,Children's & Education Services,103,Supplies and Services,504,Equipment,5023,Revenue,CATERING.FOOD & BEVERAGES
29-JUL-2022,7013986,10.5,TOTAL PRODUCE GATESHEAD,399244,Commissioning & Asset Management,Children's & Education Services,103,Supplies and Services,504,Equipment,5023,Revenue,CATERING.FOOD & BEVERAGES
29-JUL-2022,7013986,10.5,TOTAL PRODUCE GATESHEAD,399244,Commissioning & Asset Management,Children's & Education Services,103,Supplies and Services,504,Equipment,5023,Revenue,CATERING.FOOD & BEVERAGES
29-JUL-2022,7013986,10.5,TOTAL PRODUCE GATESHEAD,399244,Commissioning & Asset Management,Children's & Education Services,103,Supplies and Services,504,Equipment,5023,Revenue,CATERING.FOOD & BEVERAGES
29-JUL-2022,7013986,11,TOTAL PRODUCE GATESHEAD,399244,Commissioning & Asset Management,Children's & Education Services,103,Supplies and Services,504,Equipment,5023,Revenue,CATERING.FOOD & BEVERAGES
29-JUL-2022,7013986,12,TOTAL PRODUCE GATESHEAD,399244,Commissioning & Asset Management,Children's & Education Services,103,Supplies and Services,504,Equipment,5023,Revenue,CATERING.FOOD & BEVERAGES
29-JUL-2022,7013986,14,TOTAL PRODUCE GATESHEAD,399244,Commissioning & Asset Management,Children's & Education Services,103,Supplies and Services,504,Equipment,5023,Revenue,CATERING.FOOD & BEVERAGES
29-JUL-2022,7013986,15.24,TOTAL PRODUCE GATESHEAD,399244,Commissioning & Asset Management,Children's & Education Services,103,Supplies and Services,504,Equipment,5023,Revenue,CATERING.FOOD & BEVERAGES
29-JUL-2022,7013986,17.2,TOTAL PRODUCE GATESHEAD,399244,Commissioning & Asset Management,Children's & Education Services,103,Supplies and Services,504,Equipment,5023,Revenue,CATERING.FOOD & BEVERAGES
29-JUL-2022,7013986,21,TOTAL PRODUCE GATESHEAD,399244,Commissioning & Asset Management,Children's & Education Services,103,Supplies and Services,504,Equipment,5023,Revenue,CATERING.FOOD & BEVERAGES
29-JUL-2022,7013986,21.98,TOTAL PRODUCE GATESHEAD,399244,Commissioning & Asset Management,Children's & Education Services,103,Supplies and Services,504,Equipment,5023,Revenue,CATERING.FOOD & BEVERAGES
29-JUL-2022,7013986,21.98,TOTAL PRODUCE GATESHEAD,399244,Commissioning & Asset Management,Children's & Education Services,103,Supplies and Services,504,Equipment,5023,Revenue,CATERING.FOOD & BEVERAGES
29-JUL-2022,7013986,21.98,TOTAL PRODUCE GATESHEAD,399244,Commissioning & Asset Management,Children's & Education Services,103,Supplies and Services,504,Equipment,5023,Revenue,CATERING.FOOD & BEVERAGES
29-JUL-2022,7013986,21.98,TOTAL PRODUCE GATESHEAD,399244,Commissioning & Asset Management,Children's & Education Services,103,Supplies and Services,504,Equipment,5023,Revenue,CATERING.FOOD & BEVERAGES
29-JUL-2022,7013986,23.49,TOTAL PRODUCE GATESHEAD,399244,Commissioning & Asset Management,Children's & Education Services,103,Supplies and Services,504,Equipment,5023,Revenue,CATERING.FOOD & BEVERAGES
29-JUL-2022,7013986,23.49,TOTAL PRODUCE GATESHEAD,399244,Commissioning & Asset Management,Children's & Education Services,103,Supplies and Services,504,Equipment,5023,Revenue,CATERING.FOOD & BEVERAGES
29-JUL-2022,7013986,23.49,TOTAL PRODUCE GATESHEAD,399244,Commissioning & Asset Management,Children's & Education Services,103,Supplies and Services,504,Equipment,5023,Revenue,CATERING.FOOD & BEVERAGES
29-JUL-2022,7013986,23.49,TOTAL PRODUCE GATESHEAD,399244,Commissioning & Asset Management,Children's & Education Services,103,Supplies and Services,504,Equipment,5023,Revenue,CATERING.FOOD & BEVERAGES
29-JUL-2022,7013986,24.75,TOTAL PRODUCE GATESHEAD,399244,Commissioning & Asset Management,Children's & Education Services,103,Supplies and Services,504,Equipment,5023,Revenue,CATERING.FOOD & BEVERAGES
29-JUL-2022,7013986,31.5,TOTAL PRODUCE GATESHEAD,399244,Commissioning & Asset Management,Children's & Education Services,103,Supplies and Services,504,Equipment,5023,Revenue,CATERING.FOOD & BEVERAGES
29-JUL-2022,7013986,31.5,TOTAL PRODUCE GATESHEAD,399244,Commissioning & Asset Management,Children's & Education Services,103,Supplies and Services,504,Equipment,5023,Revenue,CATERING.FOOD & BEVERAGES
29-JUL-2022,7013986,42,TOTAL PRODUCE GATESHEAD,399244,Commissioning & Asset Management,Children's & Education Services,103,Supplies and Services,504,Equipment,5023,Revenue,CATERING.FOOD & BEVERAGES
29-JUL-2022,7014004,10.58,R MANNERS & SONS LTD,013498,Commissioning & Asset Management,Children's & Education Services,103,Supplies and Services,504,Equipment,5023,Revenue,CATERING.FOOD & BEVERAGES
29-JUL-2022,7014004,10.58,R MANNERS & SONS LTD,013498,Commissioning & Asset Management,Children's & Education Services,103,Supplies and Services,504,Equipment,5023,Revenue,CATERING.FOOD & BEVERAGES
